{"text_format":"1","workbook":"xlsx","n_sheets":2,"sheets":["JHA-Prod.-Tarief","On hold"],"not_rendered":{"charts":0,"images":1,"macros":1,"external_links":2,"defined_names":4,"comments":1,"pivot_tables":0},"unopened":[],"bounds":{"document_bytes":16777216,"sheet_cells":100000,"rows_first":2000,"rows_last":500,"rows_between":2000,"halvings":0,"cell_chars":16384,"cell_head_chars":4096},"cells_cut":0,"cells_raw":0,"read":"whole","date_system":"1900"}

{"sheet":"JHA-Prod.-Tarief","index":0,"n_rows":895,"n_cols":10,"rows_kept":895,"cut":false,"hidden":false,"merged":[]}
["Overzicht Product, tarief en Jeugdhulpaanbieders 2026",null,null,null,null,null,null,null,null,"Versie bestand: 2026.1"]
[]
["Overzicht van de gecontracteerde jeugdhulpaanbieder, producten en tarieven van de inkooprocedures: "]
["Open House, Gecertificeerde Instellingen, Crisis jeugdhulp en Jeugdhulp Plus."]
[]
[]
["Productcode","Productomschrijving","Productcategorie","Eenheid","Default frequentie","Tarief 2025 (MET afr)","Max. tarief 2026","Tarief 2026 MET afronding","AGB-Code JHA","Naam JHA"]
["40A04","Persoonlijke verzorging","Overig","uur","per week",71.25,74.900000000000006,{"$f":"MROUND(F8*1.0513,0.05)","v":74.900000000000006},"75751904","Coöperatie Dichtbij U.A."]
["40A04","Persoonlijke verzorging","Overig","uur","per week",71.25,74.900000000000006,74.900000000000006,98100320,"Jemalupe"]
["41A18","Dagbesteding","Dagbesteding / dagbehandeling","dagdeel","per week",76.5,80.400000000000006,80.400000000000006,"06290106","Stichting Elker"]
["41A18","Dagbesteding","Dagbesteding / dagbehandeling","dagdeel","per week",76.5,80.400000000000006,80.400000000000006,22227299,"Stichting Yes We Can Clinics"]
["41A18","Dagbesteding","Dagbesteding / dagbehandeling","dagdeel","per week",75.05,80.400000000000006,78.900000000000006,"30300685","Stichting 's Heeren Loo Zorggroep"]
["41A18","Dagbesteding","Dagbesteding / dagbehandeling","dagdeel","per week",76.5,80.400000000000006,80.400000000000006,41415236,"Hoeve Paradij"]
["41A18","Dagbesteding","Dagbesteding / dagbehandeling","dagdeel","per week",68.900000000000006,80.400000000000006,{"$f":"F14","v":68.900000000000006},41526844,"Zorg Op Stee I B.V."]
["41A18","Dagbesteding","Dagbesteding / dagbehandeling","dagdeel","per week",76.5,80.400000000000006,{"$f":"MROUND(F15*1.0513,0.05)","v":80.400000000000006},65651117,"Stichting De Zijlen"]
["41A18","Dagbesteding","Dagbesteding / dagbehandeling","dagdeel","per week",76.5,80.400000000000006,80.400000000000006,"65656687","Stichting Cosis"]
["41A18","Dagbesteding","Dagbesteding / dagbehandeling","dagdeel","per week",76.5,80.400000000000006,80.400000000000006,"73730146","Cura XL B.V."]
["41A18","Dagbesteding","Dagbesteding / dagbehandeling","dagdeel","per week",76.5,80.400000000000006,80.400000000000006,73730183,"Overstag Zorg B.V."]
["41A18","Dagbesteding","Dagbesteding / dagbehandeling","dagdeel","per week",69.8,80.400000000000006,73.400000000000006,"73730198","De Kasparhoeve B.V."]
["41A18","Dagbesteding","Dagbesteding / dagbehandeling","dagdeel","per week",76.5,80.400000000000006,80.400000000000006,73730415,"Omega Groep B.V."]
["41A18","Dagbesteding","Dagbesteding / dagbehandeling","dagdeel","per week",76.5,80.400000000000006,80.400000000000006,"75751904","Coöperatie Dichtbij U.A."]
["41A18","Dagbesteding","Dagbesteding / dagbehandeling","dagdeel","per week",71.100000000000009,80.400000000000006,74.75,75752422,"La Luna Care B.V."]
["41A18","Dagbesteding","Dagbesteding / dagbehandeling","dagdeel","per week",76.5,80.400000000000006,80.400000000000006,78780153,"GeWoon begeleiding B.V."]
["41A18","Dagbesteding","Dagbesteding / dagbehandeling","dagdeel","per week",50.5,80.400000000000006,53.1,"90066114","Het Naoberhuis B.V."]
["41A18","Dagbesteding","Dagbesteding / dagbehandeling","dagdeel","per week",74.55,80.400000000000006,78.350000000000009,"98098852","Statera Jeugd en Gezin B.V."]
["41A18","Dagbesteding","Dagbesteding / dagbehandeling","dagdeel","per week",76.5,80.400000000000006,80.400000000000006,98099028,"Protestants-Christelijke Stichting Philadelphia Zorg"]
["41A18","Dagbesteding","Dagbesteding / dagbehandeling","dagdeel","per week",73,80.400000000000006,{"$f":"MROUND(F27*1.0403,0.05)","v":75.95},98099815,"Zwat Werkplaats B.V."]
["41A18","Dagbesteding","Dagbesteding / dagbehandeling","dagdeel","per week",76.5,80.400000000000006,{"$f":"MROUND(F28*1.0513,0.05)","v":80.400000000000006},98100320,"Jemalupe"]
["41A18","Dagbesteding","Dagbesteding / dagbehandeling","dagdeel","per week",67.7,80.400000000000006,{"$f":"F29","v":67.7},"98100943","De Slingertuin"]
["41A18","Dagbesteding","Dagbesteding / dagbehandeling","dagdeel","per week",76.5,80.400000000000006,{"$f":"MROUND(F30*1.0513,0.05)","v":80.400000000000006},98101345,"Calidad B.V."]
["41A18","Dagbesteding","Dagbesteding / dagbehandeling","dagdeel","per week",67.75,80.400000000000006,{"$f":"F31","v":67.75},98102030,"Hof van Arcadia"]
["41A18","Dagbesteding","Dagbesteding / dagbehandeling","dagdeel","per week",67.150000000000006,80.400000000000006,{"$f":"MROUND(F32*1.0513,0.05)","v":70.600000000000009},98102110,"Feniks Zorg en Jeugd B.V."]
["41A18","Dagbesteding","Dagbesteding / dagbehandeling","dagdeel","per week",76.5,80.400000000000006,80.400000000000006,"98102383","Cornerstones Jeugdzorg B.V."]
["41A18","Dagbesteding","Dagbesteding / dagbehandeling","dagdeel","per week",71,80.400000000000006,74.650000000000006,"98103021","KeuningsHof B.V."]
["41A18","Dagbesteding","Dagbesteding / dagbehandeling","dagdeel","per week",68.8,80.400000000000006,72.350000000000009,"98104360","Roccohoeve B.V."]
["41A18","Dagbesteding","Dagbesteding / dagbehandeling","dagdeel","per week",68.850000000000009,80.400000000000006,72.400000000000006,98104930,"Zorg en Welzijn Academy Knaap B.V. "]
["41A18","Dagbesteding","Dagbesteding / dagbehandeling","dagdeel","per week",68.5,80.400000000000006,72,98105253,"Script B.V."]
["41A18","Dagbesteding","Dagbesteding / dagbehandeling","dagdeel","per week",76.5,80.400000000000006,80.400000000000006,"98105913","Zorgkracht 12, de Noordelijke Zorgcoöperatie U.A."]
["41A18","Dagbesteding","Dagbesteding / dagbehandeling","dagdeel","per week",70.900000000000006,80.400000000000006,{"$f":"MROUND(F39*1.0403,0.05)","v":73.75},98106901,"Vossenburght B.V."]
["41G01","Gezinsdagbehandeling","Dagbesteding / dagbehandeling","uur","per week",145.05000000000001,152.5,{"$f":"MROUND(F40*1.0513,0.05)","v":152.5},"06290104","Stichting Accare"]
["41G01","Gezinsdagbehandeling","Dagbesteding / dagbehandeling","uur","per week",null,152.5,152.5,"98107597","De Ezelsbrug B.V."]
["41G02","Dagbehandeling jonge kinderen","Dagbesteding / dagbehandeling","dagdeel","per week",276.90000000000003,291.10000000000002,{"$f":"MROUND(F42*1.0513,0.05)","v":291.10000000000002},"06290106","Stichting Elker"]
["41G02","Dagbehandeling jonge kinderen","Dagbesteding / dagbehandeling","dagdeel","per week",276.90000000000003,291.10000000000002,291.10000000000002,"06290205","Stichting Jeugdhulp Friesland"]
["41G02","Dagbehandeling jonge kinderen","Dagbesteding / dagbehandeling","dagdeel","per week",276.90000000000003,291.10000000000002,291.10000000000002,65651117,"Stichting De Zijlen"]
["41G02","Dagbehandeling jonge kinderen","Dagbesteding / dagbehandeling","dagdeel","per week",257.05,291.10000000000002,270.25,"65656687","Stichting Cosis"]
["41G02","Dagbehandeling jonge kinderen","Dagbesteding / dagbehandeling","dagdeel","per week",276.90000000000003,291.10000000000002,291.10000000000002,73730305,"Stichting Yorneo Beheer"]
["41G03","Dagbehandeling jeugdige met sterk stagnerende ontwikkeling","Dagbesteding / dagbehandeling","dagdeel","per week",137.85,159.44999999999999,144.9,"30300397","Stichting De Trans"]
["41G03","Dagbehandeling jeugdige met sterk stagnerende ontwikkeling","Dagbesteding / dagbehandeling","dagdeel","per week",151.65,159.44999999999999,159.45000000000002,65651117,"Stichting De Zijlen"]
["41G03","Dagbehandeling jeugdige met sterk stagnerende ontwikkeling","Dagbesteding / dagbehandeling","dagdeel","per week",151.65,159.44999999999999,159.45000000000002,"65656687","Stichting Cosis"]
["42A01","Vervoer regulier","Overig","stuk","Totaal binnen geldigheidsduur of tijdsonafhankelijk",11.9,12.5,12.5,"06290106","Stichting Elker"]
["42A01","Vervoer regulier","Overig","stuk","Totaal binnen geldigheidsduur of tijdsonafhankelijk",11.600000000000001,12.5,12.200000000000001,"30300397","Stichting De Trans"]
["42A01","Vervoer regulier","Overig","stuk","Totaal binnen geldigheidsduur of tijdsonafhankelijk",11.700000000000001,12.5,12.3,"30300685","Stichting 's Heeren Loo Zorggroep"]
["42A01","Vervoer regulier","Overig","stuk","Totaal binnen geldigheidsduur of tijdsonafhankelijk",10.75,12.5,{"$f":"F53","v":10.75},41526844,"Zorg Op Stee I B.V."]
["42A01","Vervoer regulier","Overig","stuk","Totaal binnen geldigheidsduur of tijdsonafhankelijk",11.9,12.5,{"$f":"MROUND(F54*1.0513,0.05)","v":12.5},65651117,"Stichting De Zijlen"]
["42A01","Vervoer regulier","Overig","stuk","Totaal binnen geldigheidsduur of tijdsonafhankelijk",11.9,12.5,12.5,"65656687","Stichting Cosis"]
["42A01","Vervoer regulier","Overig","stuk","Totaal binnen geldigheidsduur of tijdsonafhankelijk",11.05,12.5,11.600000000000001,"73730198","De Kasparhoeve B.V."]
["42A01","Vervoer regulier","Overig","stuk","Totaal binnen geldigheidsduur of tijdsonafhankelijk",10.65,12.5,11.200000000000001,73730415,"Omega Groep B.V."]
["42A01","Vervoer regulier","Overig","stuk","Totaal binnen geldigheidsduur of tijdsonafhankelijk",11.9,12.5,12.5,"75751904","Coöperatie Dichtbij U.A."]
["42A01","Vervoer regulier","Overig","stuk","Totaal binnen geldigheidsduur of tijdsonafhankelijk",11.9,12.5,12.5,78780153,"GeWoon begeleiding B.V."]
["42A01","Vervoer regulier","Overig","stuk","Totaal binnen geldigheidsduur of tijdsonafhankelijk",11.25,12.5,{"$f":"MROUND(F60*1.0403,0.05)","v":11.700000000000001},90019236,"Kinderconsulent Groningen"]
["42A01","Vervoer regulier","Overig","stuk","Totaal binnen geldigheidsduur of tijdsonafhankelijk",11.9,12.5,{"$f":"MROUND(F61*1.0513,0.05)","v":12.5},90054404,"La Hacienda B.V."]
["42A01","Vervoer regulier","Overig","stuk","Totaal binnen geldigheidsduur of tijdsonafhankelijk",11.9,12.5,{"$f":"MROUND(F62*1.0513,0.05)","v":12.5},"98099724","Stichting Amigo"]
["42A01","Vervoer regulier","Overig","stuk","Totaal binnen geldigheidsduur of tijdsonafhankelijk",11.450000000000001,12.5,{"$f":"MROUND(F63*1.0403,0.05)","v":11.9},98099815,"Zwat Werkplaats B.V."]
["42A01","Vervoer regulier","Overig","stuk","Totaal binnen geldigheidsduur of tijdsonafhankelijk",11.9,12.5,{"$f":"MROUND(F64*1.0513,0.05)","v":12.5},"98100080","Stichting Petten Zorg"]
["42A01","Vervoer regulier","Overig","stuk","Totaal binnen geldigheidsduur of tijdsonafhankelijk",11.9,12.5,{"$f":"MROUND(F65*1.0513,0.05)","v":12.5},98100320,"Jemalupe"]
["42A01","Vervoer regulier","Overig","stuk","Totaal binnen geldigheidsduur of tijdsonafhankelijk",11.15,12.5,{"$f":"F66","v":11.15},"98100943","De Slingertuin"]
["42A01","Vervoer regulier","Overig","stuk","Totaal binnen geldigheidsduur of tijdsonafhankelijk",11.450000000000001,12.5,{"$f":"MROUND(F67*1.0513,0.05)","v":12.05},98101742,"Zorgboerderij Veldzicht Zeegse"]
["42A01","Vervoer regulier","Overig","stuk","Totaal binnen geldigheidsduur of tijdsonafhankelijk",10.4,12.5,{"$f":"MROUND(F68*1.0513,0.05)","v":10.950000000000001},98102110,"Feniks Zorg en Jeugd B.V."]
["42A01","Vervoer regulier","Overig","stuk","Totaal binnen geldigheidsduur of tijdsonafhankelijk",8.1000000000000014,12.5,{"$f":"F69","v":8.1000000000000014},"98102991","Activiteitencentrum De Brink"]
["42A01","Vervoer regulier","Overig","stuk","Totaal binnen geldigheidsduur of tijdsonafhankelijk",11.05,12.5,{"$f":"MROUND(F70*1.0513,0.05)","v":11.600000000000001},"98103021","KeuningsHof B.V."]
["42A01","Vervoer regulier","Overig","stuk","Totaal binnen geldigheidsduur of tijdsonafhankelijk",10.65,12.5,{"$f":"MROUND(F71*1.0513,0.05)","v":11.200000000000001},"98104360","Roccohoeve B.V."]
["42A01","Vervoer regulier","Overig","stuk","Totaal binnen geldigheidsduur of tijdsonafhankelijk",10.200000000000001,12.5,{"$f":"MROUND(F72*1.0513,0.05)","v":10.700000000000001},98104930,"Zorg en Welzijn Academy Knaap B.V. "]
["42A01","Vervoer regulier","Overig","stuk","Totaal binnen geldigheidsduur of tijdsonafhankelijk",11.9,12.5,{"$f":"MROUND(F73*1.0513,0.05)","v":12.5},"98105913","Zorgkracht 12, de Noordelijke Zorgcoöperatie U.A."]
["42A01","Vervoer regulier","Overig","stuk","Totaal binnen geldigheidsduur of tijdsonafhankelijk",10,12.5,{"$f":"MROUND(F74*1.0513,0.05)","v":10.5},98106367,"Station Noord B.V."]
["42A01","Vervoer regulier","Overig","stuk","Totaal binnen geldigheidsduur of tijdsonafhankelijk",11.1,12.5,{"$f":"MROUND(F75*1.0403,0.05)","v":11.55},98106901,"Vossenburght B.V."]
["42A01","Vervoer regulier","Overig","stuk","Totaal binnen geldigheidsduur of tijdsonafhankelijk",11.9,12.5,{"$f":"F76","v":11.9},98107576,"Even(T)Huis"]
["42A02","Vervoer rolstoel","Overig","stuk","Totaal binnen geldigheidsduur of tijdsonafhankelijk",25.1,26.4,{"$f":"MROUND(F77*1.0513,0.05)","v":26.400000000000002},"06290106","Stichting Elker"]
["42A02","Vervoer rolstoel","Overig","stuk","Totaal binnen geldigheidsduur of tijdsonafhankelijk",24.35,26.4,{"$f":"MROUND(F78*1.0513,0.05)","v":25.6},"30300397","Stichting De Trans"]
["42A02","Vervoer rolstoel","Overig","stuk","Totaal binnen geldigheidsduur of tijdsonafhankelijk",24.55,26.4,{"$f":"MROUND(F79*1.0513,0.05)","v":25.8},"30300685","Stichting 's Heeren Loo Zorggroep"]
["42A02","Vervoer rolstoel","Overig","stuk","Totaal binnen geldigheidsduur of tijdsonafhankelijk",25.1,26.4,{"$f":"MROUND(F80*1.0513,0.05)","v":26.400000000000002},65651117,"Stichting De Zijlen"]
["42A02","Vervoer rolstoel","Overig","stuk","Totaal binnen geldigheidsduur of tijdsonafhankelijk",25.1,26.4,{"$f":"MROUND(F81*1.0513,0.05)","v":26.400000000000002},"65656687","Stichting Cosis"]
["43A06","Verblijf Jeugdhulp Plus","Jeugdhulp Plus","etmaal","Totaal binnen geldigheidsduur of tijdsonafhankelijk",821.02,null,"ntb","06290106","Stichting Elker"]
["43A08","Ouderschapsdiagnostiek met opname","Verblijf/ opname","etmaal","Totaal binnen geldigheidsduur of tijdsonafhankelijk",456.65000000000003,480.1,{"$f":"MROUND(F83*1.0513,0.05)","v":480.1},"98103043","Zorg Anders B.V."]
["43A11","Logeren hoog intensief","Logeren / Respijtzorg","etmaal","Totaal binnen geldigheidsduur of tijdsonafhankelijk",null,395.1,395.1,6290106,"Stichting Elker"]
["43A11","Logeren hoog intensief","Logeren / Respijtzorg","etmaal","Totaal binnen geldigheidsduur of tijdsonafhankelijk",375.8,395.1,{"$f":"MROUND(F85*1.0513,0.05)","v":395.1},"65656687","Stichting Cosis"]
["43A11","Logeren hoog intensief","Logeren / Respijtzorg","etmaal","Totaal binnen geldigheidsduur of tijdsonafhankelijk",375.8,395.1,395.1,73730183,"Overstag Zorg B.V."]
["43A11","Logeren hoog intensief","Logeren / Respijtzorg","etmaal","Totaal binnen geldigheidsduur of tijdsonafhankelijk",375.8,395.1,395.1,73730415,"Omega Groep B.V."]
["43A11","Logeren hoog intensief","Logeren / Respijtzorg","etmaal","Totaal binnen geldigheidsduur of tijdsonafhankelijk",375.8,395.1,395.1,"75751904","Coöperatie Dichtbij U.A."]
["43A11","Logeren hoog intensief","Logeren / Respijtzorg","etmaal","Totaal binnen geldigheidsduur of tijdsonafhankelijk",375.8,395.1,395.1,"98099724","Stichting Amigo"]
["43A11","Logeren hoog intensief","Logeren / Respijtzorg","etmaal","Totaal binnen geldigheidsduur of tijdsonafhankelijk",315.70000000000005,395.1,331.90000000000003,98106367,"Station Noord B.V."]
["43A11","Logeren hoog intensief","Logeren / Respijtzorg","etmaal","Totaal binnen geldigheidsduur of tijdsonafhankelijk",375.8,395.1,{"$f":"F91","v":375.8},98107576,"Even(T)Huis"]
["43A35","Verblijf licht","Verblijf/ opname","etmaal","Totaal binnen geldigheidsduur of tijdsonafhankelijk",162.15,170.45,{"$f":"MROUND(F92*1.0513,0.05)","v":170.45000000000002},"06290106","Stichting Elker"]
["43A35","Verblijf licht","Verblijf/ opname","etmaal","Totaal binnen geldigheidsduur of tijdsonafhankelijk",null,170.45,170.45,41528449,"Solid Zorg&Welzijn"]
["43A35","Verblijf licht","Verblijf/ opname","etmaal","Totaal binnen geldigheidsduur of tijdsonafhankelijk",158.9,170.45,{"$f":"MROUND(F94*1.0513,0.05)","v":167.05},"72727340","Pi-groep Zorg B.V."]
["43A35","Verblijf licht","Verblijf/ opname","etmaal","Totaal binnen geldigheidsduur of tijdsonafhankelijk",162.15,170.45,170.45000000000002,"73730146","Cura XL B.V."]
["43A35","Verblijf licht","Verblijf/ opname","etmaal","Totaal binnen geldigheidsduur of tijdsonafhankelijk",162.15,170.45,170.45000000000002,73730415,"Omega Groep B.V."]
["43A35","Verblijf licht","Verblijf/ opname","etmaal","Totaal binnen geldigheidsduur of tijdsonafhankelijk",162.15,170.45,170.45000000000002,"75751904","Coöperatie Dichtbij U.A."]
["43A35","Verblijf licht","Verblijf/ opname","etmaal","Totaal binnen geldigheidsduur of tijdsonafhankelijk",150.70000000000002,170.45,158.45000000000002,75752422,"La Luna Care B.V."]
["43A35","Verblijf licht","Verblijf/ opname","etmaal","Totaal binnen geldigheidsduur of tijdsonafhankelijk",162.15,170.45,170.45000000000002,78780153,"GeWoon begeleiding B.V."]
["43A35","Verblijf licht","Verblijf/ opname","etmaal","Totaal binnen geldigheidsduur of tijdsonafhankelijk",162.15,170.45,170.45000000000002,90054404,"La Hacienda B.V."]
["43A35","Verblijf licht","Verblijf/ opname","etmaal","Totaal binnen geldigheidsduur of tijdsonafhankelijk",155.15,170.45,163.10000000000002,"90066114","Het Naoberhuis B.V."]
["43A35","Verblijf licht","Verblijf/ opname","etmaal","Totaal binnen geldigheidsduur of tijdsonafhankelijk",158.25,170.45,{"$f":"G102","v":170.45},"98098852","Statera Jeugd en Gezin B.V."]
["43A35","Verblijf licht","Verblijf/ opname","etmaal","Totaal binnen geldigheidsduur of tijdsonafhankelijk",162.15,170.45,{"$f":"MROUND(F103*1.0513,0.05)","v":170.45000000000002},"98099724","Stichting Amigo"]
["43A35","Verblijf licht","Verblijf/ opname","etmaal","Totaal binnen geldigheidsduur of tijdsonafhankelijk",142.80000000000001,170.45,{"$f":"MROUND(F104*1.0513,0.05)","v":150.15},"98101596","Xperanza Nederland B.V."]
["43A35","Verblijf licht","Verblijf/ opname","etmaal","Totaal binnen geldigheidsduur of tijdsonafhankelijk",162.15,170.45,{"$f":"MROUND(F105*1.0513,0.05)","v":170.45000000000002},"98102383","Cornerstones Jeugdzorg B.V."]
["43A35","Verblijf licht","Verblijf/ opname","etmaal","Totaal binnen geldigheidsduur of tijdsonafhankelijk",149.55000000000001,170.45,{"$f":"MROUND(F106*1.0513,0.05)","v":157.20000000000002},"98102631","Zorg en Coaching Noord Nederland B.V."]
["43A35","Verblijf licht","Verblijf/ opname","etmaal","Totaal binnen geldigheidsduur of tijdsonafhankelijk",null,170.45,169.5,"98104067","Gezinshuis Margriet"]
["43A35","Verblijf licht","Verblijf/ opname","etmaal","Totaal binnen geldigheidsduur of tijdsonafhankelijk",162.15,170.45,{"$f":"MROUND(F108*1.0513,0.05)","v":170.45000000000002},"98104252","Coöperatie Stee 050"]
["43A35","Verblijf licht","Verblijf/ opname","etmaal","Totaal binnen geldigheidsduur of tijdsonafhankelijk",null,170.45,170.45,"98104360","Roccohoeve B.V."]
["43A35","Verblijf licht","Verblijf/ opname","etmaal","Totaal binnen geldigheidsduur of tijdsonafhankelijk",null,170.45,168.25,98104386,"Soliris Zorg B.V."]
["43A35","Verblijf licht","Verblijf/ opname","etmaal","Totaal binnen geldigheidsduur of tijdsonafhankelijk",162.15,170.45,{"$f":"MROUND(F111*1.0513,0.05)","v":170.45000000000002},"98105913","Zorgkracht 12, de Noordelijke Zorgcoöperatie U.A."]
["43A35","Verblijf licht","Verblijf/ opname","etmaal","Totaal binnen geldigheidsduur of tijdsonafhankelijk",136.25,170.45,{"$f":"MROUND(F112*1.0513,0.05)","v":143.25},98106367,"Station Noord B.V."]
["43A35","Verblijf licht","Verblijf/ opname","etmaal","Totaal binnen geldigheidsduur of tijdsonafhankelijk",null,170.45,170.45,98107397,"Dongala Zorg B.V."]
["43A37","Verblijfstraject middelzwaar","Verblijf/ opname","etmaal","Totaal binnen geldigheidsduur of tijdsonafhankelijk",367.05,418.6,{"$f":"G114","v":418.6},"06290105","Stichting Verslavingszorg Noord Nederland"]
["43A37","Verblijfstraject middelzwaar","Verblijf/ opname","etmaal","Totaal binnen geldigheidsduur of tijdsonafhankelijk",398.15000000000003,418.6,{"$f":"MROUND(F115*1.0513,0.05)","v":418.6},"06290106","Stichting Elker"]
["43A37","Verblijfstraject middelzwaar","Verblijf/ opname","etmaal","Totaal binnen geldigheidsduur of tijdsonafhankelijk",294,418.6,309.10000000000002,"30300514","Stichting Ambiq"]
["43A37","Verblijfstraject middelzwaar","Verblijf/ opname","etmaal","Totaal binnen geldigheidsduur of tijdsonafhankelijk",390.35,418.6,410.35,"30300685","Stichting 's Heeren Loo Zorggroep"]
["43A37","Verblijfstraject middelzwaar","Verblijf/ opname","etmaal","Totaal binnen geldigheidsduur of tijdsonafhankelijk",398.15000000000003,418.6,418.6,65651117,"Stichting De Zijlen"]
["43A37","Verblijfstraject middelzwaar","Verblijf/ opname","etmaal","Totaal binnen geldigheidsduur of tijdsonafhankelijk",398.15000000000003,418.6,418.6,"65656687","Stichting Cosis"]
["43A37","Verblijfstraject middelzwaar","Verblijf/ opname","etmaal","Totaal binnen geldigheidsduur of tijdsonafhankelijk",398.15000000000003,418.6,418.6,"72727349","Stichting Fier"]
["43A37","Verblijfstraject middelzwaar","Verblijf/ opname","etmaal","Totaal binnen geldigheidsduur of tijdsonafhankelijk",384.7,418.6,{"$f":"MROUND(F121*1.0403,0.05)","v":400.20000000000005},"72727446","Stichting Buurderij De Wilde Haan"]
["43A37","Verblijfstraject middelzwaar","Verblijf/ opname","etmaal","Totaal binnen geldigheidsduur of tijdsonafhankelijk",398.15000000000003,418.6,{"$f":"MROUND(F122*1.0513,0.05)","v":418.6},"73730146","Cura XL B.V."]
["43A37","Verblijfstraject middelzwaar","Verblijf/ opname","etmaal","Totaal binnen geldigheidsduur of tijdsonafhankelijk",398.15000000000003,418.6,418.6,73730183,"Overstag Zorg B.V."]
["43A37","Verblijfstraject middelzwaar","Verblijf/ opname","etmaal","Totaal binnen geldigheidsduur of tijdsonafhankelijk",398.15000000000003,418.6,418.6,73730305,"Stichting Yorneo Beheer"]
["43A37","Verblijfstraject middelzwaar","Verblijf/ opname","etmaal","Totaal binnen geldigheidsduur of tijdsonafhankelijk",398.15000000000003,418.6,418.6,90054404,"La Hacienda B.V."]
["43A37","Verblijfstraject middelzwaar","Verblijf/ opname","etmaal","Totaal binnen geldigheidsduur of tijdsonafhankelijk",398.15000000000003,418.6,418.6,98099048,"Stichting Leger des Heils Welzijns- en Gezondheidszorg"]
["43A37","Verblijfstraject middelzwaar","Verblijf/ opname","etmaal","Totaal binnen geldigheidsduur of tijdsonafhankelijk",398.15000000000003,418.6,418.6,"98099724","Stichting Amigo"]
["43A37","Verblijfstraject middelzwaar","Verblijf/ opname","etmaal","Totaal binnen geldigheidsduur of tijdsonafhankelijk",398.15,418.6,418.6,98101345,"Calidad B.V."]
["43A37","Verblijfstraject middelzwaar","Verblijf/ opname","etmaal","Totaal binnen geldigheidsduur of tijdsonafhankelijk",350.65,418.6,368.65000000000003,"98101596","Xperanza Nederland B.V."]
["43A37","Verblijfstraject middelzwaar","Verblijf/ opname","etmaal","Totaal binnen geldigheidsduur of tijdsonafhankelijk",359.90000000000003,418.6,378.35,98102110,"Feniks Zorg en Jeugd B.V."]
["43A37","Verblijfstraject middelzwaar","Verblijf/ opname","etmaal","Totaal binnen geldigheidsduur of tijdsonafhankelijk",388.45000000000005,418.6,408.40000000000003,"98103043","Zorg Anders B.V."]
["43A37","Verblijfstraject middelzwaar","Verblijf/ opname","etmaal","Totaal binnen geldigheidsduur of tijdsonafhankelijk",null,418.6,418.6,98104119,"Stichting ZorgInitiatief de Bosk"]
["43A37","Verblijfstraject middelzwaar","Verblijf/ opname","etmaal","Totaal binnen geldigheidsduur of tijdsonafhankelijk",398.15,418.6,{"$f":"MROUND(F133*1.0513,0.05)","v":418.6},98105037,"De Ruumte B.V."]
["43A37","Verblijfstraject middelzwaar","Verblijf/ opname","etmaal","Totaal binnen geldigheidsduur of tijdsonafhankelijk",398.15000000000003,418.6,{"$f":"MROUND(F134*1.0513,0.05)","v":418.6},"98105913","Zorgkracht 12, de Noordelijke Zorgcoöperatie U.A."]
["43A37","Verblijfstraject middelzwaar","Verblijf/ opname","etmaal","Totaal binnen geldigheidsduur of tijdsonafhankelijk",398,418.6,{"$f":"F135","v":398},98105917,"X-Tense B.V."]
["43A37","Verblijfstraject middelzwaar","Verblijf/ opname","etmaal","Totaal binnen geldigheidsduur of tijdsonafhankelijk",377.85,418.6,{"$f":"MROUND(F136*1.0513,0.05)","v":397.25},98106367,"Station Noord B.V."]
["43A38","Verblijfstraject zwaar","Verblijf/ opname","etmaal","Totaal binnen geldigheidsduur of tijdsonafhankelijk",454.90000000000003,478.25,478.25,"06290106","Stichting Elker"]
["43A38","Verblijfstraject zwaar","Verblijf/ opname","etmaal","Totaal binnen geldigheidsduur of tijdsonafhankelijk",454.9,478.25,478.25,22227299,"Stichting Yes We Can Clinics"]
["43A38","Verblijfstraject zwaar","Verblijf/ opname","etmaal","Totaal binnen geldigheidsduur of tijdsonafhankelijk",454.90000000000003,478.25,478.25,"30300514","Stichting Ambiq"]
["43A38","Verblijfstraject zwaar","Verblijf/ opname","etmaal","Totaal binnen geldigheidsduur of tijdsonafhankelijk",446,478.25,468.90000000000003,"30300685","Stichting 's Heeren Loo Zorggroep"]
["43A38","Verblijfstraject zwaar","Verblijf/ opname","etmaal","Totaal binnen geldigheidsduur of tijdsonafhankelijk",454.90000000000003,478.25,478.25,"65656687","Stichting Cosis"]
["43A38","Verblijfstraject zwaar","Verblijf/ opname","etmaal","Totaal binnen geldigheidsduur of tijdsonafhankelijk",454.90000000000003,478.25,478.25,"72727349","Stichting Fier"]
["43A38","Verblijfstraject zwaar","Verblijf/ opname","etmaal","Totaal binnen geldigheidsduur of tijdsonafhankelijk",454.90000000000003,478.25,478.25,73730415,"Omega Groep B.V."]
["43A38","Verblijfstraject zwaar","Verblijf/ opname","etmaal","Totaal binnen geldigheidsduur of tijdsonafhankelijk",454.90000000000003,478.25,478.25,98099048,"Stichting Leger des Heils Welzijns- en Gezondheidszorg"]
["43A38","Verblijfstraject zwaar","Verblijf/ opname","etmaal","Totaal binnen geldigheidsduur of tijdsonafhankelijk",400.6,478.25,421.15000000000003,"98101596","Xperanza Nederland B.V."]
["43B02","Verblijf Jeugdhulp Plus (Drenthe)","Jeugdhulp Plus","etmaal","Totaal binnen geldigheidsduur of tijdsonafhankelijk",null,"nvt","ntb","06290106","Stichting Elker"]
["43B12","Voorwaardelijke machtiging gesloten jeugdhulp","Jeugdhulp Plus","stuk (per half jaar)","Totaal binnen geldigheidsduur of tijdsonafhankelijk",0,"nvt",0,"06290106","Stichting Elker"]
["43B19","Verblijfstraject extra zwaar","Verblijf/ opname","etmaal","Totaal binnen geldigheidsduur of tijdsonafhankelijk",478.40000000000003,502.95,{"$f":"MROUND(F148*1.0513,0.05)","v":502.95000000000005},"72727349","Stichting Fier"]
["43G01","Specialistische begeleiding/behandeling pleegzorg","Verblijf/ opname","uur","per week",113.4,119.2,119.2,"06290106","Stichting Elker"]
["43G01","Specialistische begeleiding/behandeling pleegzorg","Verblijf/ opname","uur","per week",113.4,119.2,119.2,73730305,"Stichting Yorneo Beheer"]
["43G01","Specialistische begeleiding/behandeling pleegzorg","Verblijf/ opname","uur","per week",113.4,119.2,119.2,98099048,"Stichting Leger des Heils Welzijns- en Gezondheidszorg"]
["43G01","Specialistische begeleiding/behandeling pleegzorg","Verblijf/ opname","uur","per week",109.35000000000001,119.2,114.95,98099350,"William Schrikker Stichting Gezinsvormen"]
["43G08","Verblijf middel woonhoeve","Verblijf/ opname","etmaal","Totaal binnen geldigheidsduur of tijdsonafhankelijk",118.7,124.8,124.80000000000001,"75751904","Coöperatie Dichtbij U.A."]
["43G08","Verblijf middel woonhoeve","Verblijf/ opname","etmaal","Totaal binnen geldigheidsduur of tijdsonafhankelijk",114.4,124.8,120.25,98101742,"Zorgboerderij Veldzicht Zeegse"]
["43G08","Verblijf middel woonhoeve","Verblijf/ opname","etmaal","Totaal binnen geldigheidsduur of tijdsonafhankelijk",110.25,124.8,115.9,"98103021","KeuningsHof B.V."]
["43G08","Verblijf middel woonhoeve","Verblijf/ opname","etmaal","Totaal binnen geldigheidsduur of tijdsonafhankelijk",109.95,124.8,{"$f":"MROUND(F156*1.0403,0.05)","v":114.4},98106901,"Vossenburght B.V."]
["43G09","Verblijf middel gezinshuis","Verblijf/ opname","etmaal","per week",131.9,138.65,{"$f":"MROUND(F157*1.0513,0.05)","v":138.65},"06290106","Stichting Elker"]
["43G09","Verblijf middel gezinshuis","Verblijf/ opname","etmaal","per week",131.9,138.65,{"$f":"MROUND(F158*1.0513,0.05)","v":138.65},65651117,"Stichting De Zijlen"]
["43G09","Verblijf middel gezinshuis","Verblijf/ opname","etmaal","per week",131.9,138.65,{"$f":"MROUND(F159*1.0513,0.05)","v":138.65},"65656687","Stichting Cosis"]
["43G09","Verblijf middel gezinshuis","Verblijf/ opname","etmaal","per week",131.9,138.65,{"$f":"MROUND(F160*1.0513,0.05)","v":138.65},73730415,"Omega Groep B.V."]
["43G09","Verblijf middel gezinshuis","Verblijf/ opname","etmaal","per week",131.9,138.65,{"$f":"MROUND(F161*1.0513,0.05)","v":138.65},"75751904","Coöperatie Dichtbij U.A."]
["43G09","Verblijf middel gezinshuis","Verblijf/ opname","etmaal","per week",128.1,138.65,{"$f":"MROUND(F162*1.0403,0.05)","v":133.25},90019236,"Kinderconsulent Groningen"]
["43G09","Verblijf middel gezinshuis","Verblijf/ opname","etmaal","per week",129.30000000000001,138.65,{"$f":"MROUND(F163*1.0513,0.05)","v":135.95000000000002},"90066114","Het Naoberhuis B.V."]
["43G09","Verblijf middel gezinshuis","Verblijf/ opname","etmaal","per week",131.9,138.65,138.65,"98100080","Stichting Petten Zorg"]
["43G09","Verblijf middel gezinshuis","Verblijf/ opname","etmaal","per week",131.9,138.65,138.65,"98102383","Cornerstones Jeugdzorg B.V."]
["43G09","Verblijf middel gezinshuis","Verblijf/ opname","etmaal","per week",131.9,138.65,138.65,"98105913","Zorgkracht 12, de Noordelijke Zorgcoöperatie U.A."]
["43G10","Verblijf middel gezinshuis-plus","Verblijf/ opname","etmaal","per week",184.6,194.05,194.05,"06290106","Stichting Elker"]
["43G10","Verblijf middel gezinshuis-plus","Verblijf/ opname","etmaal","per week",180.95000000000002,194.05,190.25,"30300685","Stichting 's Heeren Loo Zorggroep"]
["43G10","Verblijf middel gezinshuis-plus","Verblijf/ opname","etmaal","per week",184.6,194.05,194.05,65651117,"Stichting De Zijlen"]
["43G10","Verblijf middel gezinshuis-plus","Verblijf/ opname","etmaal","per week",184.6,194.05,194.05,"65656687","Stichting Cosis"]
["43G10","Verblijf middel gezinshuis-plus","Verblijf/ opname","etmaal","per week",184.6,194.05,194.05,"66660705","Stichting Driestroom"]
["43G10","Verblijf middel gezinshuis-plus","Verblijf/ opname","etmaal","per week",184.6,194.05,194.05,73730305,"Stichting Yorneo Beheer"]
["43G10","Verblijf middel gezinshuis-plus","Verblijf/ opname","etmaal","per week",184.6,194.05,194.05,73730415,"Omega Groep B.V."]
["43G10","Verblijf middel gezinshuis-plus","Verblijf/ opname","etmaal","per week",184.6,194.05,194.05,98099155,"Stichting Siriz"]
["43G10","Verblijf middel gezinshuis-plus","Verblijf/ opname","etmaal","per week",177.95000000000002,194.05,187.10000000000002,98099350,"William Schrikker Stichting Gezinsvormen"]
["43G10","Verblijf middel gezinshuis-plus","Verblijf/ opname","etmaal","per week",184.6,194.05,194.05,"98102383","Cornerstones Jeugdzorg B.V."]
["43G10","Verblijf middel gezinshuis-plus","Verblijf/ opname","etmaal","per week",166.85000000000002,194.05,175.4,"98104067","Gezinshuis Margriet"]
["43G10","Verblijf middel gezinshuis-plus","Verblijf/ opname","etmaal","per week",184.6,194.05,194.05,"98105913","Zorgkracht 12, de Noordelijke Zorgcoöperatie U.A."]
["43G11","Opname kort intensief","Verblijf/ opname","etmaal","Totaal binnen geldigheidsduur of tijdsonafhankelijk",477.25,501.75,501.75,"06290104","Stichting Accare"]
["43G11","Opname kort intensief","Verblijf/ opname","etmaal","Totaal binnen geldigheidsduur of tijdsonafhankelijk",440,501.75,{"$f":"G180","v":501.75},"06290105","Stichting Verslavingszorg Noord Nederland"]
["43G12","Klinisch verblijf Accare","Klinisch verblijf","etmaal","Totaal binnen geldigheidsduur of tijdsonafhankelijk",null,"nvt","nvt","06290104","Stichting Accare"]
["43G13","Verlengd klinisch verblijf Accare","Klinisch verblijf","etmaal","Totaal binnen geldigheidsduur of tijdsonafhankelijk",null,"nvt","nvt","06290104","Stichting Accare"]
["43G19","Kleinschalige Voorziening ombouwopdracht SPUK","Verblijf ","etmaal",null,661.25,695.15,{"$f":"MROUND(F183*1.0513,0.05)","v":695.15000000000009},6290106,"Stichting Elker"]
["43G19","Kleinschalige Voorziening ombouwopdracht SPUK","Verblijf ","etmaal",null,661.25,695.15,{"$f":"MROUND(F184*1.0513,0.05)","v":695.15000000000009},30300514,"Stichting Ambiq"]
["43G19","Kleinschalige Voorziening ombouwopdracht SPUK","Verblijf ","etmaal",null,661.25,695.15,{"$f":"MROUND(F185*1.0513,0.05)","v":695.15000000000009},98099048,"Stichting Leger des Heils Welzijns- en Gezondheidszorg"]
["44A07","Pleegzorg","Verblijf/ opname","etmaal","per week",52.75,55.45,56.7,"06290106","Stichting Elker"]
["44A07","Pleegzorg","Verblijf/ opname","etmaal","per week",52.75,55.45,56.7,73730305,"Stichting Yorneo Beheer"]
["44A07","Pleegzorg","Verblijf/ opname","etmaal","per week",52.75,55.45,56.7,98099048,"Stichting Leger des Heils Welzijns- en Gezondheidszorg"]
["44A07","Pleegzorg","Verblijf/ opname","etmaal","per week",52.75,55.45,56.7,98099350,"William Schrikker Stichting Gezinsvormen"]
["44A09","Logeren laag intensief","Logeren / Respijtzorg","etmaal","Totaal binnen geldigheidsduur of tijdsonafhankelijk",237.3,249.45,{"$f":"MROUND(F190*1.0513,0.05)","v":249.45000000000002},"06290106","Stichting Elker"]
["44A09","Logeren laag intensief","Logeren / Respijtzorg","etmaal","Totaal binnen geldigheidsduur of tijdsonafhankelijk",213.70000000000002,249.45,{"$f":"F191","v":213.70000000000002},41526844,"Zorg Op Stee I B.V."]
["44A09","Logeren laag intensief","Logeren / Respijtzorg","etmaal","Totaal binnen geldigheidsduur of tijdsonafhankelijk",237.3,249.45,{"$f":"MROUND(F192*1.0513,0.05)","v":249.45000000000002},65651117,"Stichting De Zijlen"]
["44A09","Logeren laag intensief","Logeren / Respijtzorg","etmaal","Totaal binnen geldigheidsduur of tijdsonafhankelijk",237.3,249.45,{"$f":"MROUND(F193*1.0513,0.05)","v":249.45000000000002},"65656687","Stichting Cosis"]
["44A09","Logeren laag intensief","Logeren / Respijtzorg","etmaal","Totaal binnen geldigheidsduur of tijdsonafhankelijk",218.3,249.45,{"$f":"MROUND(F194*1.0513,0.05)","v":229.5},"73730198","De Kasparhoeve B.V."]
["44A09","Logeren laag intensief","Logeren / Respijtzorg","etmaal","Totaal binnen geldigheidsduur of tijdsonafhankelijk",237.3,249.45,{"$f":"MROUND(F195*1.0513,0.05)","v":249.45000000000002},73730415,"Omega Groep B.V."]
["44A09","Logeren laag intensief","Logeren / Respijtzorg","etmaal","Totaal binnen geldigheidsduur of tijdsonafhankelijk",237.3,249.45,{"$f":"MROUND(F196*1.0513,0.05)","v":249.45000000000002},"75751904","Coöperatie Dichtbij U.A."]
["44A09","Logeren laag intensief","Logeren / Respijtzorg","etmaal","Totaal binnen geldigheidsduur of tijdsonafhankelijk",224.85,249.45,{"$f":"MROUND(F197*1.0403,0.05)","v":233.9},90019236,"Kinderconsulent Groningen"]
["44A09","Logeren laag intensief","Logeren / Respijtzorg","etmaal","Totaal binnen geldigheidsduur of tijdsonafhankelijk",237.3,249.45,{"$f":"MROUND(F198*1.0513,0.05)","v":249.45000000000002},90054404,"La Hacienda B.V."]
["44A09","Logeren laag intensief","Logeren / Respijtzorg","etmaal","Totaal binnen geldigheidsduur of tijdsonafhankelijk",195.45000000000002,249.45,205.5,"90066114","Het Naoberhuis B.V."]
["44A09","Logeren laag intensief","Logeren / Respijtzorg","etmaal","Totaal binnen geldigheidsduur of tijdsonafhankelijk",237.3,249.45,249.45000000000002,"98100080","Stichting Petten Zorg"]
["44A09","Logeren laag intensief","Logeren / Respijtzorg","etmaal","Totaal binnen geldigheidsduur of tijdsonafhankelijk",237.3,249.45,249.45000000000002,98100320,"Jemalupe"]
["44A09","Logeren laag intensief","Logeren / Respijtzorg","etmaal","Totaal binnen geldigheidsduur of tijdsonafhankelijk",228.75,249.45,240.5,98101742,"Zorgboerderij Veldzicht Zeegse"]
["44A09","Logeren laag intensief","Logeren / Respijtzorg","etmaal","Totaal binnen geldigheidsduur of tijdsonafhankelijk",237.3,249.45,249.45000000000002,"98102383","Cornerstones Jeugdzorg B.V."]
["44A09","Logeren laag intensief","Logeren / Respijtzorg","etmaal","Totaal binnen geldigheidsduur of tijdsonafhankelijk",214.5,249.45,{"$f":"F204","v":214.5},"98102979","Stichting de Buffelaar"]
["44A09","Logeren laag intensief","Logeren / Respijtzorg","etmaal","Totaal binnen geldigheidsduur of tijdsonafhankelijk",208.45000000000002,249.45,{"$f":"F205","v":208.45000000000002},98103649,"Momento"]
["44A09","Logeren laag intensief","Logeren / Respijtzorg","etmaal","Totaal binnen geldigheidsduur of tijdsonafhankelijk",210.75,249.45,{"$f":"MROUND(F206*1.0513,0.05)","v":221.55},"98104067","Gezinshuis Margriet"]
["44A09","Logeren laag intensief","Logeren / Respijtzorg","etmaal","Totaal binnen geldigheidsduur of tijdsonafhankelijk",null,249.45,249.45,98104119,"Stichting ZorgInitiatief de Bosk"]
["44A09","Logeren laag intensief","Logeren / Respijtzorg","etmaal","Totaal binnen geldigheidsduur of tijdsonafhankelijk",213.45000000000002,249.45,{"$f":"MROUND(F208*1.0513,0.05)","v":224.4},"98104360","Roccohoeve B.V."]
["44A09","Logeren laag intensief","Logeren / Respijtzorg","etmaal","Totaal binnen geldigheidsduur of tijdsonafhankelijk",237.3,249.45,{"$f":"MROUND(F209*1.0513,0.05)","v":249.45000000000002},"98105913","Zorgkracht 12, de Noordelijke Zorgcoöperatie U.A."]
["44A09","Logeren laag intensief","Logeren / Respijtzorg","etmaal","Totaal binnen geldigheidsduur of tijdsonafhankelijk",199.35000000000002,249.45,{"$f":"MROUND(F210*1.0513,0.05)","v":209.60000000000002},98106367,"Station Noord B.V."]
["44A09","Logeren laag intensief","Logeren / Respijtzorg","etmaal","Totaal binnen geldigheidsduur of tijdsonafhankelijk",219.85425000000001,249.45,{"$f":"MROUND(F211*1.0403,0.05)","v":228.70000000000002},98106901,"Vossenburght B.V."]
["44A09","Logeren laag intensief","Logeren / Respijtzorg","etmaal","Totaal binnen geldigheidsduur of tijdsonafhankelijk",237.3,249.45,{"$f":"F212","v":237.3},98107576,"Even(T)Huis"]
["44A33","Deeltijd respijtzorg voor jeugdigen met meervoudige beperkingen","Logeren / Respijtzorg","uur","Totaal binnen geldigheidsduur of tijdsonafhankelijk",43.75,74.95,{"$f":"MROUND(F213*1.0513,0.05)","v":46},"65656687","Stichting Cosis"]
["44B10","Deeltijd pleegzorg","Verblijf/ opname","etmaal","per week",89.2,93.8,93.800000000000011,"06290106","Stichting Elker"]
["44B10","Deeltijd pleegzorg","Verblijf/ opname","etmaal","per week",89.2,93.8,93.800000000000011,73730305,"Stichting Yorneo Beheer"]
["44B10","Deeltijd pleegzorg","Verblijf/ opname","etmaal","per week",89.2,93.8,93.800000000000011,98099048,"Stichting Leger des Heils Welzijns- en Gezondheidszorg"]
["44B10","Deeltijd pleegzorg","Verblijf/ opname","etmaal","per week",89.2,93.8,93.800000000000011,98099350,"William Schrikker Stichting Gezinsvormen"]
["44G02","Verblijf langdurig (beschermd) wonen","Verblijf/ opname","etmaal","per week",226.25,242.55,237.85000000000002,"30300685","Stichting 's Heeren Loo Zorggroep"]
["44G02","Verblijf langdurig (beschermd) wonen","Verblijf/ opname","etmaal","per week",230.70000000000002,242.55,242.55,65651117,"Stichting De Zijlen"]
["44G02","Verblijf langdurig (beschermd) wonen","Verblijf/ opname","etmaal","per week",230.70000000000002,242.55,242.55,"65656687","Stichting Cosis"]
["44G02","Verblijf langdurig (beschermd) wonen","Verblijf/ opname","etmaal","per week",230.70000000000002,242.55,242.55,"73730146","Cura XL B.V."]
["44G02","Verblijf langdurig (beschermd) wonen","Verblijf/ opname","etmaal","per week",212.55,242.55,223.45000000000002,"73730198","De Kasparhoeve B.V."]
["44G02","Verblijf langdurig (beschermd) wonen","Verblijf/ opname","etmaal","per week",206.75,242.55,217.35000000000002,"73730341","De Beukenhorst B.V."]
["44G02","Verblijf langdurig (beschermd) wonen","Verblijf/ opname","etmaal","per week",230.70000000000002,242.55,242.55,73730415,"Omega Groep B.V."]
["44G02","Verblijf langdurig (beschermd) wonen","Verblijf/ opname","etmaal","per week",219.15,242.55,230.4,"75751904","Coöperatie Dichtbij U.A."]
["44G02","Verblijf langdurig (beschermd) wonen","Verblijf/ opname","etmaal","per week",214.45000000000002,242.55,225.45000000000002,75752422,"La Luna Care B.V."]
["44G02","Verblijf langdurig (beschermd) wonen","Verblijf/ opname","etmaal","per week",230.70000000000002,242.55,242.55,90054404,"La Hacienda B.V."]
["44G02","Verblijf langdurig (beschermd) wonen","Verblijf/ opname","etmaal","per week",220,242.55,231.3,"90066114","Het Naoberhuis B.V."]
["44G02","Verblijf langdurig (beschermd) wonen","Verblijf/ opname","etmaal","per week",230.70000000000002,242.55,242.55,98099048,"Stichting Leger des Heils Welzijns- en Gezondheidszorg"]
["44G02","Verblijf langdurig (beschermd) wonen","Verblijf/ opname","etmaal","per week",230.70000000000002,242.55,242.55,"98099724","Stichting Amigo"]
["44G02","Verblijf langdurig (beschermd) wonen","Verblijf/ opname","etmaal","per week",230.7,242.55,242.55,98100320,"Jemalupe"]
["44G02","Verblijf langdurig (beschermd) wonen","Verblijf/ opname","etmaal","per week",230.7,242.55,242.55,98101345,"Calidad B.V."]
["44G02","Verblijf langdurig (beschermd) wonen","Verblijf/ opname","etmaal","per week",203.20000000000002,242.55,213.60000000000002,"98101596","Xperanza Nederland B.V."]
["44G02","Verblijf langdurig (beschermd) wonen","Verblijf/ opname","etmaal","per week",213.45000000000002,242.55,224.4,98102110,"Feniks Zorg en Jeugd B.V."]
["44G02","Verblijf langdurig (beschermd) wonen","Verblijf/ opname","etmaal","per week",230.70000000000002,242.55,242.55,"98102383","Cornerstones Jeugdzorg B.V."]
["44G02","Verblijf langdurig (beschermd) wonen","Verblijf/ opname","etmaal","per week",225.10000000000002,242.55,236.65,"98103043","Zorg Anders B.V."]
["44G02","Verblijf langdurig (beschermd) wonen","Verblijf/ opname","etmaal","per week",226.25,242.55,237.85000000000002,"98105037","De Ruumte B.V."]
["44G02","Verblijf langdurig (beschermd) wonen","Verblijf/ opname","etmaal","per week",230.70000000000002,242.55,242.55,"98105913","Zorgkracht 12, de Noordelijke Zorgcoöperatie U.A."]
["44G02","Verblijf langdurig (beschermd) wonen","Verblijf/ opname","etmaal","per week",230,242.55,{"$f":"F239","v":230},98105917,"X-Tense B.V."]
["44G02","Verblijf langdurig (beschermd) wonen","Verblijf/ opname","etmaal","per week",230.70000000000002,242.55,{"$f":"MROUND(F240*1.0513,0.05)","v":242.55},98106367,"Station Noord B.V."]
["44G02","Verblijf langdurig (beschermd) wonen","Verblijf/ opname","etmaal","per week",230.70000000000002,242.55,{"$f":"F241","v":230.70000000000002},98107576,"Even(T)Huis"]
["44G02","Verblijf langdurig (beschermd) wonen","Verblijf/ opname","etmaal","per week",230.7,242.55,{"$f":"MROUND(F242*1.0513,0.05)","v":242.55},98107787,"Chavah B.V."]
["45A04","Individuele begeleiding basis","Ambulant","uur","Totaal binnen geldigheidsduur of tijdsonafhankelijk",81.75,85.95,{"$f":"MROUND(F243*1.0513,0.05)","v":85.95},"06290106","Stichting Elker"]
["45A04","Individuele begeleiding basis","Ambulant","uur","Totaal binnen geldigheidsduur of tijdsonafhankelijk",80.2,85.95,{"$f":"MROUND(F244*1.0513,0.05)","v":84.300000000000011},"30300685","Stichting 's Heeren Loo Zorggroep"]
["45A04","Individuele begeleiding basis","Ambulant","uur","Totaal binnen geldigheidsduur of tijdsonafhankelijk",81.75,85.95,{"$f":"MROUND(F245*1.0513,0.05)","v":85.95},41415236,"Hoeve Paradij"]
["45A04","Individuele begeleiding basis","Ambulant","uur","Totaal binnen geldigheidsduur of tijdsonafhankelijk",81.75,85.95,{"$f":"MROUND(F246*1.0513,0.05)","v":85.95},"41419688","Kindercoach Leersaam"]
["45A04","Individuele begeleiding basis","Ambulant","uur","Totaal binnen geldigheidsduur of tijdsonafhankelijk",78,85.95,{"$f":"F247","v":78},41521628,"Jij bent tov Kindercoaching"]
["45A04","Individuele begeleiding basis","Ambulant","uur","Totaal binnen geldigheidsduur of tijdsonafhankelijk",73.650000000000006,85.95,{"$f":"F248","v":73.650000000000006},41526844,"Zorg Op Stee I B.V."]
["45A04","Individuele begeleiding basis","Ambulant","uur","Totaal binnen geldigheidsduur of tijdsonafhankelijk",72.75,85.95,{"$f":"G249","v":85.95},41528449,"Solid Zorg&Welzijn"]
["45A04","Individuele begeleiding basis","Ambulant","uur","Totaal binnen geldigheidsduur of tijdsonafhankelijk",81.75,85.95,{"$f":"MROUND(F250*1.0513,0.05)","v":85.95},65651117,"Stichting De Zijlen"]
["45A04","Individuele begeleiding basis","Ambulant","uur","Totaal binnen geldigheidsduur of tijdsonafhankelijk",81.75,85.95,85.95,"65656687","Stichting Cosis"]
["45A04","Individuele begeleiding basis","Ambulant","uur","Totaal binnen geldigheidsduur of tijdsonafhankelijk",69.850000000000009,85.95,73.45,73730114,"Syncope"]
["45A04","Individuele begeleiding basis","Ambulant","uur","Totaal binnen geldigheidsduur of tijdsonafhankelijk",81.75,85.95,85.95,"73730144","Cultureel Maatschappelijk Zorgbureau"]
["45A04","Individuele begeleiding basis","Ambulant","uur","Totaal binnen geldigheidsduur of tijdsonafhankelijk",81.75,85.95,85.95,"73730146","Cura XL B.V."]
["45A04","Individuele begeleiding basis","Ambulant","uur","Totaal binnen geldigheidsduur of tijdsonafhankelijk",79.100000000000009,85.95,83.15,73730175,"Stichting Schouder aan Schouder"]
["45A04","Individuele begeleiding basis","Ambulant","uur","Totaal binnen geldigheidsduur of tijdsonafhankelijk",81.75,85.95,85.95,73730183,"Overstag Zorg B.V."]
["45A04","Individuele begeleiding basis","Ambulant","uur","Totaal binnen geldigheidsduur of tijdsonafhankelijk",63.050000000000004,85.95,66.3,73730188,"Team 050 B.V."]
["45A04","Individuele begeleiding basis","Ambulant","uur","Totaal binnen geldigheidsduur of tijdsonafhankelijk",75.05,85.95,78.900000000000006,"73730198","De Kasparhoeve B.V."]
["45A04","Individuele begeleiding basis","Ambulant","uur","Totaal binnen geldigheidsduur of tijdsonafhankelijk",73.5,85.95,77.25,"73730236","Comfortzorg Contract B.V."]
["45A04","Individuele begeleiding basis","Ambulant","uur","Totaal binnen geldigheidsduur of tijdsonafhankelijk",79.400000000000006,85.95,83.45,73730258,"Zorg Intens B.V."]
["45A04","Individuele begeleiding basis","Ambulant","uur","Totaal binnen geldigheidsduur of tijdsonafhankelijk",73.25,85.95,77,"73730341","De Beukenhorst B.V."]
["45A04","Individuele begeleiding basis","Ambulant","uur","Totaal binnen geldigheidsduur of tijdsonafhankelijk",81.75,85.95,85.95,73730415,"Omega Groep B.V."]
["45A04","Individuele begeleiding basis","Ambulant","uur","Totaal binnen geldigheidsduur of tijdsonafhankelijk",64.55,85.95,{"$f":"F263","v":64.55},"73736696","UnLimiteD B.V."]
["45A04","Individuele begeleiding basis","Ambulant","uur","Totaal binnen geldigheidsduur of tijdsonafhankelijk",79.7,85.95,{"$f":"MROUND(F264*1.0513,0.05)","v":83.800000000000011},73737023,"Parlayan B.V."]
["45A04","Individuele begeleiding basis","Ambulant","uur","Totaal binnen geldigheidsduur of tijdsonafhankelijk",81.100000000000009,85.95,85.25,75751252,"Aardema Thuiszorg B.V."]
["45A04","Individuele begeleiding basis","Ambulant","uur","Totaal binnen geldigheidsduur of tijdsonafhankelijk",81.75,85.95,85.95,"75751769","Bloezem Zorg Thuis B.V."]
["45A04","Individuele begeleiding basis","Ambulant","uur","Totaal binnen geldigheidsduur of tijdsonafhankelijk",77.600000000000009,85.95,81.600000000000009,"75751904","Coöperatie Dichtbij U.A."]
["45A04","Individuele begeleiding basis","Ambulant","uur","Totaal binnen geldigheidsduur of tijdsonafhankelijk",75.95,85.95,79.850000000000009,75752422,"La Luna Care B.V."]
["45A04","Individuele begeleiding basis","Ambulant","uur","Totaal binnen geldigheidsduur of tijdsonafhankelijk",81.75,85.95,85.95,78780153,"GeWoon begeleiding B.V."]
["45A04","Individuele begeleiding basis","Ambulant","uur","Totaal binnen geldigheidsduur of tijdsonafhankelijk",77.45,85.95,{"$f":"MROUND(F270*1.0403,0.05)","v":80.550000000000011},90019236,"Kinderconsulent Groningen"]
["45A04","Individuele begeleiding basis","Ambulant","uur","Totaal binnen geldigheidsduur of tijdsonafhankelijk",81.75,85.95,{"$f":"MROUND(F271*1.0513,0.05)","v":85.95},90054404,"La Hacienda B.V."]
["45A04","Individuele begeleiding basis","Ambulant","uur","Totaal binnen geldigheidsduur of tijdsonafhankelijk",70.650000000000006,85.95,{"$f":"MROUND(F272*1.0513,0.05)","v":74.25},"90066114","Het Naoberhuis B.V."]
["45A04","Individuele begeleiding basis","Ambulant","uur","Totaal binnen geldigheidsduur of tijdsonafhankelijk",81.75,85.95,{"$f":"MROUND(F273*1.0513,0.05)","v":85.95},"94063526","Jody Schoolpsychologie"]
["45A04","Individuele begeleiding basis","Ambulant","uur","Totaal binnen geldigheidsduur of tijdsonafhankelijk",58.150000000000006,85.95,{"$f":"F274","v":58.150000000000006},"94063543","Zorgbureau Embrace "]
["45A04","Individuele begeleiding basis","Ambulant","uur","Totaal binnen geldigheidsduur of tijdsonafhankelijk",81.75,85.95,{"$f":"MROUND(F275*1.0513,0.05)","v":85.95},"94063901","Passend Begeleiden"]
["45A04","Individuele begeleiding basis","Ambulant","uur","Totaal binnen geldigheidsduur of tijdsonafhankelijk",81.75,85.95,85.95,94064729,"Pedagogische praktijk Gieten"]
["45A04","Individuele begeleiding basis","Ambulant","uur","Totaal binnen geldigheidsduur of tijdsonafhankelijk",75.75,85.95,79.650000000000006,"94064988","Mindcare Assen B.V."]
["45A04","Individuele begeleiding basis","Ambulant","uur","Totaal binnen geldigheidsduur of tijdsonafhankelijk",80.2,85.95,84.300000000000011,94065636,"Kennis in Kracht B.V."]
["45A04","Individuele begeleiding basis","Ambulant","uur","Totaal binnen geldigheidsduur of tijdsonafhankelijk",78.800000000000011,85.95,82.850000000000009,"94066333","Pedagogische Praktijk Marum"]
["45A04","Individuele begeleiding basis","Ambulant","uur","Totaal binnen geldigheidsduur of tijdsonafhankelijk",81.75,85.95,85.95,"94068859","Westerweelde Pedagogisch Centrum B.V."]
["45A04","Individuele begeleiding basis","Ambulant","uur","Totaal binnen geldigheidsduur of tijdsonafhankelijk",79.7,85.95,{"$f":"G281","v":85.95},"98098852","Statera Jeugd en Gezin B.V."]
["45A04","Individuele begeleiding basis","Ambulant","uur","Totaal binnen geldigheidsduur of tijdsonafhankelijk",81.75,85.95,{"$f":"MROUND(F282*1.0513,0.05)","v":85.95},98099028,"Protestants-Christelijke Stichting Philadelphia Zorg"]
["45A04","Individuele begeleiding basis","Ambulant","uur","Totaal binnen geldigheidsduur of tijdsonafhankelijk",81.75,85.95,{"$f":"MROUND(F283*1.0513,0.05)","v":85.95},98099155,"Stichting Siriz"]
["45A04","Individuele begeleiding basis","Ambulant","uur","Totaal binnen geldigheidsduur of tijdsonafhankelijk",63.35,85.95,{"$f":"MROUND(F284*1.0403,0.05)","v":65.900000000000006},"98099692","Stichting Cerato"]
["45A04","Individuele begeleiding basis","Ambulant","uur","Totaal binnen geldigheidsduur of tijdsonafhankelijk",81.75,85.95,{"$f":"MROUND(F285*1.0513,0.05)","v":85.95},"98100080","Stichting Petten Zorg"]
["45A04","Individuele begeleiding basis","Ambulant","uur","Totaal binnen geldigheidsduur of tijdsonafhankelijk",81.75,85.95,{"$f":"MROUND(F286*1.0513,0.05)","v":85.95},98100320,"Jemalupe"]
["45A04","Individuele begeleiding basis","Ambulant","uur","Totaal binnen geldigheidsduur of tijdsonafhankelijk",81.75,85.95,{"$f":"MROUND(F287*1.0513,0.05)","v":85.95},"98100550","Effect B.V."]
["45A04","Individuele begeleiding basis","Ambulant","uur","Totaal binnen geldigheidsduur of tijdsonafhankelijk",73.900000000000006,85.95,{"$f":"F288","v":73.900000000000006},"98100943","De Slingertuin"]
["45A04","Individuele begeleiding basis","Ambulant","uur","Totaal binnen geldigheidsduur of tijdsonafhankelijk",81.75,85.95,{"$f":"MROUND(F289*1.0513,0.05)","v":85.95},98101345,"Calidad B.V."]
["45A04","Individuele begeleiding basis","Ambulant","uur","Totaal binnen geldigheidsduur of tijdsonafhankelijk",72,85.95,{"$f":"MROUND(F290*1.0513,0.05)","v":75.7},"98101596","Xperanza Nederland B.V."]
["45A04","Individuele begeleiding basis","Ambulant","uur","Totaal binnen geldigheidsduur of tijdsonafhankelijk",78.2,85.95,{"$f":"VLOOKUP(#REF!,'[2]Max tarief 2026'!$A$2:$H$56,8,0)","v":{"$error":"#REF!"}},98101997,"Liganta B.V."]
["45A04","Individuele begeleiding basis","Ambulant","uur","Totaal binnen geldigheidsduur of tijdsonafhankelijk",81.75,85.95,{"$f":"MROUND(F292*1.0513,0.05)","v":85.95},"98102383","Cornerstones Jeugdzorg B.V."]
["45A04","Individuele begeleiding basis","Ambulant","uur","Totaal binnen geldigheidsduur of tijdsonafhankelijk",75.350000000000009,85.95,{"$f":"MROUND(F293*1.0513,0.05)","v":79.2},"98102631","Zorg en Coaching Noord Nederland B.V."]
["45A04","Individuele begeleiding basis","Ambulant","uur","Totaal binnen geldigheidsduur of tijdsonafhankelijk",73.900000000000006,85.95,{"$f":"F294","v":73.900000000000006},"98102979","Stichting de Buffelaar"]
["45A04","Individuele begeleiding basis","Ambulant","uur","Totaal binnen geldigheidsduur of tijdsonafhankelijk",75.95,85.95,{"$f":"MROUND(F295*1.0513,0.05)","v":79.850000000000009},"98103021","KeuningsHof B.V."]
["45A04","Individuele begeleiding basis","Ambulant","uur","Totaal binnen geldigheidsduur of tijdsonafhankelijk",79.7,85.95,{"$f":"MROUND(F296*1.0513,0.05)","v":83.800000000000011},"98103043","Zorg Anders B.V."]
["45A04","Individuele begeleiding basis","Ambulant","uur","Totaal binnen geldigheidsduur of tijdsonafhankelijk",76.45,85.95,{"$f":"MROUND(F297*1.0513,0.05)","v":80.350000000000009},"98103195","Ik ben een regenboog"]
["45A04","Individuele begeleiding basis","Ambulant","uur","Totaal binnen geldigheidsduur of tijdsonafhankelijk",80.45,85.95,{"$f":"MROUND(F298*1.0403,0.05)","v":83.7},"98103331","Zonnestraal Pedagogische Hulp"]
["45A04","Individuele begeleiding basis","Ambulant","uur","Totaal binnen geldigheidsduur of tijdsonafhankelijk",81.75,85.95,{"$f":"MROUND(F299*1.0513,0.05)","v":85.95},98103642,"Stichting Community Support"]
["45A04","Individuele begeleiding basis","Ambulant","uur","Totaal binnen geldigheidsduur of tijdsonafhankelijk",81.75,85.95,{"$f":"MROUND(F300*1.0513,0.05)","v":85.95},"98103733","Ambulante hulpverlening Groningen"]
["45A04","Individuele begeleiding basis","Ambulant","uur","Totaal binnen geldigheidsduur of tijdsonafhankelijk",72.25,85.95,{"$f":"MROUND(F301*1.0513,0.05)","v":75.95},"98104067","Gezinshuis Margriet"]
["45A04","Individuele begeleiding basis","Ambulant","uur","Totaal binnen geldigheidsduur of tijdsonafhankelijk",null,85.95,85.95,98104119,"Stichting ZorgInitiatief de Bosk"]
["45A04","Individuele begeleiding basis","Ambulant","uur","Totaal binnen geldigheidsduur of tijdsonafhankelijk",72.45,85.95,{"$f":"MROUND(F303*1.0513,0.05)","v":76.150000000000006},"98104252","Coöperatie Stee 050"]
["45A04","Individuele begeleiding basis","Ambulant","uur","Totaal binnen geldigheidsduur of tijdsonafhankelijk",81.75,85.95,{"$f":"MROUND(F304*1.0513,0.05)","v":85.95},"98104298","Saul B.V."]
["45A04","Individuele begeleiding basis","Ambulant","uur","Totaal binnen geldigheidsduur of tijdsonafhankelijk",73.5,85.95,{"$f":"MROUND(F305*1.0513,0.05)","v":77.25},"98104360","Roccohoeve B.V."]
["45A04","Individuele begeleiding basis","Ambulant","uur","Totaal binnen geldigheidsduur of tijdsonafhankelijk",null,85.95,82.15,98104386,"Soliris Zorg B.V."]
["45A04","Individuele begeleiding basis","Ambulant","uur","Totaal binnen geldigheidsduur of tijdsonafhankelijk",81.75,85.95,{"$f":"MROUND(F307*1.0513,0.05)","v":85.95},98104681,"Veni Etinam B.V."]
["45A04","Individuele begeleiding basis","Ambulant","uur","Totaal binnen geldigheidsduur of tijdsonafhankelijk",73.400000000000006,85.95,77.150000000000006,98104930,"Zorg en Welzijn Academy Knaap B.V. "]
["45A04","Individuele begeleiding basis","Ambulant","uur","Totaal binnen geldigheidsduur of tijdsonafhankelijk",81.75,85.95,85.95,98105037,"De Ruumte B.V."]
["45A04","Individuele begeleiding basis","Ambulant","uur","Totaal binnen geldigheidsduur of tijdsonafhankelijk",81.75,85.95,85.95,98105723,"Care Forward Noord B.V."]
["45A04","Individuele begeleiding basis","Ambulant","uur","Totaal binnen geldigheidsduur of tijdsonafhankelijk",81.75,85.95,85.95,98105818,"KOEN B.V."]
["45A04","Individuele begeleiding basis","Ambulant","uur","Totaal binnen geldigheidsduur of tijdsonafhankelijk",81.75,85.95,85.95,"98105913","Zorgkracht 12, de Noordelijke Zorgcoöperatie U.A."]
["45A04","Individuele begeleiding basis","Ambulant","uur","Totaal binnen geldigheidsduur of tijdsonafhankelijk",77.95,85.95,{"$f":"F313","v":77.95},98105917,"X-Tense B.V."]
["45A04","Individuele begeleiding basis","Ambulant","uur","Totaal binnen geldigheidsduur of tijdsonafhankelijk",78.800000000000011,85.95,{"$f":"MROUND(F314*1.0513,0.05)","v":82.850000000000009},98106080,"Mij een Zorg B.V."]
["45A04","Individuele begeleiding basis","Ambulant","uur","Totaal binnen geldigheidsduur of tijdsonafhankelijk",68.7,85.95,{"$f":"MROUND(F315*1.0513,0.05)","v":72.2},98106367,"Station Noord B.V."]
["45A04","Individuele begeleiding basis","Ambulant","uur","Totaal binnen geldigheidsduur of tijdsonafhankelijk",75.75,85.95,{"$f":"MROUND(F316*1.0403,0.05)","v":78.800000000000011},98106901,"Vossenburght B.V."]
["45A04","Individuele begeleiding basis","Ambulant","uur","Totaal binnen geldigheidsduur of tijdsonafhankelijk",76.800000000000011,85.95,{"$f":"MROUND(F317*1.0513,0.05)","v":80.75},98107274,"Jongerenzorg Barkema en De Haan B.V."]
["45A04","Individuele begeleiding basis","Ambulant","uur","Totaal binnen geldigheidsduur of tijdsonafhankelijk",73,85.95,{"$f":"F318","v":73},"98107336","Gezinshuis Opaal-de Unieke Regenboog"]
["45A04","Individuele begeleiding basis","Ambulant","uur","Totaal binnen geldigheidsduur of tijdsonafhankelijk",null,85.95,82.1,98107397,"Dongala Zorg B.V."]
["45A04","Individuele begeleiding basis","Ambulant","uur","Totaal binnen geldigheidsduur of tijdsonafhankelijk",77.800000000000011,85.95,{"$f":"F320","v":77.800000000000011},98107576,"Even(T)Huis"]
["45A04","Individuele begeleiding basis","Ambulant","uur","Totaal binnen geldigheidsduur of tijdsonafhankelijk",78,85.95,{"$f":"MROUND(F321*1.0513,0.05)","v":82},"98107597","De Ezelsbrug B.V."]
["45A04","Individuele begeleiding basis","Ambulant","uur","Totaal binnen geldigheidsduur of tijdsonafhankelijk",81.75,85.95,85.95,98107787,"Chavah B.V."]
["45A48","Ouderschapsdiagnostiek: ambulant ","Ambulant","uur","Totaal binnen geldigheidsduur of tijdsonafhankelijk",129.25,135.9,135.9,"06290106","Stichting Elker"]
["45A48","Ouderschapsdiagnostiek: ambulant ","Ambulant","uur","Totaal binnen geldigheidsduur of tijdsonafhankelijk",129.25,135.9,135.9,"94063510","Kinderbijstand (orthopedagogisch onderzoek en advies)"]
["45A48","Ouderschapsdiagnostiek: ambulant ","Ambulant","uur","Totaal binnen geldigheidsduur of tijdsonafhankelijk",129.25,135.9,135.9,98099048,"Stichting Leger des Heils Welzijns- en Gezondheidszorg"]
["45A48","Ouderschapsdiagnostiek: ambulant ","Ambulant","uur","Totaal binnen geldigheidsduur of tijdsonafhankelijk",129.25,135.9,135.9,98105818,"KOEN B.V."]
["45A49","Groepsbegeleiding basis","Ambulant","uur","Totaal binnen geldigheidsduur of tijdsonafhankelijk",20.75,22.15,21.8,"30300685","Stichting 's Heeren Loo Zorggroep"]
["45A49","Groepsbegeleiding basis","Ambulant","uur","Totaal binnen geldigheidsduur of tijdsonafhankelijk",21.05,22.15,22.150000000000002,"73730146","Cura XL B.V."]
["45A49","Groepsbegeleiding basis","Ambulant","uur","Totaal binnen geldigheidsduur of tijdsonafhankelijk",21.05,22.15,22.150000000000002,73730175,"Stichting Schouder aan Schouder"]
["45A49","Groepsbegeleiding basis","Ambulant","uur","Totaal binnen geldigheidsduur of tijdsonafhankelijk",21.05,22.15,22.150000000000002,"75751904","Coöperatie Dichtbij U.A."]
["45A49","Groepsbegeleiding basis","Ambulant","uur","Totaal binnen geldigheidsduur of tijdsonafhankelijk",21.05,22.15,22.150000000000002,90054404,"La Hacienda B.V."]
["45A49","Groepsbegeleiding basis","Ambulant","uur","Totaal binnen geldigheidsduur of tijdsonafhankelijk",21.05,22.15,22.150000000000002,"94068859","Westerweelde Pedagogisch Centrum B.V."]
["45A49","Groepsbegeleiding basis","Ambulant","uur","Totaal binnen geldigheidsduur of tijdsonafhankelijk",19.600000000000001,22.15,20.6,"98103021","KeuningsHof B.V."]
["45A49","Groepsbegeleiding basis","Ambulant","uur","Totaal binnen geldigheidsduur of tijdsonafhankelijk",21.05,22.15,22.150000000000002,"98103195","Ik ben een regenboog"]
["45A49","Groepsbegeleiding basis","Ambulant","uur","Totaal binnen geldigheidsduur of tijdsonafhankelijk",21.05,22.15,22.150000000000002,"98103733","Ambulante hulpverlening Groningen"]
["45A49","Groepsbegeleiding basis","Ambulant","uur","Totaal binnen geldigheidsduur of tijdsonafhankelijk",21.05,22.15,22.150000000000002,"98105913","Zorgkracht 12, de Noordelijke Zorgcoöperatie U.A."]
["45A49","Groepsbegeleiding basis","Ambulant","uur","Totaal binnen geldigheidsduur of tijdsonafhankelijk",20.100000000000001,22.15,21.150000000000002,98107274,"Jongerenzorg Barkema en De Haan B.V."]
["45A49","Groepsbegeleiding basis","Ambulant","uur","Totaal binnen geldigheidsduur of tijdsonafhankelijk",21.05,22.15,{"$f":"F338","v":21.05},98107576,"Even(T)Huis"]
["45A49","Groepsbegeleiding basis","Ambulant","uur","Totaal binnen geldigheidsduur of tijdsonafhankelijk",20.100000000000001,22.15,{"$f":"MROUND(F339*1.0513,0.05)","v":21.150000000000002},"98107597","De Ezelsbrug B.V."]
["45A51","Gezinsbegeleiding basis","Ambulant","uur","Totaal binnen geldigheidsduur of tijdsonafhankelijk",81.75,85.95,85.95,"06290106","Stichting Elker"]
["45A51","Gezinsbegeleiding basis","Ambulant","uur","Totaal binnen geldigheidsduur of tijdsonafhankelijk",71.05,85.95,74.7,"30300685","Stichting 's Heeren Loo Zorggroep"]
["45A51","Gezinsbegeleiding basis","Ambulant","uur","Totaal binnen geldigheidsduur of tijdsonafhankelijk",81.75,85.95,85.95,"53530112","Cedin B.V."]
["45A51","Gezinsbegeleiding basis","Ambulant","uur","Totaal binnen geldigheidsduur of tijdsonafhankelijk",81.75,85.95,85.95,65651117,"Stichting De Zijlen"]
["45A51","Gezinsbegeleiding basis","Ambulant","uur","Totaal binnen geldigheidsduur of tijdsonafhankelijk",81.75,85.95,85.95,"65656687","Stichting Cosis"]
["45A51","Gezinsbegeleiding basis","Ambulant","uur","Totaal binnen geldigheidsduur of tijdsonafhankelijk",69.850000000000009,85.95,73.45,73730114,"Syncope"]
["45A51","Gezinsbegeleiding basis","Ambulant","uur","Totaal binnen geldigheidsduur of tijdsonafhankelijk",81.75,85.95,85.95,"73730144","Cultureel Maatschappelijk Zorgbureau"]
["45A51","Gezinsbegeleiding basis","Ambulant","uur","Totaal binnen geldigheidsduur of tijdsonafhankelijk",81.75,85.95,85.95,"73730146","Cura XL B.V."]
["45A51","Gezinsbegeleiding basis","Ambulant","uur","Totaal binnen geldigheidsduur of tijdsonafhankelijk",79.100000000000009,85.95,83.15,73730175,"Stichting Schouder aan Schouder"]
["45A51","Gezinsbegeleiding basis","Ambulant","uur","Totaal binnen geldigheidsduur of tijdsonafhankelijk",70.75,85.95,74.400000000000006,73730188,"Team 050 B.V."]
["45A51","Gezinsbegeleiding basis","Ambulant","uur","Totaal binnen geldigheidsduur of tijdsonafhankelijk",75.05,85.95,78.900000000000006,"73730198","De Kasparhoeve B.V."]
["45A51","Gezinsbegeleiding basis","Ambulant","uur","Totaal binnen geldigheidsduur of tijdsonafhankelijk",79.400000000000006,85.95,83.45,73730258,"Zorg Intens B.V."]
["45A51","Gezinsbegeleiding basis","Ambulant","uur","Totaal binnen geldigheidsduur of tijdsonafhankelijk",81.75,85.95,85.95,73730415,"Omega Groep B.V."]
["45A51","Gezinsbegeleiding basis","Ambulant","uur","Totaal binnen geldigheidsduur of tijdsonafhankelijk",64.55,85.95,{"$f":"F353","v":64.55},"73736696","UnLimiteD B.V."]
["45A51","Gezinsbegeleiding basis","Ambulant","uur","Totaal binnen geldigheidsduur of tijdsonafhankelijk",79.7,85.95,{"$f":"MROUND(F354*1.0513,0.05)","v":83.800000000000011},73737023,"Parlayan B.V."]
["45A51","Gezinsbegeleiding basis","Ambulant","uur","Totaal binnen geldigheidsduur of tijdsonafhankelijk",79.100000000000009,85.95,83.15,75751252,"Aardema Thuiszorg B.V."]
["45A51","Gezinsbegeleiding basis","Ambulant","uur","Totaal binnen geldigheidsduur of tijdsonafhankelijk",81.75,85.95,85.95,"75751769","Bloezem Zorg Thuis B.V."]
["45A51","Gezinsbegeleiding basis","Ambulant","uur","Totaal binnen geldigheidsduur of tijdsonafhankelijk",77.600000000000009,85.95,81.600000000000009,"75751904","Coöperatie Dichtbij U.A."]
["45A51","Gezinsbegeleiding basis","Ambulant","uur","Totaal binnen geldigheidsduur of tijdsonafhankelijk",81.75,85.95,85.95,78780153,"GeWoon begeleiding B.V."]
["45A51","Gezinsbegeleiding basis","Ambulant","uur","Totaal binnen geldigheidsduur of tijdsonafhankelijk",73.900000000000006,85.95,77.7,90050955,"Tressan"]
["45A51","Gezinsbegeleiding basis","Ambulant","uur","Totaal binnen geldigheidsduur of tijdsonafhankelijk",79.100000000000009,85.95,83.15,90054404,"La Hacienda B.V."]
["45A51","Gezinsbegeleiding basis","Ambulant","uur","Totaal binnen geldigheidsduur of tijdsonafhankelijk",81.75,85.95,85.95,"94063526","Jody Schoolpsychologie"]
["45A51","Gezinsbegeleiding basis","Ambulant","uur","Totaal binnen geldigheidsduur of tijdsonafhankelijk",81.75,85.95,85.95,94064729,"Pedagogische praktijk Gieten"]
["45A51","Gezinsbegeleiding basis","Ambulant","uur","Totaal binnen geldigheidsduur of tijdsonafhankelijk",78.2,85.95,82.2,"94064988","Mindcare Assen B.V."]
["45A51","Gezinsbegeleiding basis","Ambulant","uur","Totaal binnen geldigheidsduur of tijdsonafhankelijk",64.55,85.95,{"$f":"F364","v":64.55},94065671,"Omgangshuis-Loman"]
["45A51","Gezinsbegeleiding basis","Ambulant","uur","Totaal binnen geldigheidsduur of tijdsonafhankelijk",78.800000000000011,85.95,{"$f":"MROUND(F365*1.0513,0.05)","v":82.850000000000009},"94066333","Pedagogische Praktijk Marum"]
["45A51","Gezinsbegeleiding basis","Ambulant","uur","Totaal binnen geldigheidsduur of tijdsonafhankelijk",81.75,85.95,{"$f":"MROUND(F366*1.0513,0.05)","v":85.95},98099028,"Protestants-Christelijke Stichting Philadelphia Zorg"]
["45A51","Gezinsbegeleiding basis","Ambulant","uur","Totaal binnen geldigheidsduur of tijdsonafhankelijk",81.75,85.95,{"$f":"MROUND(F367*1.0513,0.05)","v":85.95},98099155,"Stichting Siriz"]
["45A51","Gezinsbegeleiding basis","Ambulant","uur","Totaal binnen geldigheidsduur of tijdsonafhankelijk",63.35,85.95,{"$f":"MROUND(F368*1.0403,0.05)","v":65.900000000000006},"98099692","Stichting Cerato"]
["45A51","Gezinsbegeleiding basis","Ambulant","uur","Totaal binnen geldigheidsduur of tijdsonafhankelijk",81.75,85.95,{"$f":"MROUND(F369*1.0513,0.05)","v":85.95},"98100080","Stichting Petten Zorg"]
["45A51","Gezinsbegeleiding basis","Ambulant","uur","Totaal binnen geldigheidsduur of tijdsonafhankelijk",81.75,85.95,{"$f":"MROUND(F370*1.0513,0.05)","v":85.95},98100320,"Jemalupe"]
["45A51","Gezinsbegeleiding basis","Ambulant","uur","Totaal binnen geldigheidsduur of tijdsonafhankelijk",81.75,85.95,{"$f":"MROUND(F371*1.0513,0.05)","v":85.95},"98100550","Effect B.V."]
["45A51","Gezinsbegeleiding basis","Ambulant","uur","Totaal binnen geldigheidsduur of tijdsonafhankelijk",73.900000000000006,85.95,{"$f":"F372","v":73.900000000000006},"98100943","De Slingertuin"]
["45A51","Gezinsbegeleiding basis","Ambulant","uur","Totaal binnen geldigheidsduur of tijdsonafhankelijk",78.2,85.95,{"$f":"G373","v":85.95},98101997,"Liganta B.V."]
["45A51","Gezinsbegeleiding basis","Ambulant","uur","Totaal binnen geldigheidsduur of tijdsonafhankelijk",81.75,85.95,{"$f":"MROUND(F374*1.0513,0.05)","v":85.95},"98102383","Cornerstones Jeugdzorg B.V."]
["45A51","Gezinsbegeleiding basis","Ambulant","uur","Totaal binnen geldigheidsduur of tijdsonafhankelijk",78.800000000000011,85.95,{"$f":"F375","v":78.800000000000011},98102566,"SamenOmTafel"]
["45A51","Gezinsbegeleiding basis","Ambulant","uur","Totaal binnen geldigheidsduur of tijdsonafhankelijk",69.8,85.95,{"$f":"MROUND(F376*1.0513,0.05)","v":73.400000000000006},98103185,"Mereo"]
["45A51","Gezinsbegeleiding basis","Ambulant","uur","Totaal binnen geldigheidsduur of tijdsonafhankelijk",76.45,85.95,80.350000000000009,"98103195","Ik ben een regenboog"]
["45A51","Gezinsbegeleiding basis","Ambulant","uur","Totaal binnen geldigheidsduur of tijdsonafhankelijk",81.75,85.95,85.95,98103642,"Stichting Community Support"]
["45A51","Gezinsbegeleiding basis","Ambulant","uur","Totaal binnen geldigheidsduur of tijdsonafhankelijk",72.45,85.95,76.150000000000006,"98104252","Coöperatie Stee 050"]
["45A51","Gezinsbegeleiding basis","Ambulant","uur","Totaal binnen geldigheidsduur of tijdsonafhankelijk",81.75,85.95,85.95,"98104298","Saul B.V."]
["45A51","Gezinsbegeleiding basis","Ambulant","uur","Totaal binnen geldigheidsduur of tijdsonafhankelijk",81.75,85.95,85.95,98104681,"Veni Etinam B.V."]
["45A51","Gezinsbegeleiding basis","Ambulant","uur","Totaal binnen geldigheidsduur of tijdsonafhankelijk",69.349999999999994,85.95,72.900000000000006,98105180,"Familia Forte"]
["45A51","Gezinsbegeleiding basis","Ambulant","uur","Totaal binnen geldigheidsduur of tijdsonafhankelijk",81.75,85.95,85.95,98105723,"Care Forward Noord B.V."]
["45A51","Gezinsbegeleiding basis","Ambulant","uur","Totaal binnen geldigheidsduur of tijdsonafhankelijk",81.75,85.95,85.95,98105818,"KOEN B.V."]
["45A51","Gezinsbegeleiding basis","Ambulant","uur","Totaal binnen geldigheidsduur of tijdsonafhankelijk",81.75,85.95,85.95,"98105913","Zorgkracht 12, de Noordelijke Zorgcoöperatie U.A."]
["45A51","Gezinsbegeleiding basis","Ambulant","uur","Totaal binnen geldigheidsduur of tijdsonafhankelijk",77.95,85.95,{"$f":"F386","v":77.95},98105917,"X-Tense B.V."]
["45A51","Gezinsbegeleiding basis","Ambulant","uur","Totaal binnen geldigheidsduur of tijdsonafhankelijk",78.800000000000011,85.95,{"$f":"MROUND(F387*1.0513,0.05)","v":82.850000000000009},98106080,"Mij een Zorg B.V."]
["45A51","Gezinsbegeleiding basis","Ambulant","uur","Totaal binnen geldigheidsduur of tijdsonafhankelijk",76.800000000000011,85.95,{"$f":"MROUND(F388*1.0513,0.05)","v":80.75},98107274,"Jongerenzorg Barkema en De Haan B.V."]
["45A51","Gezinsbegeleiding basis","Ambulant","uur","Totaal binnen geldigheidsduur of tijdsonafhankelijk",61.300000000000004,85.95,85,"98107904","A-MeZo B.V."]
["45A53","Individuele begeleiding specialistisch","Ambulant","uur","Totaal binnen geldigheidsduur of tijdsonafhankelijk",96.050000000000011,109.5,{"$f":"G390","v":109.5},"06290105","Stichting Verslavingszorg Noord Nederland"]
["45A53","Individuele begeleiding specialistisch","Ambulant","uur","Totaal binnen geldigheidsduur of tijdsonafhankelijk",104.15,109.5,{"$f":"MROUND(F391*1.0513,0.05)","v":109.5},"06290106","Stichting Elker"]
["45A53","Individuele begeleiding specialistisch","Ambulant","uur","Totaal binnen geldigheidsduur of tijdsonafhankelijk",102.15,109.5,{"$f":"MROUND(F392*1.0513,0.05)","v":107.4},"30300685","Stichting 's Heeren Loo Zorggroep"]
["45A53","Individuele begeleiding specialistisch","Ambulant","uur","Totaal binnen geldigheidsduur of tijdsonafhankelijk",104.15,109.5,{"$f":"MROUND(F393*1.0513,0.05)","v":109.5},"41419688","Kindercoach Leersaam"]
["45A53","Individuele begeleiding specialistisch","Ambulant","uur","Totaal binnen geldigheidsduur of tijdsonafhankelijk",99.4,109.5,{"$f":"F394","v":99.4},41521628,"Jij bent tov Kindercoaching"]
["45A53","Individuele begeleiding specialistisch","Ambulant","uur","Totaal binnen geldigheidsduur of tijdsonafhankelijk",93.55,109.5,{"$f":"G395","v":109.5},41528449,"Solid Zorg&Welzijn"]
["45A53","Individuele begeleiding specialistisch","Ambulant","uur","Totaal binnen geldigheidsduur of tijdsonafhankelijk",104.15,109.5,{"$f":"MROUND(F396*1.0513,0.05)","v":109.5},"53530112","Cedin B.V."]
["45A53","Individuele begeleiding specialistisch","Ambulant","uur","Totaal binnen geldigheidsduur of tijdsonafhankelijk",104.15,109.5,{"$f":"MROUND(F397*1.0513,0.05)","v":109.5},65651117,"Stichting De Zijlen"]
["45A53","Individuele begeleiding specialistisch","Ambulant","uur","Totaal binnen geldigheidsduur of tijdsonafhankelijk",104.15,109.5,{"$f":"MROUND(F398*1.0513,0.05)","v":109.5},"65656687","Stichting Cosis"]
["45A53","Individuele begeleiding specialistisch","Ambulant","uur","Totaal binnen geldigheidsduur of tijdsonafhankelijk",100.6,109.5,{"$f":"MROUND(F399*1.0403,0.05)","v":104.65},"72727446","Stichting Buurderij De Wilde Haan"]
["45A53","Individuele begeleiding specialistisch","Ambulant","uur","Totaal binnen geldigheidsduur of tijdsonafhankelijk",89,109.5,{"$f":"MROUND(F400*1.0513,0.05)","v":93.550000000000011},73730114,"Syncope"]
["45A53","Individuele begeleiding specialistisch","Ambulant","uur","Totaal binnen geldigheidsduur of tijdsonafhankelijk",104.15,109.5,109.5,"73730144","Cultureel Maatschappelijk Zorgbureau"]
["45A53","Individuele begeleiding specialistisch","Ambulant","uur","Totaal binnen geldigheidsduur of tijdsonafhankelijk",104.15,109.5,109.5,"73730146","Cura XL B.V."]
["45A53","Individuele begeleiding specialistisch","Ambulant","uur","Totaal binnen geldigheidsduur of tijdsonafhankelijk",98.850000000000009,109.5,103.9,73730175,"Stichting Schouder aan Schouder"]
["45A53","Individuele begeleiding specialistisch","Ambulant","uur","Totaal binnen geldigheidsduur of tijdsonafhankelijk",104.15,109.5,109.5,73730183,"Overstag Zorg B.V."]
["45A53","Individuele begeleiding specialistisch","Ambulant","uur","Totaal binnen geldigheidsduur of tijdsonafhankelijk",88.75,109.5,93.300000000000011,73730188,"Team 050 B.V."]
["45A53","Individuele begeleiding specialistisch","Ambulant","uur","Totaal binnen geldigheidsduur of tijdsonafhankelijk",95.5,109.5,100.4,"73730198","De Kasparhoeve B.V."]
["45A53","Individuele begeleiding specialistisch","Ambulant","uur","Totaal binnen geldigheidsduur of tijdsonafhankelijk",91.9,109.5,96.600000000000009,"73730236","Comfortzorg Contract B.V."]
["45A53","Individuele begeleiding specialistisch","Ambulant","uur","Totaal binnen geldigheidsduur of tijdsonafhankelijk",null,109.5,109.5,73730305,"Stichting Yorneo Beheer"]
["45A53","Individuele begeleiding specialistisch","Ambulant","uur","Totaal binnen geldigheidsduur of tijdsonafhankelijk",104.15,109.5,{"$f":"MROUND(F409*1.0513,0.05)","v":109.5},73730356,"Horizon Begeleiding"]
["45A53","Individuele begeleiding specialistisch","Ambulant","uur","Totaal binnen geldigheidsduur of tijdsonafhankelijk",104.15,109.5,{"$f":"MROUND(F410*1.0513,0.05)","v":109.5},73730415,"Omega Groep B.V."]
["45A53","Individuele begeleiding specialistisch","Ambulant","uur","Totaal binnen geldigheidsduur of tijdsonafhankelijk",96.050000000000011,109.5,{"$f":"MROUND(F411*1.0403,0.05)","v":99.9},73730430,"autismehuis"]
["45A53","Individuele begeleiding specialistisch","Ambulant","uur","Totaal binnen geldigheidsduur of tijdsonafhankelijk",104.15,109.5,{"$f":"MROUND(F412*1.0513,0.05)","v":109.5},73732403,"Mentaal Beter Cure B.V."]
["45A53","Individuele begeleiding specialistisch","Ambulant","uur","Totaal binnen geldigheidsduur of tijdsonafhankelijk",80.7,109.5,{"$f":"F413","v":80.7},"73736696","UnLimiteD B.V."]
["45A53","Individuele begeleiding specialistisch","Ambulant","uur","Totaal binnen geldigheidsduur of tijdsonafhankelijk",101.60000000000001,109.5,{"$f":"MROUND(F414*1.0513,0.05)","v":106.80000000000001},73737023,"Parlayan B.V."]
["45A53","Individuele begeleiding specialistisch","Ambulant","uur","Totaal binnen geldigheidsduur of tijdsonafhankelijk",98.850000000000009,109.5,{"$f":"MROUND(F415*1.0513,0.05)","v":103.9},75751252,"Aardema Thuiszorg B.V."]
["45A53","Individuele begeleiding specialistisch","Ambulant","uur","Totaal binnen geldigheidsduur of tijdsonafhankelijk",104.15,109.5,{"$f":"MROUND(F416*1.0513,0.05)","v":109.5},"75751769","Bloezem Zorg Thuis B.V."]
["45A53","Individuele begeleiding specialistisch","Ambulant","uur","Totaal binnen geldigheidsduur of tijdsonafhankelijk",104.15,109.5,{"$f":"MROUND(F417*1.0513,0.05)","v":109.5},"75751904","Coöperatie Dichtbij U.A."]
["45A53","Individuele begeleiding specialistisch","Ambulant","uur","Totaal binnen geldigheidsduur of tijdsonafhankelijk",96.800000000000011,109.5,{"$f":"MROUND(F418*1.0513,0.05)","v":101.75},75752422,"La Luna Care B.V."]
["45A53","Individuele begeleiding specialistisch","Ambulant","uur","Totaal binnen geldigheidsduur of tijdsonafhankelijk",null,109.5,109.5,78780153,"GeWoon begeleiding B.V."]
["45A53","Individuele begeleiding specialistisch","Ambulant","uur","Totaal binnen geldigheidsduur of tijdsonafhankelijk",104.15,109.5,{"$f":"MROUND(F420*1.0513,0.05)","v":109.5},90054404,"La Hacienda B.V."]
["45A53","Individuele begeleiding specialistisch","Ambulant","uur","Totaal binnen geldigheidsduur of tijdsonafhankelijk",80.800000000000011,109.5,{"$f":"F421","v":80.800000000000011},"90056027","Kindertherapie & Coaching - Jasna Joosten"]
["45A53","Individuele begeleiding specialistisch","Ambulant","uur","Totaal binnen geldigheidsduur of tijdsonafhankelijk",94.550000000000011,109.5,{"$f":"MROUND(F422*1.0513,0.05)","v":99.4},"90060482","Kindertherapie Anouk Endeveld"]
["45A53","Individuele begeleiding specialistisch","Ambulant","uur","Totaal binnen geldigheidsduur of tijdsonafhankelijk",90.850000000000009,109.5,{"$f":"MROUND(F423*1.0513,0.05)","v":95.5},"90066114","Het Naoberhuis B.V."]
["45A53","Individuele begeleiding specialistisch","Ambulant","uur","Totaal binnen geldigheidsduur of tijdsonafhankelijk",96.4,109.5,{"$f":"F424","v":96.4},90068272,"Hersenfabriek Groningen"]
["45A53","Individuele begeleiding specialistisch","Ambulant","uur","Totaal binnen geldigheidsduur of tijdsonafhankelijk",99.65,109.5,{"$f":"MROUND(F425*1.0513,0.05)","v":104.75},94063412,"Janette Kuipers Coaching & Advies"]
["45A53","Individuele begeleiding specialistisch","Ambulant","uur","Totaal binnen geldigheidsduur of tijdsonafhankelijk",104.15,109.5,{"$f":"MROUND(F426*1.0513,0.05)","v":109.5},"94063526","Jody Schoolpsychologie"]
["45A53","Individuele begeleiding specialistisch","Ambulant","uur","Totaal binnen geldigheidsduur of tijdsonafhankelijk",91.850000000000009,109.5,{"$f":"F427","v":91.850000000000009},"94063543","Zorgbureau Embrace "]
["45A53","Individuele begeleiding specialistisch","Ambulant","uur","Totaal binnen geldigheidsduur of tijdsonafhankelijk",104.15,109.5,{"$f":"MROUND(F428*1.0513,0.05)","v":109.5},"94063901","Passend Begeleiden"]
["45A53","Individuele begeleiding specialistisch","Ambulant","uur","Totaal binnen geldigheidsduur of tijdsonafhankelijk",104.15,109.5,109.5,94064729,"Pedagogische praktijk Gieten"]
["45A53","Individuele begeleiding specialistisch","Ambulant","uur","Totaal binnen geldigheidsduur of tijdsonafhankelijk",99.65,109.5,104.75,"94064988","Mindcare Assen B.V."]
["45A53","Individuele begeleiding specialistisch","Ambulant","uur","Totaal binnen geldigheidsduur of tijdsonafhankelijk",104.15,109.5,109.5,94065241,"Ik ben Ik! Praktijk voor orthopedagogiek en psychologie"]
["45A53","Individuele begeleiding specialistisch","Ambulant","uur","Totaal binnen geldigheidsduur of tijdsonafhankelijk",104.15,109.5,109.5,94065371,"Via Trox B.V."]
["45A53","Individuele begeleiding specialistisch","Ambulant","uur","Totaal binnen geldigheidsduur of tijdsonafhankelijk",102.15,109.5,107.4,94065636,"Kennis in Kracht B.V."]
["45A53","Individuele begeleiding specialistisch","Ambulant","uur","Totaal binnen geldigheidsduur of tijdsonafhankelijk",100.45,109.5,105.60000000000001,"94066333","Pedagogische Praktijk Marum"]
["45A53","Individuele begeleiding specialistisch","Ambulant","uur","Totaal binnen geldigheidsduur of tijdsonafhankelijk",104.15,109.5,109.5,"94068859","Westerweelde Pedagogisch Centrum B.V."]
["45A53","Individuele begeleiding specialistisch","Ambulant","uur","Totaal binnen geldigheidsduur of tijdsonafhankelijk",92.550000000000011,109.5,{"$f":"G436","v":109.5},"98098852","Statera Jeugd en Gezin B.V."]
["45A53","Individuele begeleiding specialistisch","Ambulant","uur","Totaal binnen geldigheidsduur of tijdsonafhankelijk",104.15,109.5,{"$f":"MROUND(F437*1.0513,0.05)","v":109.5},98099028,"Protestants-Christelijke Stichting Philadelphia Zorg"]
["45A53","Individuele begeleiding specialistisch","Ambulant","uur","Totaal binnen geldigheidsduur of tijdsonafhankelijk",104.15,109.5,{"$f":"MROUND(F438*1.0513,0.05)","v":109.5},98099048,"Stichting Leger des Heils Welzijns- en Gezondheidszorg"]
["45A53","Individuele begeleiding specialistisch","Ambulant","uur","Totaal binnen geldigheidsduur of tijdsonafhankelijk",104.15,109.5,{"$f":"MROUND(F439*1.0513,0.05)","v":109.5},98099155,"Stichting Siriz"]
["45A53","Individuele begeleiding specialistisch","Ambulant","uur","Totaal binnen geldigheidsduur of tijdsonafhankelijk",100.45,109.5,{"$f":"MROUND(F440*1.0513,0.05)","v":105.60000000000001},98099350,"William Schrikker Stichting Gezinsvormen"]
["45A53","Individuele begeleiding specialistisch","Ambulant","uur","Totaal binnen geldigheidsduur of tijdsonafhankelijk",79.5,109.5,{"$f":"MROUND(F441*1.0403,0.05)","v":82.7},"98099692","Stichting Cerato"]
["45A53","Individuele begeleiding specialistisch","Ambulant","uur","Totaal binnen geldigheidsduur of tijdsonafhankelijk",104.15,109.5,{"$f":"MROUND(F442*1.0513,0.05)","v":109.5},98100521,"Stichting MEE Noord"]
["45A53","Individuele begeleiding specialistisch","Ambulant","uur","Totaal binnen geldigheidsduur of tijdsonafhankelijk",104.15,109.5,{"$f":"MROUND(F443*1.0513,0.05)","v":109.5},"98100550","Effect B.V."]
["45A53","Individuele begeleiding specialistisch","Ambulant","uur","Totaal binnen geldigheidsduur of tijdsonafhankelijk",104.15,109.5,{"$f":"MROUND(F444*1.0513,0.05)","v":109.5},98101345,"Calidad B.V."]
["45A53","Individuele begeleiding specialistisch","Ambulant","uur","Totaal binnen geldigheidsduur of tijdsonafhankelijk",104.15,109.5,{"$f":"MROUND(F445*1.0513,0.05)","v":109.5},98101596,"Xperanza Nederland B.V."]
["45A53","Individuele begeleiding specialistisch","Ambulant","uur","Totaal binnen geldigheidsduur of tijdsonafhankelijk",99.65,109.5,{"$f":"G446","v":109.5},98101997,"Liganta B.V."]
["45A53","Individuele begeleiding specialistisch","Ambulant","uur","Totaal binnen geldigheidsduur of tijdsonafhankelijk",92.75,109.5,{"$f":"MROUND(F447*1.0513,0.05)","v":97.5},98102110,"Feniks Zorg en Jeugd B.V."]
["45A53","Individuele begeleiding specialistisch","Ambulant","uur","Totaal binnen geldigheidsduur of tijdsonafhankelijk",104.15,109.5,{"$f":"MROUND(F448*1.0513,0.05)","v":109.5},"98102383","Cornerstones Jeugdzorg B.V."]
["45A53","Individuele begeleiding specialistisch","Ambulant","uur","Totaal binnen geldigheidsduur of tijdsonafhankelijk",null,109.5,109.5,"98102631","Zorg en Coaching Noord Nederland B.V."]
["45A53","Individuele begeleiding specialistisch","Ambulant","uur","Totaal binnen geldigheidsduur of tijdsonafhankelijk",101.60000000000001,109.5,{"$f":"MROUND(F450*1.0513,0.05)","v":106.80000000000001},"98103043","Zorg Anders B.V."]
["45A53","Individuele begeleiding specialistisch","Ambulant","uur","Totaal binnen geldigheidsduur of tijdsonafhankelijk",97.550000000000011,109.5,{"$f":"MROUND(F451*1.0513,0.05)","v":102.55000000000001},"98103195","Ik ben een regenboog"]
["45A53","Individuele begeleiding specialistisch","Ambulant","uur","Totaal binnen geldigheidsduur of tijdsonafhankelijk",104.15,109.5,{"$f":"MROUND(F452*1.0513,0.05)","v":109.5},98103642,"Stichting Community Support"]
["45A53","Individuele begeleiding specialistisch","Ambulant","uur","Totaal binnen geldigheidsduur of tijdsonafhankelijk",104.15,109.5,{"$f":"MROUND(F453*1.0513,0.05)","v":109.5},"98103733","Ambulante hulpverlening Groningen"]
["45A53","Individuele begeleiding specialistisch","Ambulant","uur","Totaal binnen geldigheidsduur of tijdsonafhankelijk",null,109.5,109.5,98104119,"Stichting ZorgInitiatief de Bosk"]
["45A53","Individuele begeleiding specialistisch","Ambulant","uur","Totaal binnen geldigheidsduur of tijdsonafhankelijk",98.850000000000009,109.5,{"$f":"MROUND(F455*1.0513,0.05)","v":103.9},"98104252","Coöperatie Stee 050"]
["45A53","Individuele begeleiding specialistisch","Ambulant","uur","Totaal binnen geldigheidsduur of tijdsonafhankelijk",104.15,109.5,{"$f":"MROUND(F456*1.0513,0.05)","v":109.5},"98104298","Saul B.V."]
["45A53","Individuele begeleiding specialistisch","Ambulant","uur","Totaal binnen geldigheidsduur of tijdsonafhankelijk",93.7,109.5,{"$f":"MROUND(F457*1.0513,0.05)","v":98.5},"98104360","Roccohoeve B.V."]
["45A53","Individuele begeleiding specialistisch","Ambulant","uur","Totaal binnen geldigheidsduur of tijdsonafhankelijk",null,109.5,107.35,98104386,"Soliris Zorg B.V."]
["45A53","Individuele begeleiding specialistisch","Ambulant","uur","Totaal binnen geldigheidsduur of tijdsonafhankelijk",104.15,109.5,{"$f":"MROUND(F459*1.0513,0.05)","v":109.5},98104681,"Veni Etinam B.V."]
["45A53","Individuele begeleiding specialistisch","Ambulant","uur","Totaal binnen geldigheidsduur of tijdsonafhankelijk",104.15,109.5,109.5,98105037,"De Ruumte B.V."]
["45A53","Individuele begeleiding specialistisch","Ambulant","uur","Totaal binnen geldigheidsduur of tijdsonafhankelijk",88.55,109.5,93.100000000000009,98105180,"Familia Forte"]
["45A53","Individuele begeleiding specialistisch","Ambulant","uur","Totaal binnen geldigheidsduur of tijdsonafhankelijk",104.15,109.5,109.5,98105723,"Care Forward Noord B.V."]
["45A53","Individuele begeleiding specialistisch","Ambulant","uur","Totaal binnen geldigheidsduur of tijdsonafhankelijk",104.15,109.5,109.5,98105818,"KOEN B.V."]
["45A53","Individuele begeleiding specialistisch","Ambulant","uur","Totaal binnen geldigheidsduur of tijdsonafhankelijk",104.15,109.5,109.5,"98105913","Zorgkracht 12, de Noordelijke Zorgcoöperatie U.A."]
["45A53","Individuele begeleiding specialistisch","Ambulant","uur","Totaal binnen geldigheidsduur of tijdsonafhankelijk",100.4,109.5,{"$f":"F465","v":100.4},98105917,"X-Tense B.V."]
["45A53","Individuele begeleiding specialistisch","Ambulant","uur","Totaal binnen geldigheidsduur of tijdsonafhankelijk",100.45,109.5,{"$f":"MROUND(F466*1.0513,0.05)","v":105.60000000000001},98106080,"Mij een Zorg B.V."]
["45A53","Individuele begeleiding specialistisch","Ambulant","uur","Totaal binnen geldigheidsduur of tijdsonafhankelijk",87.550000000000011,109.5,92.050000000000011,98106367,"Station Noord B.V."]
["45A53","Individuele begeleiding specialistisch","Ambulant","uur","Totaal binnen geldigheidsduur of tijdsonafhankelijk",97.45,109.5,102.45,98107274,"Jongerenzorg Barkema en De Haan B.V."]
["45A53","Individuele begeleiding specialistisch","Ambulant","uur","Totaal binnen geldigheidsduur of tijdsonafhankelijk",99.4,109.5,104.5,"98107597","De Ezelsbrug B.V."]
["45A53","Individuele begeleiding specialistisch","Ambulant","uur","Totaal binnen geldigheidsduur of tijdsonafhankelijk",104.15,109.5,109.5,98107787,"Chavah B.V."]
["45A54","Groepsbegeleiding specialistisch","Ambulant","uur","Totaal binnen geldigheidsduur of tijdsonafhankelijk",26.400000000000002,27.75,27.75,"53530112","Cedin B.V."]
["45A54","Groepsbegeleiding specialistisch","Ambulant","uur","Totaal binnen geldigheidsduur of tijdsonafhankelijk",26.400000000000002,27.75,27.75,"65656687","Stichting Cosis"]
["45A54","Groepsbegeleiding specialistisch","Ambulant","uur","Totaal binnen geldigheidsduur of tijdsonafhankelijk",26.400000000000002,27.75,27.75,"73730146","Cura XL B.V."]
["45A54","Groepsbegeleiding specialistisch","Ambulant","uur","Totaal binnen geldigheidsduur of tijdsonafhankelijk",26.400000000000002,27.75,27.75,73730356,"Horizon Begeleiding"]
["45A54","Groepsbegeleiding specialistisch","Ambulant","uur","Totaal binnen geldigheidsduur of tijdsonafhankelijk",26.400000000000002,27.75,27.75,73732403,"Mentaal Beter Cure B.V."]
["45A54","Groepsbegeleiding specialistisch","Ambulant","uur","Totaal binnen geldigheidsduur of tijdsonafhankelijk",26.400000000000002,27.75,27.75,"75751904","Coöperatie Dichtbij U.A."]
["45A54","Groepsbegeleiding specialistisch","Ambulant","uur","Totaal binnen geldigheidsduur of tijdsonafhankelijk",26.400000000000002,27.75,27.75,"94068859","Westerweelde Pedagogisch Centrum B.V."]
["45A54","Groepsbegeleiding specialistisch","Ambulant","uur","Totaal binnen geldigheidsduur of tijdsonafhankelijk",24.400000000000002,27.75,25.650000000000002,98102110,"Feniks Zorg en Jeugd B.V."]
["45A54","Groepsbegeleiding specialistisch","Ambulant","uur","Totaal binnen geldigheidsduur of tijdsonafhankelijk",26.400000000000002,27.75,27.75,"98102383","Cornerstones Jeugdzorg B.V."]
["45A54","Groepsbegeleiding specialistisch","Ambulant","uur","Totaal binnen geldigheidsduur of tijdsonafhankelijk",16.150000000000002,27.75,{"$f":"F480","v":16.150000000000002},"98102991","Activiteitencentrum De Brink"]
["45A54","Groepsbegeleiding specialistisch","Ambulant","uur","Totaal binnen geldigheidsduur of tijdsonafhankelijk",26.400000000000002,27.75,{"$f":"MROUND(F481*1.0513,0.05)","v":27.75},98105818,"KOEN B.V."]
["45A54","Groepsbegeleiding specialistisch","Ambulant","uur","Totaal binnen geldigheidsduur of tijdsonafhankelijk",26.400000000000002,27.75,{"$f":"MROUND(F482*1.0513,0.05)","v":27.75},"98105913","Zorgkracht 12, de Noordelijke Zorgcoöperatie U.A."]
["45A54","Groepsbegeleiding specialistisch","Ambulant","uur","Totaal binnen geldigheidsduur of tijdsonafhankelijk",26.400000000000002,27.75,{"$f":"F483","v":26.400000000000002},98107576,"Even(T)Huis"]
["45A54","Groepsbegeleiding specialistisch","Ambulant","uur","Totaal binnen geldigheidsduur of tijdsonafhankelijk",25.200000000000003,27.75,{"$f":"MROUND(F484*1.0513,0.05)","v":26.5},"98107597","De Ezelsbrug B.V."]
["45A56","Gezinsbegeleiding specialistisch","Ambulant","uur","Totaal binnen geldigheidsduur of tijdsonafhankelijk",96.050000000000011,109.5,{"$f":"G485","v":109.5},"06290105","Stichting Verslavingszorg Noord Nederland"]
["45A56","Gezinsbegeleiding specialistisch","Ambulant","uur","Totaal binnen geldigheidsduur of tijdsonafhankelijk",104.15,109.5,{"$f":"MROUND(F486*1.0513,0.05)","v":109.5},"06290106","Stichting Elker"]
["45A56","Gezinsbegeleiding specialistisch","Ambulant","uur","Totaal binnen geldigheidsduur of tijdsonafhankelijk",104.15,109.5,109.5,"06290613","Stichting Eleos, christelijke ggz"]
["45A56","Gezinsbegeleiding specialistisch","Ambulant","uur","Totaal binnen geldigheidsduur of tijdsonafhankelijk",90.4,109.5,95.050000000000011,"30300685","Stichting 's Heeren Loo Zorggroep"]
["45A56","Gezinsbegeleiding specialistisch","Ambulant","uur","Totaal binnen geldigheidsduur of tijdsonafhankelijk",104.15,109.5,109.5,"41419688","Kindercoach Leersaam"]
["45A56","Gezinsbegeleiding specialistisch","Ambulant","uur","Totaal binnen geldigheidsduur of tijdsonafhankelijk",104.15,109.5,109.5,"53530112","Cedin B.V."]
["45A56","Gezinsbegeleiding specialistisch","Ambulant","uur","Totaal binnen geldigheidsduur of tijdsonafhankelijk",104.15,109.5,109.5,65651117,"Stichting De Zijlen"]
["45A56","Gezinsbegeleiding specialistisch","Ambulant","uur","Totaal binnen geldigheidsduur of tijdsonafhankelijk",104.15,109.5,109.5,"65656687","Stichting Cosis"]
["45A56","Gezinsbegeleiding specialistisch","Ambulant","uur","Totaal binnen geldigheidsduur of tijdsonafhankelijk",104.15,109.5,109.5,73730109,"Molendrift B.V."]
["45A56","Gezinsbegeleiding specialistisch","Ambulant","uur","Totaal binnen geldigheidsduur of tijdsonafhankelijk",89,109.5,93.550000000000011,73730114,"Syncope"]
["45A56","Gezinsbegeleiding specialistisch","Ambulant","uur","Totaal binnen geldigheidsduur of tijdsonafhankelijk",104.15,109.5,109.5,"73730144","Cultureel Maatschappelijk Zorgbureau"]
["45A56","Gezinsbegeleiding specialistisch","Ambulant","uur","Totaal binnen geldigheidsduur of tijdsonafhankelijk",96.050000000000011,109.5,101,73730258,"Zorg Intens B.V."]
["45A56","Gezinsbegeleiding specialistisch","Ambulant","uur","Totaal binnen geldigheidsduur of tijdsonafhankelijk",104.15,109.5,109.5,73730305,"Stichting Yorneo Beheer"]
["45A56","Gezinsbegeleiding specialistisch","Ambulant","uur","Totaal binnen geldigheidsduur of tijdsonafhankelijk",104.15,109.5,109.5,73730356,"Horizon Begeleiding"]
["45A56","Gezinsbegeleiding specialistisch","Ambulant","uur","Totaal binnen geldigheidsduur of tijdsonafhankelijk",104.15,109.5,109.5,73730415,"Omega Groep B.V."]
["45A56","Gezinsbegeleiding specialistisch","Ambulant","uur","Totaal binnen geldigheidsduur of tijdsonafhankelijk",104.15,109.5,109.5,73732403,"Mentaal Beter Cure B.V."]
["45A56","Gezinsbegeleiding specialistisch","Ambulant","uur","Totaal binnen geldigheidsduur of tijdsonafhankelijk",80.7,109.5,{"$f":"F501","v":80.7},"73736696","UnLimiteD B.V."]
["45A56","Gezinsbegeleiding specialistisch","Ambulant","uur","Totaal binnen geldigheidsduur of tijdsonafhankelijk",101.60000000000001,109.5,{"$f":"MROUND(F502*1.0513,0.05)","v":106.80000000000001},73737023,"Parlayan B.V."]
["45A56","Gezinsbegeleiding specialistisch","Ambulant","uur","Totaal binnen geldigheidsduur of tijdsonafhankelijk",98.850000000000009,109.5,103.9,75751252,"Aardema Thuiszorg B.V."]
["45A56","Gezinsbegeleiding specialistisch","Ambulant","uur","Totaal binnen geldigheidsduur of tijdsonafhankelijk",104.15,109.5,109.5,"75751769","Bloezem Zorg Thuis B.V."]
["45A56","Gezinsbegeleiding specialistisch","Ambulant","uur","Totaal binnen geldigheidsduur of tijdsonafhankelijk",104.15,109.5,109.5,"75751904","Coöperatie Dichtbij U.A."]
["45A56","Gezinsbegeleiding specialistisch","Ambulant","uur","Totaal binnen geldigheidsduur of tijdsonafhankelijk",91.850000000000009,109.5,96.550000000000011,90050955,"Tressan"]
["45A56","Gezinsbegeleiding specialistisch","Ambulant","uur","Totaal binnen geldigheidsduur of tijdsonafhankelijk",101.55000000000001,109.5,106.75,90054404,"La Hacienda B.V."]
["45A56","Gezinsbegeleiding specialistisch","Ambulant","uur","Totaal binnen geldigheidsduur of tijdsonafhankelijk",94.550000000000011,109.5,99.4,"90060482","Kindertherapie Anouk Endeveld"]
["45A56","Gezinsbegeleiding specialistisch","Ambulant","uur","Totaal binnen geldigheidsduur of tijdsonafhankelijk",104.15,109.5,109.5,"94063526","Jody Schoolpsychologie"]
["45A56","Gezinsbegeleiding specialistisch","Ambulant","uur","Totaal binnen geldigheidsduur of tijdsonafhankelijk",104.15,109.5,109.5,94064729,"Pedagogische praktijk Gieten"]
["45A56","Gezinsbegeleiding specialistisch","Ambulant","uur","Totaal binnen geldigheidsduur of tijdsonafhankelijk",99.65,109.5,104.75,"94064988","Mindcare Assen B.V."]
["45A56","Gezinsbegeleiding specialistisch","Ambulant","uur","Totaal binnen geldigheidsduur of tijdsonafhankelijk",104.15,109.5,109.5,94065371,"Via Trox B.V."]
["45A56","Gezinsbegeleiding specialistisch","Ambulant","uur","Totaal binnen geldigheidsduur of tijdsonafhankelijk",102.15,109.5,107.4,94065636,"Kennis in Kracht B.V."]
["45A56","Gezinsbegeleiding specialistisch","Ambulant","uur","Totaal binnen geldigheidsduur of tijdsonafhankelijk",80.7,109.5,{"$f":"F514","v":80.7},94065671,"Omgangshuis-Loman"]
["45A56","Gezinsbegeleiding specialistisch","Ambulant","uur","Totaal binnen geldigheidsduur of tijdsonafhankelijk",100.45,109.5,{"$f":"MROUND(F515*1.0513,0.05)","v":105.60000000000001},"94066333","Pedagogische Praktijk Marum"]
["45A56","Gezinsbegeleiding specialistisch","Ambulant","uur","Totaal binnen geldigheidsduur of tijdsonafhankelijk",104.15,109.5,109.5,94067980,"Praktijk Praght"]
["45A56","Gezinsbegeleiding specialistisch","Ambulant","uur","Totaal binnen geldigheidsduur of tijdsonafhankelijk",104.15,109.5,109.5,98099028,"Protestants-Christelijke Stichting Philadelphia Zorg"]
["45A56","Gezinsbegeleiding specialistisch","Ambulant","uur","Totaal binnen geldigheidsduur of tijdsonafhankelijk",104.15,109.5,109.5,98099048,"Stichting Leger des Heils Welzijns- en Gezondheidszorg"]
["45A56","Gezinsbegeleiding specialistisch","Ambulant","uur","Totaal binnen geldigheidsduur of tijdsonafhankelijk",104.15,109.5,109.5,98100320,"Jemalupe"]
["45A56","Gezinsbegeleiding specialistisch","Ambulant","uur","Totaal binnen geldigheidsduur of tijdsonafhankelijk",90.15,109.5,94.75,"98100382","Noorderkompas"]
["45A56","Gezinsbegeleiding specialistisch","Ambulant","uur","Totaal binnen geldigheidsduur of tijdsonafhankelijk",104.15,109.5,109.5,98100521,"Stichting MEE Noord"]
["45A56","Gezinsbegeleiding specialistisch","Ambulant","uur","Totaal binnen geldigheidsduur of tijdsonafhankelijk",104.15,109.5,109.5,"98100550","Effect B.V."]
["45A56","Gezinsbegeleiding specialistisch","Ambulant","uur","Totaal binnen geldigheidsduur of tijdsonafhankelijk",99.65,109.5,{"$f":"G523","v":109.5},98101997,"Liganta B.V."]
["45A56","Gezinsbegeleiding specialistisch","Ambulant","uur","Totaal binnen geldigheidsduur of tijdsonafhankelijk",99.25,109.5,{"$f":"MROUND(F524*1.0513,0.05)","v":104.35000000000001},98102110,"Feniks Zorg en Jeugd B.V."]
["45A56","Gezinsbegeleiding specialistisch","Ambulant","uur","Totaal binnen geldigheidsduur of tijdsonafhankelijk",100.45,109.5,{"$f":"F525","v":100.45},98102566,"SamenOmTafel"]
["45A56","Gezinsbegeleiding specialistisch","Ambulant","uur","Totaal binnen geldigheidsduur of tijdsonafhankelijk",89,109.5,{"$f":"MROUND(F526*1.0513,0.05)","v":93.550000000000011},98103185,"Mereo"]
["45A56","Gezinsbegeleiding specialistisch","Ambulant","uur","Totaal binnen geldigheidsduur of tijdsonafhankelijk",97.550000000000011,109.5,102.55000000000001,"98103195","Ik ben een regenboog"]
["45A56","Gezinsbegeleiding specialistisch","Ambulant","uur","Totaal binnen geldigheidsduur of tijdsonafhankelijk",104.15,109.5,109.5,98103642,"Stichting Community Support"]
["45A56","Gezinsbegeleiding specialistisch","Ambulant","uur","Totaal binnen geldigheidsduur of tijdsonafhankelijk",104.15,109.5,109.5,"98104298","Saul B.V."]
["45A56","Gezinsbegeleiding specialistisch","Ambulant","uur","Totaal binnen geldigheidsduur of tijdsonafhankelijk",104.15,109.5,109.5,98104681,"Veni Etinam B.V."]
["45A56","Gezinsbegeleiding specialistisch","Ambulant","uur","Totaal binnen geldigheidsduur of tijdsonafhankelijk",104.15,109.5,109.5,98105723,"Care Forward Noord B.V."]
["45A56","Gezinsbegeleiding specialistisch","Ambulant","uur","Totaal binnen geldigheidsduur of tijdsonafhankelijk",104.15,109.5,109.5,98105818,"KOEN B.V."]
["45A56","Gezinsbegeleiding specialistisch","Ambulant","uur","Totaal binnen geldigheidsduur of tijdsonafhankelijk",104.15,109.5,109.5,"98105913","Zorgkracht 12, de Noordelijke Zorgcoöperatie U.A."]
["45A56","Gezinsbegeleiding specialistisch","Ambulant","uur","Totaal binnen geldigheidsduur of tijdsonafhankelijk",100.4,109.5,{"$f":"F534","v":100.4},98105917,"X-Tense B.V."]
["45A56","Gezinsbegeleiding specialistisch","Ambulant","uur","Totaal binnen geldigheidsduur of tijdsonafhankelijk",100.45,109.5,{"$f":"MROUND(F535*1.0513,0.05)","v":105.60000000000001},98106080,"Mij een Zorg B.V."]
["45A56","Gezinsbegeleiding specialistisch","Ambulant","uur","Totaal binnen geldigheidsduur of tijdsonafhankelijk",97.45,109.5,102.45,98107274,"Jongerenzorg Barkema en De Haan B.V."]
["45A56","Gezinsbegeleiding specialistisch","Ambulant","uur","Totaal binnen geldigheidsduur of tijdsonafhankelijk",97.45,109.5,102.45,"98107597","De Ezelsbrug B.V."]
["45G02","Gezinsdiagnostiek","Ambulant","uur","Totaal binnen geldigheidsduur of tijdsonafhankelijk",129.25,135.9,135.9,"06290106","Stichting Elker"]
["45G02","Gezinsdiagnostiek","Ambulant","uur","Totaal binnen geldigheidsduur of tijdsonafhankelijk",129.25,135.9,135.9,"06290308","Stichting Lentis Maatschappelijke Onderneming"]
["45G02","Gezinsdiagnostiek","Ambulant","uur","Totaal binnen geldigheidsduur of tijdsonafhankelijk",129.25,135.9,135.9,"53530112","Cedin B.V."]
["45G02","Gezinsdiagnostiek","Ambulant","uur","Totaal binnen geldigheidsduur of tijdsonafhankelijk",129.25,135.9,135.9,"65656687","Stichting Cosis"]
["45G02","Gezinsdiagnostiek","Ambulant","uur","Totaal binnen geldigheidsduur of tijdsonafhankelijk",129.25,135.9,135.9,"94063510","Kinderbijstand (orthopedagogisch onderzoek en advies)"]
["45G02","Gezinsdiagnostiek","Ambulant","uur","Totaal binnen geldigheidsduur of tijdsonafhankelijk",129.25,135.9,135.9,94065371,"Via Trox B.V."]
["45G02","Gezinsdiagnostiek","Ambulant","uur","Totaal binnen geldigheidsduur of tijdsonafhankelijk",129.25,135.9,135.9,98105818,"KOEN B.V."]
["45G02","Gezinsdiagnostiek","Ambulant","uur","Totaal binnen geldigheidsduur of tijdsonafhankelijk",111,135.9,116.7,"98105913","Zorgkracht 12, de Noordelijke Zorgcoöperatie U.A."]
["45G03","Intensieve ambulante of psychiatrische gezinsbehandeling","Ambulant","uur","Totaal binnen geldigheidsduur of tijdsonafhankelijk",113.4,119.2,119.2,"06290106","Stichting Elker"]
["45G03","Intensieve ambulante of psychiatrische gezinsbehandeling","Ambulant","uur","Totaal binnen geldigheidsduur of tijdsonafhankelijk",113.4,119.2,119.2,"06290613","Stichting Eleos, christelijke ggz"]
["45G03","Intensieve ambulante of psychiatrische gezinsbehandeling","Ambulant","uur","Totaal binnen geldigheidsduur of tijdsonafhankelijk",113.4,119.2,119.2,"30300514","Stichting Ambiq"]
["45G03","Intensieve ambulante of psychiatrische gezinsbehandeling","Ambulant","uur","Totaal binnen geldigheidsduur of tijdsonafhankelijk",111.15,119.2,116.85000000000001,"30300685","Stichting 's Heeren Loo Zorggroep"]
["45G03","Intensieve ambulante of psychiatrische gezinsbehandeling","Ambulant","uur","Totaal binnen geldigheidsduur of tijdsonafhankelijk",113.4,119.2,119.2,"65656687","Stichting Cosis"]
["45G03","Intensieve ambulante of psychiatrische gezinsbehandeling","Ambulant","uur","Totaal binnen geldigheidsduur of tijdsonafhankelijk",113.4,119.2,119.2,73730305,"Stichting Yorneo Beheer"]
["45G03","Intensieve ambulante of psychiatrische gezinsbehandeling","Ambulant","uur","Totaal binnen geldigheidsduur of tijdsonafhankelijk",113.4,119.2,119.2,73732403,"Mentaal Beter Cure B.V."]
["45G03","Intensieve ambulante of psychiatrische gezinsbehandeling","Ambulant","uur","Totaal binnen geldigheidsduur of tijdsonafhankelijk",113.4,119.2,119.2,90092588,"Praktijk Systeemtherapie Groningen B.V."]
["45G03","Intensieve ambulante of psychiatrische gezinsbehandeling","Ambulant","uur","Totaal binnen geldigheidsduur of tijdsonafhankelijk",107.2,119.2,112.7,"94064988","Mindcare Assen B.V."]
["45G03","Intensieve ambulante of psychiatrische gezinsbehandeling","Ambulant","uur","Totaal binnen geldigheidsduur of tijdsonafhankelijk",113.4,119.2,119.2,94065371,"Via Trox B.V."]
["45G03","Intensieve ambulante of psychiatrische gezinsbehandeling","Ambulant","uur","Totaal binnen geldigheidsduur of tijdsonafhankelijk",113.4,119.2,119.2,94065636,"Kennis in Kracht B.V."]
["45G03","Intensieve ambulante of psychiatrische gezinsbehandeling","Ambulant","uur","Totaal binnen geldigheidsduur of tijdsonafhankelijk",113.4,119.2,119.2,94067980,"Praktijk Praght"]
["45G03","Intensieve ambulante of psychiatrische gezinsbehandeling","Ambulant","uur","Totaal binnen geldigheidsduur of tijdsonafhankelijk",113.4,119.2,119.2,98099048,"Stichting Leger des Heils Welzijns- en Gezondheidszorg"]
["45G03","Intensieve ambulante of psychiatrische gezinsbehandeling","Ambulant","uur","Totaal binnen geldigheidsduur of tijdsonafhankelijk",102.80000000000001,119.2,108.05000000000001,"98100382","Noorderkompas"]
["45G03","Intensieve ambulante of psychiatrische gezinsbehandeling","Ambulant","uur","Totaal binnen geldigheidsduur of tijdsonafhankelijk",113.4,119.2,119.2,98103642,"Stichting Community Support"]
["45G03","Intensieve ambulante of psychiatrische gezinsbehandeling","Ambulant","uur","Totaal binnen geldigheidsduur of tijdsonafhankelijk",113.4,119.2,119.2,"98104298","Saul B.V."]
["45G03","Intensieve ambulante of psychiatrische gezinsbehandeling","Ambulant","uur","Totaal binnen geldigheidsduur of tijdsonafhankelijk",113.4,119.2,119.2,98105723,"Care Forward Noord B.V."]
["45G03","Intensieve ambulante of psychiatrische gezinsbehandeling","Ambulant","uur","Totaal binnen geldigheidsduur of tijdsonafhankelijk",113.4,119.2,119.2,98105818,"KOEN B.V."]
["45G03","Intensieve ambulante of psychiatrische gezinsbehandeling","Ambulant","uur","Totaal binnen geldigheidsduur of tijdsonafhankelijk",113.4,119.2,119.2,"98105913","Zorgkracht 12, de Noordelijke Zorgcoöperatie U.A."]
["45G04","Systeemtherapie","Intensief ambulant","uur","Totaal binnen geldigheidsduur of tijdsonafhankelijk",130.05000000000001,148.25,{"$f":"G565","v":148.25},"06290105","Stichting Verslavingszorg Noord Nederland"]
["45G04","Systeemtherapie","Intensief ambulant","uur","Totaal binnen geldigheidsduur of tijdsonafhankelijk",141,148.25,{"$f":"MROUND(F566*1.0513,0.05)","v":148.25},"06290308","Stichting Lentis Maatschappelijke Onderneming"]
["45G04","Systeemtherapie","Intensief ambulant","uur","Totaal binnen geldigheidsduur of tijdsonafhankelijk",141,148.25,148.25,"22227218","OCRN B.V."]
["45G04","Systeemtherapie","Intensief ambulant","uur","Totaal binnen geldigheidsduur of tijdsonafhankelijk",141,148.25,148.25,"30300514","Stichting Ambiq"]
["45G04","Systeemtherapie","Intensief ambulant","uur","Totaal binnen geldigheidsduur of tijdsonafhankelijk",138.30000000000001,148.25,145.4,"30300685","Stichting 's Heeren Loo Zorggroep"]
["45G04","Systeemtherapie","Intensief ambulant","uur","Totaal binnen geldigheidsduur of tijdsonafhankelijk",141,148.25,148.25,53530112,"Cedin B.V."]
["45G04","Systeemtherapie","Intensief ambulant","uur","Totaal binnen geldigheidsduur of tijdsonafhankelijk",141,148.25,148.25,"65656687","Stichting Cosis"]
["45G04","Systeemtherapie","Intensief ambulant","uur","Totaal binnen geldigheidsduur of tijdsonafhankelijk",130.05000000000001,148.25,136.70000000000002,"72727340","Pi-groep Zorg B.V."]
["45G04","Systeemtherapie","Intensief ambulant","uur","Totaal binnen geldigheidsduur of tijdsonafhankelijk",null,148.25,148.25,73730305,"Stichting Yorneo Beheer"]
["45G04","Systeemtherapie","Intensief ambulant","uur","Totaal binnen geldigheidsduur of tijdsonafhankelijk",134.05000000000001,148.25,{"$f":"MROUND(F574*1.0513,0.05)","v":140.95000000000002},"75751904","Coöperatie Dichtbij U.A."]
["45G04","Systeemtherapie","Intensief ambulant","uur","Totaal binnen geldigheidsduur of tijdsonafhankelijk",136.94999999999999,148.25,144,90092588,"Praktijk Systeemtherapie Groningen B.V."]
["45G04","Systeemtherapie","Intensief ambulant","uur","Totaal binnen geldigheidsduur of tijdsonafhankelijk",136.05000000000001,148.25,143.05000000000001,"94062709","Psy-praktijk Grootegast"]
["45G04","Systeemtherapie","Intensief ambulant","uur","Totaal binnen geldigheidsduur of tijdsonafhankelijk",141,148.25,148.25,"94064988","Mindcare Assen B.V."]
["45G04","Systeemtherapie","Intensief ambulant","uur","Totaal binnen geldigheidsduur of tijdsonafhankelijk",141,148.25,148.25,94065371,"Via Trox B.V."]
["45G04","Systeemtherapie","Intensief ambulant","uur","Totaal binnen geldigheidsduur of tijdsonafhankelijk",138.30000000000001,148.25,145.4,94065636,"Kennis in Kracht B.V."]
["45G04","Systeemtherapie","Intensief ambulant","uur","Totaal binnen geldigheidsduur of tijdsonafhankelijk",113.85000000000001,148.25,{"$f":"G580","v":148.25},98102203,"Madelies B.V."]
["45G04","Systeemtherapie","Intensief ambulant","uur","Totaal binnen geldigheidsduur of tijdsonafhankelijk",null,148.25,148.25,98103642,"Stichting Community Support"]
["45G04","Systeemtherapie","Intensief ambulant","uur","Totaal binnen geldigheidsduur of tijdsonafhankelijk",null,148.25,148.25,"98104298","Saul B.V."]
["45G04","Systeemtherapie","Intensief ambulant","uur","Totaal binnen geldigheidsduur of tijdsonafhankelijk",141,148.25,{"$f":"MROUND(F583*1.0513,0.05)","v":148.25},98105818,"KOEN B.V."]
["45G04","Systeemtherapie","Intensief ambulant","uur","Totaal binnen geldigheidsduur of tijdsonafhankelijk",116.7,148.25,{"$f":"MROUND(F584*1.0513,0.05)","v":122.7},"98105913","Zorgkracht 12, de Noordelijke Zorgcoöperatie U.A."]
["45G04","Systeemtherapie","Intensief ambulant","uur","Totaal binnen geldigheidsduur of tijdsonafhankelijk",null,148.25,148.25,98107861,"Mira Mi"]
["45G05","Specifieke doelgroepen 6 Gezinnen met Geringe Sociale Redzaamheid met het accent op lichtere vormen van begeleiding","Specifieke doelgroepen","uur","Totaal binnen geldigheidsduur of tijdsonafhankelijk",101.5,101.5,{"$f":"MROUND(F586*1.0513,0.05)","v":106.7},"65656687","Stichting Cosis"]
["45G05","Specifieke doelgroepen 6 Gezinnen met Geringe Sociale Redzaamheid met het accent op lichtere vormen van begeleiding","Specifieke doelgroepen","uur","Totaal binnen geldigheidsduur of tijdsonafhankelijk",101.5,101.5,106.7,98100521,"Stichting MEE Noord"]
["45G05","Specifieke doelgroepen 6 Gezinnen met Geringe Sociale Redzaamheid met het accent op lichtere vormen van begeleiding","Specifieke doelgroepen","uur","Totaal binnen geldigheidsduur of tijdsonafhankelijk",96.75,101.5,101.7,98107274,"Jongerenzorg Barkema en De Haan B.V."]
["45G06","Specifieke doelgroepen 7 Gezinnen met Geringe Sociale Redzaamheid met het accent op specialistische begeleiding en behandeling","Specifieke doelgroepen","uur","Totaal binnen geldigheidsduur of tijdsonafhankelijk",120,126.15,126.15,"65656687","Stichting Cosis"]
["45G06","Specifieke doelgroepen 7 Gezinnen met Geringe Sociale Redzaamheid met het accent op specialistische begeleiding en behandeling","Specifieke doelgroepen","uur","Totaal binnen geldigheidsduur of tijdsonafhankelijk",120,126.15,126.15,94065371,"Via Trox B.V."]
["45G06","Specifieke doelgroepen 7 Gezinnen met Geringe Sociale Redzaamheid met het accent op specialistische begeleiding en behandeling","Specifieke doelgroepen","uur","Totaal binnen geldigheidsduur of tijdsonafhankelijk",120,126.15,126.15,98099048,"Stichting Leger des Heils Welzijns- en Gezondheidszorg"]
["45G06","Specifieke doelgroepen 7 Gezinnen met Geringe Sociale Redzaamheid met het accent op specialistische begeleiding en behandeling","Specifieke doelgroepen","uur","Totaal binnen geldigheidsduur of tijdsonafhankelijk",117.55000000000001,126.15,{"$f":"G592","v":126.15},98101997,"Liganta B.V."]
["45G07","Gezinspsychiatrie en ouderschapsdiagnostiek","Klinisch verblijf","stuk","Totaal binnen geldigheidsduur of tijdsonafhankelijk",null,"nvt","nvt","06290301","Stichting GGZ Drenthe"]
["45G24","Groepsbegeleidingsprogramma jongeren zonder structurele overnachting","Intensief ambulant","uur","Totaal binnen geldigheidsduur of tijdsonafhankelijk",93.550000000000011,98.35,{"$f":"MROUND(F594*1.0513,0.05)","v":98.350000000000009},73730183,"Overstag Zorg B.V."]
["45G25","Multi Dimensionele Familie Therapie","Intensief ambulant","stuk (12)","Totaal binnen geldigheidsduur of tijdsonafhankelijk",12266.300000000001,13987.85,1165.6500000000001,"06290105","Stichting Verslavingszorg Noord Nederland"]
["45G25","Multi Dimensionele Familie Therapie","Intensief ambulant","stuk (12)","Totaal binnen geldigheidsduur of tijdsonafhankelijk",13305.300000000001,13987.85,1165.6500000000001,"06290106","Stichting Elker"]
["45G25","Multi Dimensionele Familie Therapie","Intensief ambulant","stuk (12)","Totaal binnen geldigheidsduur of tijdsonafhankelijk",13305.300000000001,13987.85,{"$f":"MROUND(F597*1.0513/12,0.05)","v":1165.6500000000001},"30300514","Stichting Ambiq"]
["45G25","Multi Dimensionele Familie Therapie","Intensief ambulant","stuk (12)","Totaal binnen geldigheidsduur of tijdsonafhankelijk",13305.300000000001,13987.85,{"$f":"MROUND(F598*1.0513/12,0.05)","v":1165.6500000000001},73730305,"Stichting Yorneo Beheer"]
["45G25","Multi Dimensionele Familie Therapie","Intensief ambulant","stuk (12)","Totaal binnen geldigheidsduur of tijdsonafhankelijk",null,13987.85,1165.6500000000001,98106217,"In-Menz B.V."]
["45G27","Multi Systeem Therapie (MST)","Intensief ambulant","stuk (12)","Totaal binnen geldigheidsduur of tijdsonafhankelijk",21100.550000000003,22183,{"$f":"MROUND(F600*1.0513/12,0.05)","v":1848.6000000000001},73730305,"Stichting Yorneo Beheer"]
["45G29","Groepsbegeleidingsprogramma jongeren met overnachting","Intensief ambulant","stuk (12)","Totaal binnen geldigheidsduur of tijdsonafhankelijk",4284.55,4504.3500000000004,{"$f":"MROUND(F601*1.0513/12,0.05)","v":375.35},"98105913","Zorgkracht 12, de Noordelijke Zorgcoöperatie U.A."]
["46A01","Crisis jeugdhulp ambulant","Crisis","uur","Totaal binnen geldigheidsduur of tijdsonafhankelijk",208.4,null,219.1,"06290104","Stichting Accare"]
["46A01","Crisis jeugdhulp ambulant","Crisis","uur","Totaal binnen geldigheidsduur of tijdsonafhankelijk",208.4,null,219.1,"06290308","Stichting Lentis Maatschappelijke Onderneming"]
["46A01","Crisis jeugdhulp ambulant","Crisis","uur","Totaal binnen geldigheidsduur of tijdsonafhankelijk",209.9,null,220.65,98099048,"Stichting Leger des Heils Welzijns- en Gezondheidszorg"]
["46A03","Crisis jeugdhulp verblijf","Crisis","etmaal","Totaal binnen geldigheidsduur of tijdsonafhankelijk",730.40000000000009,null,767.85,"06290104","Stichting Accare"]
["46A03","Crisis jeugdhulp verblijf","Crisis","etmaal","Totaal binnen geldigheidsduur of tijdsonafhankelijk",730.40000000000009,null,767.85,"06290106","Stichting Elker"]
["46A03","Crisis jeugdhulp verblijf","Crisis","etmaal","Totaal binnen geldigheidsduur of tijdsonafhankelijk",478.40000000000003,null,502.95,"30300514","Stichting Ambiq"]
["46A03","Crisis jeugdhulp verblijf","Crisis","etmaal","Totaal binnen geldigheidsduur of tijdsonafhankelijk",730.40000000000009,null,767.85,98099048,"Stichting Leger des Heils Welzijns- en Gezondheidszorg"]
["46A05","Crisis jeugdhulp pleegzorg","Crisis","etmaal","Totaal binnen geldigheidsduur of tijdsonafhankelijk",151.1,null,158.85,"06290106","Stichting Elker"]
["46A05","Crisis jeugdhulp pleegzorg","Crisis","etmaal","Totaal binnen geldigheidsduur of tijdsonafhankelijk",86.7,null,91.15,98099048,"Stichting Leger des Heils Welzijns- en Gezondheidszorg"]
["47B10","Jeugdreclassering","Jeugdreclassering","stuk","per maand","nvt","nvt","nvt","98099349","William Schrikker Stichting Jeugdbescherming- Jeugdreclassering"]
["47B10","Jeugdreclassering","Jeugdreclassering","stuk","per maand","nvt","nvt","nvt",98100201,"Stichting Jeugdbescherming Noord en Veilig Thuis Groningen"]
["47B10","Jeugdreclassering","Jeugdreclassering","stuk","per maand","nvt","nvt","nvt","98100236","Leger des Heils Jeugdbescherming en Reclassering"]
["47B11","GedragsBeïnvloedende Maatregel advies","Jeugdreclassering","stuk","per maand","nvt","nvt","nvt","98099349","William Schrikker Stichting Jeugdbescherming- Jeugdreclassering"]
["47B11","GedragsBeïnvloedende Maatregel advies","Jeugdreclassering","stuk","per maand","nvt","nvt","nvt",98100201,"Stichting Jeugdbescherming Noord en Veilig Thuis Groningen"]
["47B11","GedragsBeïnvloedende Maatregel advies","Jeugdreclassering","stuk","per maand","nvt","nvt","nvt","98100236","Leger des Heils Jeugdbescherming en Reclassering"]
["47B12","GedragsBeïnvloedende Maatregel uitvoering","Jeugdreclassering","stuk","per maand","nvt","nvt","nvt","98099349","William Schrikker Stichting Jeugdbescherming- Jeugdreclassering"]
["47B12","GedragsBeïnvloedende Maatregel uitvoering","Jeugdreclassering","stuk","per maand","nvt","nvt","nvt",98100201,"Stichting Jeugdbescherming Noord en Veilig Thuis Groningen"]
["47B12","GedragsBeïnvloedende Maatregel uitvoering","Jeugdreclassering","stuk","per maand","nvt","nvt","nvt","98100236","Leger des Heils Jeugdbescherming en Reclassering"]
["47B13","Intensieve TrajectBegeleiding CRIEM","Jeugdreclassering","stuk","per maand","nvt","nvt","nvt","98099349","William Schrikker Stichting Jeugdbescherming- Jeugdreclassering"]
["47B13","Intensieve TrajectBegeleiding CRIEM","Jeugdreclassering","stuk","per maand","nvt","nvt","nvt",98100201,"Stichting Jeugdbescherming Noord en Veilig Thuis Groningen"]
["47B13","Intensieve TrajectBegeleiding CRIEM","Jeugdreclassering","stuk","per maand","nvt","nvt","nvt","98100236","Leger des Heils Jeugdbescherming en Reclassering"]
["47B14","Intensieve TrajectBegeleiding Harde kern","Jeugdreclassering","stuk","per maand","nvt","nvt","nvt","98099349","William Schrikker Stichting Jeugdbescherming- Jeugdreclassering"]
["47B14","Intensieve TrajectBegeleiding Harde kern","Jeugdreclassering","stuk","per maand","nvt","nvt","nvt",98100201,"Stichting Jeugdbescherming Noord en Veilig Thuis Groningen"]
["47B14","Intensieve TrajectBegeleiding Harde kern","Jeugdreclassering","stuk","per maand","nvt","nvt","nvt","98100236","Leger des Heils Jeugdbescherming en Reclassering"]
["47B15","Jeugdreclassering Samenloop","Jeugdreclassering","stuk","per maand","nvt","nvt","nvt","98099349","William Schrikker Stichting Jeugdbescherming- Jeugdreclassering"]
["47B15","Jeugdreclassering Samenloop","Jeugdreclassering","stuk","per maand","nvt","nvt","nvt",98100201,"Stichting Jeugdbescherming Noord en Veilig Thuis Groningen"]
["47B15","Jeugdreclassering Samenloop","Jeugdreclassering","stuk","per maand","nvt","nvt","nvt","98100236","Leger des Heils Jeugdbescherming en Reclassering"]
["47B16","Scholings- en TrainingsProgramma","Jeugdreclassering","stuk","per maand","nvt","nvt","nvt","98099349","William Schrikker Stichting Jeugdbescherming- Jeugdreclassering"]
["47B16","Scholings- en TrainingsProgramma","Jeugdreclassering","stuk","per maand","nvt","nvt","nvt",98100201,"Stichting Jeugdbescherming Noord en Veilig Thuis Groningen"]
["47B16","Scholings- en TrainingsProgramma","Jeugdreclassering","stuk","per maand","nvt","nvt","nvt","98100236","Leger des Heils Jeugdbescherming en Reclassering"]
["48B10","Ondertoezichtstelling","Jeugdbescherming","stuk","per maand","nvt","nvt","nvt","98099349","William Schrikker Stichting Jeugdbescherming- Jeugdreclassering"]
["48B10","Ondertoezichtstelling","Jeugdbescherming","stuk","per maand","nvt","nvt","nvt",98100201,"Stichting Jeugdbescherming Noord en Veilig Thuis Groningen"]
["48B10","Ondertoezichtstelling","Jeugdbescherming","stuk","per maand","nvt","nvt","nvt","98100236","Leger des Heils Jeugdbescherming en Reclassering"]
["48B11","Voogdij","Jeugdbescherming","stuk","per maand","nvt","nvt","nvt","98099349","William Schrikker Stichting Jeugdbescherming- Jeugdreclassering"]
["48B11","Voogdij","Jeugdbescherming","stuk","per maand","nvt","nvt","nvt",98100201,"Stichting Jeugdbescherming Noord en Veilig Thuis Groningen"]
["48B11","Voogdij","Jeugdbescherming","stuk","per maand","nvt","nvt","nvt","98100236","Leger des Heils Jeugdbescherming en Reclassering"]
["48B12","LET Jeugdbescherming Ondertoezichtstelling","Landelijk Expertise Team Jeugdbescherming","stuk","Totaal binnen geldigheidsduur of tijdsonafhankelijk","nvt","nvt","nvt","98099349","William Schrikker Stichting Jeugdbescherming- Jeugdreclassering"]
["48B12","LET Jeugdbescherming Ondertoezichtstelling","Landelijk Expertise Team Jeugdbescherming","stuk","Totaal binnen geldigheidsduur of tijdsonafhankelijk","nvt","nvt","nvt",98100201,"Stichting Jeugdbescherming Noord en Veilig Thuis Groningen"]
["48B12","LET Jeugdbescherming Ondertoezichtstelling","Landelijk Expertise Team Jeugdbescherming","stuk","Totaal binnen geldigheidsduur of tijdsonafhankelijk","nvt","nvt","nvt","98100236","Leger des Heils Jeugdbescherming en Reclassering"]
["48B13","LET Jeugdbescherming Voogdij","Landelijk Expertise Team Jeugdbescherming","stuk","Totaal binnen geldigheidsduur of tijdsonafhankelijk","nvt","nvt","nvt","98099349","William Schrikker Stichting Jeugdbescherming- Jeugdreclassering"]
["48B13","LET Jeugdbescherming Voogdij","Landelijk Expertise Team Jeugdbescherming","stuk","Totaal binnen geldigheidsduur of tijdsonafhankelijk","nvt","nvt","nvt",98100201,"Stichting Jeugdbescherming Noord en Veilig Thuis Groningen"]
["48B13","LET Jeugdbescherming Voogdij","Landelijk Expertise Team Jeugdbescherming","stuk","Totaal binnen geldigheidsduur of tijdsonafhankelijk","nvt","nvt","nvt","98100236","Leger des Heils Jeugdbescherming en Reclassering"]
["49B01","Advies en ondersteuning GI bij veiligheidsvraagstukken (ter voorkoming van kinderbeschermingsmaatregelen)","Advies GI","uur","Totaal binnen geldigheidsduur of tijdsonafhankelijk","nvt","nvt","nvt","98099349","William Schrikker Stichting Jeugdbescherming- Jeugdreclassering"]
["49B01","Advies en ondersteuning GI bij veiligheidsvraagstukken (ter voorkoming van kinderbeschermingsmaatregelen)","Advies GI","uur","Totaal binnen geldigheidsduur of tijdsonafhankelijk","nvt","nvt","nvt",98100201,"Stichting Jeugdbescherming Noord en Veilig Thuis Groningen"]
["49B01","Advies en ondersteuning GI bij veiligheidsvraagstukken (ter voorkoming van kinderbeschermingsmaatregelen)","Advies GI","uur","Totaal binnen geldigheidsduur of tijdsonafhankelijk","nvt","nvt","nvt","98100236","Leger des Heils Jeugdbescherming en Reclassering"]
["50G04","IT ambulante spoedhulp","Crisis","uur","Totaal binnen geldigheidsduur of tijdsonafhankelijk",228.04,null,239.75,"06290106","Stichting Elker"]
["50G06","Specifieke doelgroepen 1 Integrale vroeghulp bij diffuse ontwikkelingsproblemen jonge kinderen","Specifieke doelgroepen","uur","Totaal binnen geldigheidsduur of tijdsonafhankelijk",109.45,115.05,{"$f":"MROUND(F648*1.0513,0.05)","v":115.05000000000001},"53530112","Cedin B.V."]
["50G06","Specifieke doelgroepen 1 Integrale vroeghulp bij diffuse ontwikkelingsproblemen jonge kinderen","Specifieke doelgroepen","uur","Totaal binnen geldigheidsduur of tijdsonafhankelijk",109.45,115.05,115.05000000000001,98100521,"Stichting MEE Noord"]
["50G26","Specifieke doelgroepen 3 Behoud van en Toeleiding naar onderwijsdeelname (deelproduct jeugdhulp)","Specifieke doelgroepen","uur","Totaal binnen geldigheidsduur of tijdsonafhankelijk",113.4,119.2,119.2,"06290106","Stichting Elker"]
["50G26","Specifieke doelgroepen 3 Behoud van en Toeleiding naar onderwijsdeelname (deelproduct jeugdhulp)","Specifieke doelgroepen","uur","Totaal binnen geldigheidsduur of tijdsonafhankelijk",113.4,119.2,119.2,"53530112","Cedin B.V."]
["50G26","Specifieke doelgroepen 3 Behoud van en Toeleiding naar onderwijsdeelname (deelproduct jeugdhulp)","Specifieke doelgroepen","uur","Totaal binnen geldigheidsduur of tijdsonafhankelijk",110.10000000000001,119.2,115.75,"65656687","Stichting Cosis"]
["50G26","Specifieke doelgroepen 3 Behoud van en Toeleiding naar onderwijsdeelname (deelproduct jeugdhulp)","Specifieke doelgroepen","uur","Totaal binnen geldigheidsduur of tijdsonafhankelijk",113.4,119.2,119.2,73730356,"Horizon Begeleiding"]
["50G26","Specifieke doelgroepen 3 Behoud van en Toeleiding naar onderwijsdeelname (deelproduct jeugdhulp)","Specifieke doelgroepen","uur","Totaal binnen geldigheidsduur of tijdsonafhankelijk",104.55000000000001,119.2,{"$f":"MROUND(F654*1.0403,0.05)","v":108.75},73730430,"autismehuis"]
["50G26","Specifieke doelgroepen 3 Behoud van en Toeleiding naar onderwijsdeelname (deelproduct jeugdhulp)","Specifieke doelgroepen","uur","Totaal binnen geldigheidsduur of tijdsonafhankelijk",108.5,119.2,{"$f":"G655","v":119.2},98101997,"Liganta B.V."]
["50G26","Specifieke doelgroepen 3 Behoud van en Toeleiding naar onderwijsdeelname (deelproduct jeugdhulp)","Specifieke doelgroepen","uur","Totaal binnen geldigheidsduur of tijdsonafhankelijk",74,119.2,{"$f":"G656","v":119.2},98102203,"Madelies B.V."]
["50G26","Specifieke doelgroepen 3 Behoud van en Toeleiding naar onderwijsdeelname (deelproduct jeugdhulp)","Specifieke doelgroepen","uur","Totaal binnen geldigheidsduur of tijdsonafhankelijk",102.55000000000001,119.2,{"$f":"F657","v":102.55000000000001},98104119,"Stichting ZorgInitiatief de Bosk"]
["50G26","Specifieke doelgroepen 3 Behoud van en Toeleiding naar onderwijsdeelname (deelproduct jeugdhulp)","Specifieke doelgroepen","uur","Totaal binnen geldigheidsduur of tijdsonafhankelijk",113.4,119.2,{"$f":"MROUND(F658*1.0513,0.05)","v":119.2},"98104298","Saul B.V."]
["50G26","Specifieke doelgroepen 3 Behoud van en Toeleiding naar onderwijsdeelname (deelproduct jeugdhulp)","Specifieke doelgroepen","uur","Totaal binnen geldigheidsduur of tijdsonafhankelijk",113.4,119.2,119.2,"98105913","Zorgkracht 12, de Noordelijke Zorgcoöperatie U.A."]
["50G26","Specifieke doelgroepen 3 Behoud van en Toeleiding naar onderwijsdeelname (deelproduct jeugdhulp)","Specifieke doelgroepen","uur","Totaal binnen geldigheidsduur of tijdsonafhankelijk",105.10000000000001,119.2,110.5,98107274,"Jongerenzorg Barkema en De Haan B.V."]
["50G26","Specifieke doelgroepen 3 Behoud van en Toeleiding naar onderwijsdeelname (deelproduct jeugdhulp)","Specifieke doelgroepen","uur","Totaal binnen geldigheidsduur of tijdsonafhankelijk",106.05000000000001,119.2,111.5,"98107597","De Ezelsbrug B.V."]
["50G33","Specifieke doelgroepen 14 Specialistisch pakket complex trauma","Specifieke doelgroepen","uur","Totaal binnen geldigheidsduur of tijdsonafhankelijk",149,156.65,156.65,"06290104","Stichting Accare"]
["50G33","Specifieke doelgroepen 14 Specialistisch pakket complex trauma","Specifieke doelgroepen","uur","Totaal binnen geldigheidsduur of tijdsonafhankelijk",149,156.65,156.65,"06290106","Stichting Elker"]
["50G33","Specifieke doelgroepen 14 Specialistisch pakket complex trauma","Specifieke doelgroepen","uur","Totaal binnen geldigheidsduur of tijdsonafhankelijk",103.9,156.65,109.25,73732403,"Mentaal Beter Cure B.V."]
["50G35","Specifieke doelgroepen 10 Consultatieve en ziekenhuis kinder- en jeugdpsychiatrie","Specifieke doelgroepen","uur","Totaal binnen geldigheidsduur of tijdsonafhankelijk",156.9,164.95,164.95000000000002,"06290104","Stichting Accare"]
["50G35","Specifieke doelgroepen 10 Consultatieve en ziekenhuis kinder- en jeugdpsychiatrie","Specifieke doelgroepen","uur","Totaal binnen geldigheidsduur of tijdsonafhankelijk",153.85000000000002,164.95,161.75,"22221126","Transcare Pijn B.V."]
["50G36","Specifieke doelgroepen 2 Vroegtijdige interventies jonge kinderen","Specifieke doelgroepen","uur","Totaal binnen geldigheidsduur of tijdsonafhankelijk",104.15,109.5,109.5,"06290106","Stichting Elker"]
["50G36","Specifieke doelgroepen 2 Vroegtijdige interventies jonge kinderen","Specifieke doelgroepen","uur","Totaal binnen geldigheidsduur of tijdsonafhankelijk",101.2,109.5,106.4,"30300397","Stichting De Trans"]
["50G36","Specifieke doelgroepen 2 Vroegtijdige interventies jonge kinderen","Specifieke doelgroepen","uur","Totaal binnen geldigheidsduur of tijdsonafhankelijk",104.15,109.5,109.5,"65656687","Stichting Cosis"]
["50G36","Specifieke doelgroepen 2 Vroegtijdige interventies jonge kinderen","Specifieke doelgroepen","uur","Totaal binnen geldigheidsduur of tijdsonafhankelijk",104.15,109.5,109.5,98100521,"Stichting MEE Noord"]
["50G38","Flexibel ACT Jeugd","Intensief ambulant","uur","Totaal binnen geldigheidsduur of tijdsonafhankelijk",131.9,138.65,138.65,"06290104","Stichting Accare"]
["50G40","Advies en ondersteuning vanuit jeugdhulpaanbieders bij complexe problematiek","Advies","uur","Totaal binnen geldigheidsduur of tijdsonafhankelijk",123.95,130.30000000000001,130.30000000000001,"06290106","Stichting Elker"]
["50G40","Advies en ondersteuning vanuit jeugdhulpaanbieders bij complexe problematiek","Advies","uur","Totaal binnen geldigheidsduur of tijdsonafhankelijk",123.95,130.30000000000001,130.30000000000001,"30300514","Stichting Ambiq"]
["50G40","Advies en ondersteuning vanuit jeugdhulpaanbieders bij complexe problematiek","Advies","uur","Totaal binnen geldigheidsduur of tijdsonafhankelijk",123.95,130.30000000000001,130.30000000000001,65651117,"Stichting De Zijlen"]
["50G40","Advies en ondersteuning vanuit jeugdhulpaanbieders bij complexe problematiek","Advies","uur","Totaal binnen geldigheidsduur of tijdsonafhankelijk",null,130.30000000000001,130.30000000000001,"65656687","Stichting Cosis"]
["50G40","Advies en ondersteuning vanuit jeugdhulpaanbieders bij complexe problematiek","Advies","uur","Totaal binnen geldigheidsduur of tijdsonafhankelijk",123.95,130.30000000000001,{"$f":"MROUND(F676*1.0513,0.05)","v":130.30000000000001},73730109,"Molendrift B.V."]
["50G40","Advies en ondersteuning vanuit jeugdhulpaanbieders bij complexe problematiek","Advies","uur","Totaal binnen geldigheidsduur of tijdsonafhankelijk",null,130.30000000000001,130.30000000000001,73730305,"Stichting Yorneo Beheer"]
["50G40","Advies en ondersteuning vanuit jeugdhulpaanbieders bij complexe problematiek","Advies","uur","Totaal binnen geldigheidsduur of tijdsonafhankelijk",123.95,130.30000000000001,{"$f":"MROUND(F678*1.0513,0.05)","v":130.30000000000001},73730356,"Horizon Begeleiding"]
["50G40","Advies en ondersteuning vanuit jeugdhulpaanbieders bij complexe problematiek","Advies","uur","Totaal binnen geldigheidsduur of tijdsonafhankelijk",117.45,130.30000000000001,{"$f":"F679","v":117.45},"94057245","Psychologenpraktijk van Wetten"]
["50G40","Advies en ondersteuning vanuit jeugdhulpaanbieders bij complexe problematiek","Advies","uur","Totaal binnen geldigheidsduur of tijdsonafhankelijk",null,130.30000000000001,130.30000000000001,"94063510","Kinderbijstand (orthopedagogisch onderzoek en advies)"]
["50G40","Advies en ondersteuning vanuit jeugdhulpaanbieders bij complexe problematiek","Advies","uur","Totaal binnen geldigheidsduur of tijdsonafhankelijk",null,130.30000000000001,130.30000000000001,94065371,"Via Trox B.V."]
["50G40","Advies en ondersteuning vanuit jeugdhulpaanbieders bij complexe problematiek","Advies","uur","Totaal binnen geldigheidsduur of tijdsonafhankelijk",null,130.30000000000001,130.30000000000001,94067719,"MeJa B.V."]
["50G40","Advies en ondersteuning vanuit jeugdhulpaanbieders bij complexe problematiek","Advies","uur","Totaal binnen geldigheidsduur of tijdsonafhankelijk",null,130.30000000000001,130.30000000000001,94067980,"Praktijk Praght"]
["50G40","Advies en ondersteuning vanuit jeugdhulpaanbieders bij complexe problematiek","Advies","uur","Totaal binnen geldigheidsduur of tijdsonafhankelijk",123.95,130.30000000000001,{"$f":"MROUND(F684*1.0513,0.05)","v":130.30000000000001},98099048,"Stichting Leger des Heils Welzijns- en Gezondheidszorg"]
["50G40","Advies en ondersteuning vanuit jeugdhulpaanbieders bij complexe problematiek","Advies","uur","Totaal binnen geldigheidsduur of tijdsonafhankelijk",119.95,130.30000000000001,{"$f":"MROUND(F685*1.0513,0.05)","v":126.10000000000001},98100521,"Stichting MEE Noord"]
["50G40","Advies en ondersteuning vanuit jeugdhulpaanbieders bij complexe problematiek","Advies","uur","Totaal binnen geldigheidsduur of tijdsonafhankelijk",null,130.30000000000001,130.30000000000001,"98104298","Saul B.V."]
["50G40","Advies en ondersteuning vanuit jeugdhulpaanbieders bij complexe problematiek","Advies","uur","Totaal binnen geldigheidsduur of tijdsonafhankelijk",123.95,130.30000000000001,{"$f":"MROUND(F687*1.0513,0.05)","v":130.30000000000001},98105818,"KOEN B.V."]
["50G41","Specifieke doelgroepen 4 en 5 Ondersteuning jeugdigen en ouders bij complexe (echt)scheiding","Specifieke doelgroepen","uur","Totaal binnen geldigheidsduur of tijdsonafhankelijk",118.65,124.75,124.75,"06290106","Stichting Elker"]
["50G41","Specifieke doelgroepen 4 en 5 Ondersteuning jeugdigen en ouders bij complexe (echt)scheiding","Specifieke doelgroepen","uur","Totaal binnen geldigheidsduur of tijdsonafhankelijk",118.65,124.75,124.75,"06290205","Stichting Jeugdhulp Friesland"]
["50G41","Specifieke doelgroepen 4 en 5 Ondersteuning jeugdigen en ouders bij complexe (echt)scheiding","Specifieke doelgroepen","uur","Totaal binnen geldigheidsduur of tijdsonafhankelijk",118.65,124.75,124.75,22227338,"INTER-PSY B.V."]
["50G41","Specifieke doelgroepen 4 en 5 Ondersteuning jeugdigen en ouders bij complexe (echt)scheiding","Specifieke doelgroepen","uur","Totaal binnen geldigheidsduur of tijdsonafhankelijk",118.65,124.75,124.75,73730109,"Molendrift B.V."]
["50G41","Specifieke doelgroepen 4 en 5 Ondersteuning jeugdigen en ouders bij complexe (echt)scheiding","Specifieke doelgroepen","uur","Totaal binnen geldigheidsduur of tijdsonafhankelijk",118.65,124.75,124.75,73730305,"Stichting Yorneo Beheer"]
["50G41","Specifieke doelgroepen 4 en 5 Ondersteuning jeugdigen en ouders bij complexe (echt)scheiding","Specifieke doelgroepen","uur","Totaal binnen geldigheidsduur of tijdsonafhankelijk",97,124.75,{"$f":"F693","v":97},"90056027","Kindertherapie & Coaching - Jasna Joosten"]
["50G41","Specifieke doelgroepen 4 en 5 Ondersteuning jeugdigen en ouders bij complexe (echt)scheiding","Specifieke doelgroepen","uur","Totaal binnen geldigheidsduur of tijdsonafhankelijk",118.65,124.75,{"$f":"MROUND(F694*1.0513,0.05)","v":124.75},"94064988","Mindcare Assen B.V."]
["50G41","Specifieke doelgroepen 4 en 5 Ondersteuning jeugdigen en ouders bij complexe (echt)scheiding","Specifieke doelgroepen","uur","Totaal binnen geldigheidsduur of tijdsonafhankelijk",96.800000000000011,124.75,{"$f":"F695","v":96.800000000000011},94065671,"Omgangshuis-Loman"]
["50G41","Specifieke doelgroepen 4 en 5 Ondersteuning jeugdigen en ouders bij complexe (echt)scheiding","Specifieke doelgroepen","uur","Totaal binnen geldigheidsduur of tijdsonafhankelijk",118.65,124.75,{"$f":"MROUND(F696*1.0513,0.05)","v":124.75},98099048,"Stichting Leger des Heils Welzijns- en Gezondheidszorg"]
["50G41","Specifieke doelgroepen 4 en 5 Ondersteuning jeugdigen en ouders bij complexe (echt)scheiding","Specifieke doelgroepen","uur","Totaal binnen geldigheidsduur of tijdsonafhankelijk",113.45,124.75,{"$f":"G697","v":124.75},98101997,"Liganta B.V."]
["50G41","Specifieke doelgroepen 4 en 5 Ondersteuning jeugdigen en ouders bij complexe (echt)scheiding","Specifieke doelgroepen","uur","Totaal binnen geldigheidsduur of tijdsonafhankelijk",114.45,124.75,{"$f":"F698","v":114.45},98102566,"SamenOmTafel"]
["50G41","Specifieke doelgroepen 4 en 5 Ondersteuning jeugdigen en ouders bij complexe (echt)scheiding","Specifieke doelgroepen","uur","Totaal binnen geldigheidsduur of tijdsonafhankelijk",102.45,124.75,{"$f":"MROUND(F699*1.0513,0.05)","v":107.7},98105180,"Familia Forte"]
["50G41","Specifieke doelgroepen 4 en 5 Ondersteuning jeugdigen en ouders bij complexe (echt)scheiding","Specifieke doelgroepen","uur","Totaal binnen geldigheidsduur of tijdsonafhankelijk",118.65,124.75,{"$f":"MROUND(F700*1.0513,0.05)","v":124.75},98105818,"KOEN B.V."]
["50G41","Specifieke doelgroepen 4 en 5 Ondersteuning jeugdigen en ouders bij complexe (echt)scheiding","Specifieke doelgroepen","uur","Totaal binnen geldigheidsduur of tijdsonafhankelijk",118.65,124.75,{"$f":"MROUND(F701*1.0513,0.05)","v":124.75},"98105913","Zorgkracht 12, de Noordelijke Zorgcoöperatie U.A."]
["50G41","Specifieke doelgroepen 4 en 5 Ondersteuning jeugdigen en ouders bij complexe (echt)scheiding","Specifieke doelgroepen","uur","Totaal binnen geldigheidsduur of tijdsonafhankelijk",118.60000000000001,124.75,{"$f":"F702","v":118.60000000000001},98105917,"X-Tense B.V."]
["50G42","Specifieke doelgroepen 11, 12 en 13 Hoog specialistisch zeer zeldzaam","Specifieke doelgroepen","uur","Totaal binnen geldigheidsduur of tijdsonafhankelijk",149,156.65,{"$f":"MROUND(F703*1.0513,0.05)","v":156.65},"06290104","Stichting Accare"]
["50G42","Specifieke doelgroepen 11, 12 en 13 Hoog specialistisch zeer zeldzaam","Specifieke doelgroepen","uur","Totaal binnen geldigheidsduur of tijdsonafhankelijk",149,156.65,{"$f":"MROUND(F704*1.0513,0.05)","v":156.65},"06290308","Stichting Lentis Maatschappelijke Onderneming"]
["51G01","Individuele behandeling basis","Ambulant","uur","Totaal binnen geldigheidsduur of tijdsonafhankelijk",98.2,128.94999999999999,{"$f":"MROUND(F705*1.0513,0.05)","v":103.25},"03072913","S. Buma"]
["51G01","Individuele behandeling basis","Ambulant","uur","Totaal binnen geldigheidsduur of tijdsonafhankelijk",113.05000000000001,128.94999999999999,{"$f":"G706","v":128.94999999999999},"06290105","Stichting Verslavingszorg Noord Nederland"]
["51G01","Individuele behandeling basis","Ambulant","uur","Totaal binnen geldigheidsduur of tijdsonafhankelijk",117.25,128.94999999999999,{"$f":"MROUND(F707*1.0513,0.05)","v":123.25},22221105,"Het Behouden Huys"]
["51G01","Individuele behandeling basis","Ambulant","uur","Totaal binnen geldigheidsduur of tijdsonafhankelijk",113.80000000000001,128.94999999999999,{"$f":"G708","v":128.94999999999999},22221125,"Psychologenpraktijk De Vaart B.V."]
["51G01","Individuele behandeling basis","Ambulant","uur","Totaal binnen geldigheidsduur of tijdsonafhankelijk",122.65,128.94999999999999,{"$f":"MROUND(F709*1.0513,0.05)","v":128.95000000000002},"22227218","OCRN B.V."]
["51G01","Individuele behandeling basis","Ambulant","uur","Totaal binnen geldigheidsduur of tijdsonafhankelijk",122.65,128.94999999999999,128.95000000000002,22227338,"INTER-PSY B.V."]
["51G01","Individuele behandeling basis","Ambulant","uur","Totaal binnen geldigheidsduur of tijdsonafhankelijk",122.65,128.94999999999999,128.95000000000002,"30300514","Stichting Ambiq"]
["51G01","Individuele behandeling basis","Ambulant","uur","Totaal binnen geldigheidsduur of tijdsonafhankelijk",120.25,128.94999999999999,126.4,"30300685","Stichting 's Heeren Loo Zorggroep"]
["51G01","Individuele behandeling basis","Ambulant","uur","Totaal binnen geldigheidsduur of tijdsonafhankelijk",122.65,128.94999999999999,128.95000000000002,"53530112","Cedin B.V."]
["51G01","Individuele behandeling basis","Ambulant","uur","Totaal binnen geldigheidsduur of tijdsonafhankelijk",119.80000000000001,128.94999999999999,125.95,53530275,"Timpaan Onderwijs B.V."]
["51G01","Individuele behandeling basis","Ambulant","uur","Totaal binnen geldigheidsduur of tijdsonafhankelijk",122.65,128.94999999999999,128.95000000000002,"65656687","Stichting Cosis"]
["51G01","Individuele behandeling basis","Ambulant","uur","Totaal binnen geldigheidsduur of tijdsonafhankelijk",113.05000000000001,128.94999999999999,118.85000000000001,"72727340","Pi-groep Zorg B.V."]
["51G01","Individuele behandeling basis","Ambulant","uur","Totaal binnen geldigheidsduur of tijdsonafhankelijk",122.65,128.94999999999999,128.95000000000002,73730109,"Molendrift B.V."]
["51G01","Individuele behandeling basis","Ambulant","uur","Totaal binnen geldigheidsduur of tijdsonafhankelijk",122.65,128.94999999999999,128.95000000000002,"73730146","Cura XL B.V."]
["51G01","Individuele behandeling basis","Ambulant","uur","Totaal binnen geldigheidsduur of tijdsonafhankelijk",122.65,128.94999999999999,128.95000000000002,73732403,"Mentaal Beter Cure B.V."]
["51G01","Individuele behandeling basis","Ambulant","uur","Totaal binnen geldigheidsduur of tijdsonafhankelijk",122.65,128.94999999999999,128.95000000000002,73737023,"Parlayan B.V."]
["51G01","Individuele behandeling basis","Ambulant","uur","Totaal binnen geldigheidsduur of tijdsonafhankelijk",122.15,128.94999999999999,128.4,"75751904","Coöperatie Dichtbij U.A."]
["51G01","Individuele behandeling basis","Ambulant","uur","Totaal binnen geldigheidsduur of tijdsonafhankelijk",122.65,128.94999999999999,128.95000000000002,78780153,"GeWoon begeleiding B.V."]
["51G01","Individuele behandeling basis","Ambulant","uur","Totaal binnen geldigheidsduur of tijdsonafhankelijk",113.05000000000001,128.94999999999999,{"$f":"F723","v":113.05000000000001},90068272,"Hersenfabriek Groningen"]
["51G01","Individuele behandeling basis","Ambulant","uur","Totaal binnen geldigheidsduur of tijdsonafhankelijk",122.65,128.94999999999999,{"$f":"MROUND(F724*1.0513,0.05)","v":128.95000000000002},94001671,"Psychologie Praktijk Lotgerink"]
["51G01","Individuele behandeling basis","Ambulant","uur","Totaal binnen geldigheidsduur of tijdsonafhankelijk",122.65,128.94999999999999,{"$f":"MROUND(F725*1.0513,0.05)","v":128.95000000000002},94002155,"Praktijk voor eerstelijns psychologie Trijn Mulder"]
["51G01","Individuele behandeling basis","Ambulant","uur","Totaal binnen geldigheidsduur of tijdsonafhankelijk",122.65,128.94999999999999,{"$f":"MROUND(F726*1.0513,0.05)","v":128.95000000000002},94002681,"Praktijk de Bongerd"]
["51G01","Individuele behandeling basis","Ambulant","uur","Totaal binnen geldigheidsduur of tijdsonafhankelijk",109.75,128.94999999999999,{"$f":"MROUND(F727*1.0403,0.05)","v":114.15},94003646,"Zo- Zorgoplossingen"]
["51G01","Individuele behandeling basis","Ambulant","uur","Totaal binnen geldigheidsduur of tijdsonafhankelijk",112,128.94999999999999,{"$f":"F728","v":112},"94057245","Psychologenpraktijk van Wetten"]
["51G01","Individuele behandeling basis","Ambulant","uur","Totaal binnen geldigheidsduur of tijdsonafhankelijk",112,128.94999999999999,{"$f":"MROUND(F729*1.0403,0.05)","v":116.5},"94057529","Praktijk Koekkoek"]
["51G01","Individuele behandeling basis","Ambulant","uur","Totaal binnen geldigheidsduur of tijdsonafhankelijk",122.65,128.94999999999999,{"$f":"MROUND(F730*1.0513,0.05)","v":128.95000000000002},94059103,"Yvonne van Pijkeren"]
["51G01","Individuele behandeling basis","Ambulant","uur","Totaal binnen geldigheidsduur of tijdsonafhankelijk",122.65,128.94999999999999,128.95000000000002,94059741,"Praktijk KJ"]
["51G01","Individuele behandeling basis","Ambulant","uur","Totaal binnen geldigheidsduur of tijdsonafhankelijk",106.75,128.94999999999999,112.25,94060369,"Orthopedagogische Praktijk De Kern"]
["51G01","Individuele behandeling basis","Ambulant","uur","Totaal binnen geldigheidsduur of tijdsonafhankelijk",116.2,128.94999999999999,122.15,94062149,"Moodboost"]
["51G01","Individuele behandeling basis","Ambulant","uur","Totaal binnen geldigheidsduur of tijdsonafhankelijk",118.25,128.94999999999999,124.30000000000001,"94062709","Psy-praktijk Grootegast"]
["51G01","Individuele behandeling basis","Ambulant","uur","Totaal binnen geldigheidsduur of tijdsonafhankelijk",121.45,128.94999999999999,127.7,94063240,"Praktijk Psychotrauma Groningen"]
["51G01","Individuele behandeling basis","Ambulant","uur","Totaal binnen geldigheidsduur of tijdsonafhankelijk",122.65,128.94999999999999,128.95000000000002,"94063270","Kind en Jeugd Centraal"]
["51G01","Individuele behandeling basis","Ambulant","uur","Totaal binnen geldigheidsduur of tijdsonafhankelijk",113.45,128.94999999999999,119.25,"94064988","Mindcare Assen B.V."]
["51G01","Individuele behandeling basis","Ambulant","uur","Totaal binnen geldigheidsduur of tijdsonafhankelijk",122.65,128.94999999999999,128.95000000000002,"94065632","Praktijk Groningen Zuid"]
["51G01","Individuele behandeling basis","Ambulant","uur","Totaal binnen geldigheidsduur of tijdsonafhankelijk",122.65,128.94999999999999,128.95000000000002,94067980,"Praktijk Praght"]
["51G01","Individuele behandeling basis","Ambulant","uur","Totaal binnen geldigheidsduur of tijdsonafhankelijk",122.65,128.94999999999999,128.95000000000002,"94068859","Westerweelde Pedagogisch Centrum B.V."]
["51G01","Individuele behandeling basis","Ambulant","uur","Totaal binnen geldigheidsduur of tijdsonafhankelijk",110.9,128.94999999999999,{"$f":"MROUND(F741*1.0403,0.05)","v":115.35000000000001},94068910,"Praktijk voor Psychosociale Hulpverlening B.V. "]
["51G01","Individuele behandeling basis","Ambulant","uur","Totaal binnen geldigheidsduur of tijdsonafhankelijk",117.25,128.94999999999999,{"$f":"G742","v":128.94999999999999},98101997,"Liganta B.V."]
["51G01","Individuele behandeling basis","Ambulant","uur","Totaal binnen geldigheidsduur of tijdsonafhankelijk",109.80000000000001,128.94999999999999,{"$f":"MROUND(F743*1.0513,0.05)","v":115.45},98102110,"Feniks Zorg en Jeugd B.V."]
["51G01","Individuele behandeling basis","Ambulant","uur","Totaal binnen geldigheidsduur of tijdsonafhankelijk",122.65,128.94999999999999,{"$f":"MROUND(F744*1.0513,0.05)","v":128.95000000000002},"98104298","Saul B.V."]
["51G01","Individuele behandeling basis","Ambulant","uur","Totaal binnen geldigheidsduur of tijdsonafhankelijk",94.45,128.94999999999999,{"$f":"MROUND(F745*1.0513,0.05)","v":99.300000000000011},"98104456","PP UNIEK voor Kind, Jongere en Gezin"]
["51G01","Individuele behandeling basis","Ambulant","uur","Totaal binnen geldigheidsduur of tijdsonafhankelijk",122.65,128.94999999999999,{"$f":"MROUND(F746*1.0513,0.05)","v":128.95000000000002},98105818,"KOEN B.V."]
["51G01","Individuele behandeling basis","Ambulant","uur","Totaal binnen geldigheidsduur of tijdsonafhankelijk",122.65,128.94999999999999,{"$f":"MROUND(F747*1.0513,0.05)","v":128.95000000000002},"98105913","Zorgkracht 12, de Noordelijke Zorgcoöperatie U.A."]
["51G01","Individuele behandeling basis","Ambulant","uur","Totaal binnen geldigheidsduur of tijdsonafhankelijk",121.75,128.94999999999999,{"$f":"F748","v":121.75},98105917,"X-Tense B.V."]
["51G01","Individuele behandeling basis","Ambulant","uur","Totaal binnen geldigheidsduur of tijdsonafhankelijk",114.7,128.94999999999999,{"$f":"MROUND(F749*1.0513,0.05)","v":120.60000000000001},"98107597","De Ezelsbrug B.V."]
["52G06","Individuele diagnostiek","Ambulant","uur","Totaal binnen geldigheidsduur of tijdsonafhankelijk",114.25,130.30000000000001,{"$f":"G750","v":130.30000000000001},"06290105","Stichting Verslavingszorg Noord Nederland"]
["52G06","Individuele diagnostiek","Ambulant","uur","Totaal binnen geldigheidsduur of tijdsonafhankelijk",123.95,130.30000000000001,{"$f":"MROUND(F751*1.0513,0.05)","v":130.30000000000001},"06290106","Stichting Elker"]
["52G06","Individuele diagnostiek","Ambulant","uur","Totaal binnen geldigheidsduur of tijdsonafhankelijk",123.95,130.30000000000001,{"$f":"F752","v":123.95},"06290204","Stichting GGZ Friesland"]
["52G06","Individuele diagnostiek","Ambulant","uur","Totaal binnen geldigheidsduur of tijdsonafhankelijk",123.95,130.30000000000001,{"$f":"MROUND(F753*1.0513,0.05)","v":130.30000000000001},"06290205","Stichting Jeugdhulp Friesland"]
["52G06","Individuele diagnostiek","Ambulant","uur","Totaal binnen geldigheidsduur of tijdsonafhankelijk",123.95,130.30000000000001,130.30000000000001,"06290308","Stichting Lentis Maatschappelijke Onderneming"]
["52G06","Individuele diagnostiek","Ambulant","uur","Totaal binnen geldigheidsduur of tijdsonafhankelijk",120.30000000000001,130.30000000000001,126.45,22221105,"Het Behouden Huys"]
["52G06","Individuele diagnostiek","Ambulant","uur","Totaal binnen geldigheidsduur of tijdsonafhankelijk",123.95,130.30000000000001,130.30000000000001,"22227218","OCRN B.V."]
["52G06","Individuele diagnostiek","Ambulant","uur","Totaal binnen geldigheidsduur of tijdsonafhankelijk",123.95,130.30000000000001,130.30000000000001,22227299,"Stichting Yes We Can Clinics"]
["52G06","Individuele diagnostiek","Ambulant","uur","Totaal binnen geldigheidsduur of tijdsonafhankelijk",123.95,130.30000000000001,130.30000000000001,22227338,"INTER-PSY B.V."]
["52G06","Individuele diagnostiek","Ambulant","uur","Totaal binnen geldigheidsduur of tijdsonafhankelijk",121.5,130.30000000000001,127.75,"30300685","Stichting 's Heeren Loo Zorggroep"]
["52G06","Individuele diagnostiek","Ambulant","uur","Totaal binnen geldigheidsduur of tijdsonafhankelijk",123.95,130.30000000000001,130.30000000000001,"53530112","Cedin B.V."]
["52G06","Individuele diagnostiek","Ambulant","uur","Totaal binnen geldigheidsduur of tijdsonafhankelijk",118.55000000000001,130.30000000000001,124.65,53530275,"Timpaan Onderwijs B.V."]
["52G06","Individuele diagnostiek","Ambulant","uur","Totaal binnen geldigheidsduur of tijdsonafhankelijk",118.55000000000001,130.30000000000001,124.65,53530281,"Regionaal Instituut voor Dyslexie B.V."]
["52G06","Individuele diagnostiek","Ambulant","uur","Totaal binnen geldigheidsduur of tijdsonafhankelijk",118,130.30000000000001,{"$f":"MROUND(F763*1.0403,0.05)","v":122.75},"53530382","Stichting Pento"]
["52G06","Individuele diagnostiek","Ambulant","uur","Totaal binnen geldigheidsduur of tijdsonafhankelijk",123.95,130.30000000000001,{"$f":"MROUND(F764*1.0513,0.05)","v":130.30000000000001},"65656687","Stichting Cosis"]
["52G06","Individuele diagnostiek","Ambulant","uur","Totaal binnen geldigheidsduur of tijdsonafhankelijk",114.25,130.30000000000001,120.10000000000001,"72727340","Pi-groep Zorg B.V."]
["52G06","Individuele diagnostiek","Ambulant","uur","Totaal binnen geldigheidsduur of tijdsonafhankelijk",123.95,130.30000000000001,130.30000000000001,73730109,"Molendrift B.V."]
["52G06","Individuele diagnostiek","Ambulant","uur","Totaal binnen geldigheidsduur of tijdsonafhankelijk",123.95,130.30000000000001,130.30000000000001,"73730146","Cura XL B.V."]
["52G06","Individuele diagnostiek","Ambulant","uur","Totaal binnen geldigheidsduur of tijdsonafhankelijk",122.15,130.30000000000001,128.4,73730175,"Stichting Schouder aan Schouder"]
["52G06","Individuele diagnostiek","Ambulant","uur","Totaal binnen geldigheidsduur of tijdsonafhankelijk",123.95,130.30000000000001,130.30000000000001,73730305,"Stichting Yorneo Beheer"]
["52G06","Individuele diagnostiek","Ambulant","uur","Totaal binnen geldigheidsduur of tijdsonafhankelijk",123.95,130.30000000000001,130.30000000000001,73732403,"Mentaal Beter Cure B.V."]
["52G06","Individuele diagnostiek","Ambulant","uur","Totaal binnen geldigheidsduur of tijdsonafhankelijk",123.95,130.30000000000001,130.30000000000001,73737023,"Parlayan B.V."]
["52G06","Individuele diagnostiek","Ambulant","uur","Totaal binnen geldigheidsduur of tijdsonafhankelijk",120.4,130.30000000000001,{"$f":"F772","v":120.4},94000865,"Praktijk Eerstelijns Psychologen Groningen"]
["52G06","Individuele diagnostiek","Ambulant","uur","Totaal binnen geldigheidsduur of tijdsonafhankelijk",123.95,130.30000000000001,{"$f":"MROUND(F773*1.0513,0.05)","v":130.30000000000001},94002155,"Praktijk voor eerstelijns psychologie Trijn Mulder"]
["52G06","Individuele diagnostiek","Ambulant","uur","Totaal binnen geldigheidsduur of tijdsonafhankelijk",113.2,130.30000000000001,{"$f":"F774","v":113.2},"94057245","Psychologenpraktijk van Wetten"]
["52G06","Individuele diagnostiek","Ambulant","uur","Totaal binnen geldigheidsduur of tijdsonafhankelijk",123.95,130.30000000000001,{"$f":"MROUND(F775*1.0513,0.05)","v":130.30000000000001},"94063510","Kinderbijstand (orthopedagogisch onderzoek en advies)"]
["52G06","Individuele diagnostiek","Ambulant","uur","Totaal binnen geldigheidsduur of tijdsonafhankelijk",113.45,130.30000000000001,{"$f":"MROUND(F776*1.0513,0.05)","v":119.25},"94064988","Mindcare Assen B.V."]
["52G06","Individuele diagnostiek","Ambulant","uur","Totaal binnen geldigheidsduur of tijdsonafhankelijk",123.95,130.30000000000001,{"$f":"MROUND(F777*1.0513,0.05)","v":130.30000000000001},"94065632","Praktijk Groningen Zuid"]
["52G06","Individuele diagnostiek","Ambulant","uur","Totaal binnen geldigheidsduur of tijdsonafhankelijk",123.95,130.30000000000001,{"$f":"MROUND(F778*1.0513,0.05)","v":130.30000000000001},"94068859","Westerweelde Pedagogisch Centrum B.V."]
["52G06","Individuele diagnostiek","Ambulant","uur","Totaal binnen geldigheidsduur of tijdsonafhankelijk",112.1,130.30000000000001,{"$f":"MROUND(F779*1.0403,0.05)","v":116.60000000000001},94068910,"Praktijk voor Psychosociale Hulpverlening B.V. "]
["52G06","Individuele diagnostiek","Ambulant","uur","Totaal binnen geldigheidsduur of tijdsonafhankelijk",123.95,130.30000000000001,{"$f":"MROUND(F780*1.0513,0.05)","v":130.30000000000001},98100521,"Stichting MEE Noord"]
["52G06","Individuele diagnostiek","Ambulant","uur","Totaal binnen geldigheidsduur of tijdsonafhankelijk",109.15,130.30000000000001,{"$f":"MROUND(F781*1.0513,0.05)","v":114.75},"98101596","Xperanza Nederland B.V."]
["52G06","Individuele diagnostiek","Ambulant","uur","Totaal binnen geldigheidsduur of tijdsonafhankelijk",118.55000000000001,130.30000000000001,{"$f":"G782","v":130.30000000000001},98101997,"Liganta B.V."]
["52G06","Individuele diagnostiek","Ambulant","uur","Totaal binnen geldigheidsduur of tijdsonafhankelijk",113.05000000000001,130.30000000000001,{"$f":"MROUND(F783*1.0513,0.05)","v":118.85000000000001},98102110,"Feniks Zorg en Jeugd B.V."]
["52G06","Individuele diagnostiek","Ambulant","uur","Totaal binnen geldigheidsduur of tijdsonafhankelijk",123.95,130.30000000000001,{"$f":"MROUND(F784*1.0513,0.05)","v":130.30000000000001},"98104298","Saul B.V."]
["52G06","Individuele diagnostiek","Ambulant","uur","Totaal binnen geldigheidsduur of tijdsonafhankelijk",123.95,130.30000000000001,{"$f":"MROUND(F785*1.0513,0.05)","v":130.30000000000001},98105818,"KOEN B.V."]
["52G06","Individuele diagnostiek","Ambulant","uur","Totaal binnen geldigheidsduur of tijdsonafhankelijk",123.95,130.30000000000001,{"$f":"MROUND(F786*1.0513,0.05)","v":130.30000000000001},"98105913","Zorgkracht 12, de Noordelijke Zorgcoöperatie U.A."]
["52G06","Individuele diagnostiek","Ambulant","uur","Totaal binnen geldigheidsduur of tijdsonafhankelijk",123.85000000000001,130.30000000000001,{"$f":"F787","v":123.85000000000001},98105917,"X-Tense B.V."]
["52G08","Individuele behandeling specialistisch zwaar-zeer zwaar","Ambulant","uur","Totaal binnen geldigheidsduur of tijdsonafhankelijk",107.65,141.4,{"$f":"MROUND(F788*1.0513,0.05)","v":113.15},"03072913","S. Buma"]
["52G08","Individuele behandeling specialistisch zwaar-zeer zwaar","Ambulant","uur","Totaal binnen geldigheidsduur of tijdsonafhankelijk",134.5,141.4,{"$f":"MROUND(F789*1.0513,0.05)","v":141.4},"06290104","Stichting Accare"]
["52G08","Individuele behandeling specialistisch zwaar-zeer zwaar","Ambulant","uur","Totaal binnen geldigheidsduur of tijdsonafhankelijk",123.95,141.4,{"$f":"G790","v":141.4},"06290105","Stichting Verslavingszorg Noord Nederland"]
["52G08","Individuele behandeling specialistisch zwaar-zeer zwaar","Ambulant","uur","Totaal binnen geldigheidsduur of tijdsonafhankelijk",134.5,141.4,{"$f":"MROUND(F791*1.0513,0.05)","v":141.4},"06290106","Stichting Elker"]
["52G08","Individuele behandeling specialistisch zwaar-zeer zwaar","Ambulant","uur","Totaal binnen geldigheidsduur of tijdsonafhankelijk",134.5,141.4,{"$f":"F792","v":134.5},"06290204","Stichting GGZ Friesland"]
["52G08","Individuele behandeling specialistisch zwaar-zeer zwaar","Ambulant","uur","Totaal binnen geldigheidsduur of tijdsonafhankelijk",134.5,141.4,{"$f":"MROUND(F793*1.0513,0.05)","v":141.4},"06290205","Stichting Jeugdhulp Friesland"]
["52G08","Individuele behandeling specialistisch zwaar-zeer zwaar","Ambulant","uur","Totaal binnen geldigheidsduur of tijdsonafhankelijk",134.5,141.4,{"$f":"MROUND(F794*1.0513,0.05)","v":141.4},"06290308","Stichting Lentis Maatschappelijke Onderneming"]
["52G08","Individuele behandeling specialistisch zwaar-zeer zwaar","Ambulant","uur","Totaal binnen geldigheidsduur of tijdsonafhankelijk",118.35000000000001,141.4,{"$f":"MROUND(F795*1.0403,0.05)","v":123.10000000000001},"22220918","Kinder- en Jeugd GGZ Praktijk Noorderblinck"]
["52G08","Individuele behandeling specialistisch zwaar-zeer zwaar","Ambulant","uur","Totaal binnen geldigheidsduur of tijdsonafhankelijk",134.5,141.4,{"$f":"MROUND(F796*1.0513,0.05)","v":141.4},"22227218","OCRN B.V."]
["52G08","Individuele behandeling specialistisch zwaar-zeer zwaar","Ambulant","uur","Totaal binnen geldigheidsduur of tijdsonafhankelijk",134.5,141.4,141.4,22227338,"INTER-PSY B.V."]
["52G08","Individuele behandeling specialistisch zwaar-zeer zwaar","Ambulant","uur","Totaal binnen geldigheidsduur of tijdsonafhankelijk",134.5,141.4,141.4,"30300514","Stichting Ambiq"]
["52G08","Individuele behandeling specialistisch zwaar-zeer zwaar","Ambulant","uur","Totaal binnen geldigheidsduur of tijdsonafhankelijk",131.85,141.4,138.6,"30300685","Stichting 's Heeren Loo Zorggroep"]
["52G08","Individuele behandeling specialistisch zwaar-zeer zwaar","Ambulant","uur","Totaal binnen geldigheidsduur of tijdsonafhankelijk",134.5,141.4,141.4,"53530112","Cedin B.V."]
["52G08","Individuele behandeling specialistisch zwaar-zeer zwaar","Ambulant","uur","Totaal binnen geldigheidsduur of tijdsonafhankelijk",134.5,141.4,141.4,73730109,"Molendrift B.V."]
["52G08","Individuele behandeling specialistisch zwaar-zeer zwaar","Ambulant","uur","Totaal binnen geldigheidsduur of tijdsonafhankelijk",120.45,141.4,{"$f":"MROUND(F802*1.0403,0.05)","v":125.30000000000001},94003646,"Zo- Zorgoplossingen"]
["52G08","Individuele behandeling specialistisch zwaar-zeer zwaar","Ambulant","uur","Totaal binnen geldigheidsduur of tijdsonafhankelijk",122.85000000000001,141.4,{"$f":"F803","v":122.85000000000001},"94057245","Psychologenpraktijk van Wetten"]
["52G08","Individuele behandeling specialistisch zwaar-zeer zwaar","Ambulant","uur","Totaal binnen geldigheidsduur of tijdsonafhankelijk",106.75,141.4,{"$f":"MROUND(F804*1.0513,0.05)","v":112.25},94060369,"Orthopedagogische Praktijk De Kern"]
["52G08","Individuele behandeling specialistisch zwaar-zeer zwaar","Ambulant","uur","Totaal binnen geldigheidsduur of tijdsonafhankelijk",134.5,141.4,{"$f":"MROUND(F805*1.0513,0.05)","v":141.4},"94063510","Kinderbijstand (orthopedagogisch onderzoek en advies)"]
["52G09","Individuele behandeling specialistisch","Ambulant","uur","Totaal binnen geldigheidsduur of tijdsonafhankelijk",104.45,137.19999999999999,{"$f":"MROUND(F806*1.0513,0.05)","v":109.80000000000001},"03072913","S. Buma"]
["52G09","Individuele behandeling specialistisch","Ambulant","uur","Totaal binnen geldigheidsduur of tijdsonafhankelijk",130.5,137.19999999999999,{"$f":"MROUND(F807*1.0513,0.05)","v":137.20000000000002},"06290104","Stichting Accare"]
["52G09","Individuele behandeling specialistisch","Ambulant","uur","Totaal binnen geldigheidsduur of tijdsonafhankelijk",120.35000000000001,137.19999999999999,137.19999999999999,"06290105","Stichting Verslavingszorg Noord Nederland"]
["52G09","Individuele behandeling specialistisch","Ambulant","uur","Totaal binnen geldigheidsduur of tijdsonafhankelijk",130.5,137.19999999999999,{"$f":"MROUND(F809*1.0513,0.05)","v":137.20000000000002},"06290106","Stichting Elker"]
["52G09","Individuele behandeling specialistisch","Ambulant","uur","Totaal binnen geldigheidsduur of tijdsonafhankelijk",130.5,137.19999999999999,{"$f":"F810","v":130.5},"06290204","Stichting GGZ Friesland"]
["52G09","Individuele behandeling specialistisch","Ambulant","uur","Totaal binnen geldigheidsduur of tijdsonafhankelijk",130.5,137.19999999999999,{"$f":"MROUND(F811*1.0513,0.05)","v":137.20000000000002},"06290205","Stichting Jeugdhulp Friesland"]
["52G09","Individuele behandeling specialistisch","Ambulant","uur","Totaal binnen geldigheidsduur of tijdsonafhankelijk",130.5,137.19999999999999,{"$f":"MROUND(F812*1.0513,0.05)","v":137.20000000000002},"06290308","Stichting Lentis Maatschappelijke Onderneming"]
["52G09","Individuele behandeling specialistisch","Ambulant","uur","Totaal binnen geldigheidsduur of tijdsonafhankelijk",130.5,137.19999999999999,{"$f":"MROUND(F813*1.0513,0.05)","v":137.20000000000002},"06290613","Stichting Eleos, christelijke ggz"]
["52G09","Individuele behandeling specialistisch","Ambulant","uur","Totaal binnen geldigheidsduur of tijdsonafhankelijk",120.9,137.19999999999999,{"$f":"G814","v":137.19999999999999},22220478,"Psy- Zo! B.V."]
["52G09","Individuele behandeling specialistisch","Ambulant","uur","Totaal binnen geldigheidsduur of tijdsonafhankelijk",null,137.19999999999999,137.19999999999999,22220488,"Regionaal Instituut voor Ontwikkelingsproblemen B.V."]
["52G09","Individuele behandeling specialistisch","Ambulant","uur","Totaal binnen geldigheidsduur of tijdsonafhankelijk",115.4,137.19999999999999,{"$f":"MROUND(F816*1.0403,0.05)","v":120.05000000000001},"22220918","Kinder- en Jeugd GGZ Praktijk Noorderblinck"]
["52G09","Individuele behandeling specialistisch","Ambulant","uur","Totaal binnen geldigheidsduur of tijdsonafhankelijk",127.95,137.19999999999999,{"$f":"MROUND(F817*1.0513,0.05)","v":134.5},22221105,"Het Behouden Huys"]
["52G09","Individuele behandeling specialistisch","Ambulant","uur","Totaal binnen geldigheidsduur of tijdsonafhankelijk",121.5,137.19999999999999,{"$f":"G818","v":137.19999999999999},22221125,"Psychologenpraktijk De Vaart B.V."]
["52G09","Individuele behandeling specialistisch","Ambulant","uur","Totaal binnen geldigheidsduur of tijdsonafhankelijk",119.30000000000001,137.19999999999999,{"$f":"MROUND(F819*1.0513,0.05)","v":125.4},"22221126","Transcare Pijn B.V."]
["52G09","Individuele behandeling specialistisch","Ambulant","uur","Totaal binnen geldigheidsduur of tijdsonafhankelijk",130.5,137.19999999999999,{"$f":"MROUND(F820*1.0513,0.05)","v":137.20000000000002},"22227218","OCRN B.V."]
["52G09","Individuele behandeling specialistisch","Ambulant","uur","Totaal binnen geldigheidsduur of tijdsonafhankelijk",null,137.19999999999999,137.19999999999999,22227299,"Stichting Yes We Can Clinics"]
["52G09","Individuele behandeling specialistisch","Ambulant","uur","Totaal binnen geldigheidsduur of tijdsonafhankelijk",130.5,137.19999999999999,{"$f":"MROUND(F822*1.0513,0.05)","v":137.20000000000002},22227338,"INTER-PSY B.V."]
["52G09","Individuele behandeling specialistisch","Ambulant","uur","Totaal binnen geldigheidsduur of tijdsonafhankelijk",130.5,137.19999999999999,{"$f":"MROUND(F823*1.0513,0.05)","v":137.20000000000002},"30300514","Stichting Ambiq"]
["52G09","Individuele behandeling specialistisch","Ambulant","uur","Totaal binnen geldigheidsduur of tijdsonafhankelijk",127.95,137.19999999999999,{"$f":"MROUND(F824*1.0513,0.05)","v":134.5},"30300685","Stichting 's Heeren Loo Zorggroep"]
["52G09","Individuele behandeling specialistisch","Ambulant","uur","Totaal binnen geldigheidsduur of tijdsonafhankelijk",130.5,137.19999999999999,{"$f":"MROUND(F825*1.0513,0.05)","v":137.20000000000002},"53530112","Cedin B.V."]
["52G09","Individuele behandeling specialistisch","Ambulant","uur","Totaal binnen geldigheidsduur of tijdsonafhankelijk",null,137.19999999999999,137.19999999999999,53530275,"Timpaan Onderwijs B.V."]
["52G09","Individuele behandeling specialistisch","Ambulant","uur","Totaal binnen geldigheidsduur of tijdsonafhankelijk",130.5,137.19999999999999,{"$f":"MROUND(F827*1.0513,0.05)","v":137.20000000000002},"65656687","Stichting Cosis"]
["52G09","Individuele behandeling specialistisch","Ambulant","uur","Totaal binnen geldigheidsduur of tijdsonafhankelijk",127.95,137.19999999999999,{"$f":"MROUND(F828*1.0513,0.05)","v":134.5},"72727340","Pi-groep Zorg B.V."]
["52G09","Individuele behandeling specialistisch","Ambulant","uur","Totaal binnen geldigheidsduur of tijdsonafhankelijk",null,137.19999999999999,137.19999999999999,72727560,"Re-Care Zorg B.V."]
["52G09","Individuele behandeling specialistisch","Ambulant","uur","Totaal binnen geldigheidsduur of tijdsonafhankelijk",130.5,137.19999999999999,{"$f":"MROUND(F830*1.0513,0.05)","v":137.20000000000002},73730109,"Molendrift B.V."]
["52G09","Individuele behandeling specialistisch","Ambulant","uur","Totaal binnen geldigheidsduur of tijdsonafhankelijk",130.5,137.19999999999999,{"$f":"MROUND(F831*1.0513,0.05)","v":137.20000000000002},"73730146","Cura XL B.V."]
["52G09","Individuele behandeling specialistisch","Ambulant","uur","Totaal binnen geldigheidsduur of tijdsonafhankelijk",130.5,137.19999999999999,{"$f":"MROUND(F832*1.0513,0.05)","v":137.20000000000002},73730305,"Stichting Yorneo Beheer"]
["52G09","Individuele behandeling specialistisch","Ambulant","uur","Totaal binnen geldigheidsduur of tijdsonafhankelijk",null,137.19999999999999,137.19999999999999,73730356,"Horizon Begeleiding"]
["52G09","Individuele behandeling specialistisch","Ambulant","uur","Totaal binnen geldigheidsduur of tijdsonafhankelijk",130.5,137.19999999999999,{"$f":"MROUND(F834*1.0513,0.05)","v":137.20000000000002},73732403,"Mentaal Beter Cure B.V."]
["52G09","Individuele behandeling specialistisch","Ambulant","uur","Totaal binnen geldigheidsduur of tijdsonafhankelijk",130.5,137.19999999999999,{"$f":"MROUND(F835*1.0513,0.05)","v":137.20000000000002},73737023,"Parlayan B.V."]
["52G09","Individuele behandeling specialistisch","Ambulant","uur","Totaal binnen geldigheidsduur of tijdsonafhankelijk",120.35000000000001,137.19999999999999,{"$f":"MROUND(F836*1.0513,0.05)","v":126.5},73737753,"Synaeda PMC B.V."]
["52G09","Individuele behandeling specialistisch","Ambulant","uur","Totaal binnen geldigheidsduur of tijdsonafhankelijk",null,137.19999999999999,130.5,90054404,"La Hacienda B.V."]
["52G09","Individuele behandeling specialistisch","Ambulant","uur","Totaal binnen geldigheidsduur of tijdsonafhankelijk",119.05000000000001,137.19999999999999,{"$f":"F838","v":119.05000000000001},90068272,"Hersenfabriek Groningen"]
["52G09","Individuele behandeling specialistisch","Ambulant","uur","Totaal binnen geldigheidsduur of tijdsonafhankelijk",126.75,137.19999999999999,{"$f":"MROUND(F839*1.0513,0.05)","v":133.25},90092588,"Praktijk Systeemtherapie Groningen B.V."]
["52G09","Individuele behandeling specialistisch","Ambulant","uur","Totaal binnen geldigheidsduur of tijdsonafhankelijk",126.75,137.19999999999999,{"$f":"F840","v":126.75},94000865,"Praktijk Eerstelijns Psychologen Groningen"]
["52G09","Individuele behandeling specialistisch","Ambulant","uur","Totaal binnen geldigheidsduur of tijdsonafhankelijk",130.5,137.19999999999999,{"$f":"MROUND(F841*1.0513,0.05)","v":137.20000000000002},94002681,"Praktijk de Bongerd"]
["52G09","Individuele behandeling specialistisch","Ambulant","uur","Totaal binnen geldigheidsduur of tijdsonafhankelijk",116.85000000000001,137.19999999999999,{"$f":"MROUND(F842*1.0403,0.05)","v":121.55000000000001},94003646,"Zo- Zorgoplossingen"]
["52G09","Individuele behandeling specialistisch","Ambulant","uur","Totaal binnen geldigheidsduur of tijdsonafhankelijk",119.2,137.19999999999999,{"$f":"F843","v":119.2},"94057245","Psychologenpraktijk van Wetten"]
["52G09","Individuele behandeling specialistisch","Ambulant","uur","Totaal binnen geldigheidsduur of tijdsonafhankelijk",130.5,137.19999999999999,{"$f":"MROUND(F844*1.0513,0.05)","v":137.20000000000002},94057410,"Praktijk van Dijk"]
["52G09","Individuele behandeling specialistisch","Ambulant","uur","Totaal binnen geldigheidsduur of tijdsonafhankelijk",119.2,137.19999999999999,{"$f":"MROUND(F845*1.0403,0.05)","v":124},"94057529","Praktijk Koekkoek"]
["52G09","Individuele behandeling specialistisch","Ambulant","uur","Totaal binnen geldigheidsduur of tijdsonafhankelijk",130.5,137.19999999999999,{"$f":"MROUND(F846*1.0513,0.05)","v":137.20000000000002},94059103,"Yvonne van Pijkeren"]
["52G09","Individuele behandeling specialistisch","Ambulant","uur","Totaal binnen geldigheidsduur of tijdsonafhankelijk",130.5,137.19999999999999,137.20000000000002,94059741,"Praktijk KJ"]
["52G09","Individuele behandeling specialistisch","Ambulant","uur","Totaal binnen geldigheidsduur of tijdsonafhankelijk",106.75,137.19999999999999,112.25,94060369,"Orthopedagogische Praktijk De Kern"]
["52G09","Individuele behandeling specialistisch","Ambulant","uur","Totaal binnen geldigheidsduur of tijdsonafhankelijk",127.35000000000001,137.19999999999999,133.9,94060633,"BeterBrein"]
["52G09","Individuele behandeling specialistisch","Ambulant","uur","Totaal binnen geldigheidsduur of tijdsonafhankelijk",123.65,137.19999999999999,130,94062149,"Moodboost"]
["52G09","Individuele behandeling specialistisch","Ambulant","uur","Totaal binnen geldigheidsduur of tijdsonafhankelijk",125.85000000000001,137.19999999999999,132.30000000000001,"94062709","Psy-praktijk Grootegast"]
["52G09","Individuele behandeling specialistisch","Ambulant","uur","Totaal binnen geldigheidsduur of tijdsonafhankelijk",129.25,137.19999999999999,135.9,94063240,"Praktijk Psychotrauma Groningen"]
["52G09","Individuele behandeling specialistisch","Ambulant","uur","Totaal binnen geldigheidsduur of tijdsonafhankelijk",130.5,137.19999999999999,137.20000000000002,"94063270","Kind en Jeugd Centraal"]
["52G09","Individuele behandeling specialistisch","Ambulant","uur","Totaal binnen geldigheidsduur of tijdsonafhankelijk",130.5,137.19999999999999,137.20000000000002,"94063510","Kinderbijstand (orthopedagogisch onderzoek en advies)"]
["52G09","Individuele behandeling specialistisch","Ambulant","uur","Totaal binnen geldigheidsduur of tijdsonafhankelijk",null,137.19999999999999,137.19999999999999,"94063526","Jody Schoolpsychologie"]
["52G09","Individuele behandeling specialistisch","Ambulant","uur","Totaal binnen geldigheidsduur of tijdsonafhankelijk",130.5,137.19999999999999,{"$f":"MROUND(F856*1.0513,0.05)","v":137.20000000000002},94063795,"Psychotherapiepraktijk Manon B.V."]
["52G09","Individuele behandeling specialistisch","Ambulant","uur","Totaal binnen geldigheidsduur of tijdsonafhankelijk",119.80000000000001,137.19999999999999,{"$f":"MROUND(F857*1.0513,0.05)","v":125.95},"94064988","Mindcare Assen B.V."]
["52G09","Individuele behandeling specialistisch","Ambulant","uur","Totaal binnen geldigheidsduur of tijdsonafhankelijk",130.5,137.19999999999999,{"$f":"MROUND(F858*1.0513,0.05)","v":137.20000000000002},94065371,"Via Trox B.V."]
["52G09","Individuele behandeling specialistisch","Ambulant","uur","Totaal binnen geldigheidsduur of tijdsonafhankelijk",130.5,137.19999999999999,{"$f":"MROUND(F859*1.0513,0.05)","v":137.20000000000002},"94065632","Praktijk Groningen Zuid"]
["52G09","Individuele behandeling specialistisch","Ambulant","uur","Totaal binnen geldigheidsduur of tijdsonafhankelijk",null,137.19999999999999,137.19999999999999,94067719,"MeJa B.V."]
["52G09","Individuele behandeling specialistisch","Ambulant","uur","Totaal binnen geldigheidsduur of tijdsonafhankelijk",130.5,137.19999999999999,{"$f":"MROUND(F861*1.0513,0.05)","v":137.20000000000002},94067980,"Praktijk Praght"]
["52G09","Individuele behandeling specialistisch","Ambulant","uur","Totaal binnen geldigheidsduur of tijdsonafhankelijk",130.5,137.19999999999999,{"$f":"MROUND(F862*1.0513,0.05)","v":137.20000000000002},"94068859","Westerweelde Pedagogisch Centrum B.V."]
["52G09","Individuele behandeling specialistisch","Ambulant","uur","Totaal binnen geldigheidsduur of tijdsonafhankelijk",118.05,137.19999999999999,{"$f":"MROUND(F863*1.0403,0.05)","v":122.80000000000001},94068910,"Praktijk voor Psychosociale Hulpverlening B.V. "]
["52G09","Individuele behandeling specialistisch","Ambulant","uur","Totaal binnen geldigheidsduur of tijdsonafhankelijk",null,137.19999999999999,137.19999999999999,94069169,"Lev Haren"]
["52G09","Individuele behandeling specialistisch","Ambulant","uur","Totaal binnen geldigheidsduur of tijdsonafhankelijk",null,137.19999999999999,130,"98099692","Stichting Cerato"]
["52G09","Individuele behandeling specialistisch","Ambulant","uur","Totaal binnen geldigheidsduur of tijdsonafhankelijk",123.60000000000001,137.19999999999999,{"$f":"G866","v":137.19999999999999},98101997,"Liganta B.V."]
["52G09","Individuele behandeling specialistisch","Ambulant","uur","Totaal binnen geldigheidsduur of tijdsonafhankelijk",120.15,137.19999999999999,{"$f":"MROUND(F867*1.0513,0.05)","v":126.30000000000001},98102110,"Feniks Zorg en Jeugd B.V."]
["52G09","Individuele behandeling specialistisch","Ambulant","uur","Totaal binnen geldigheidsduur of tijdsonafhankelijk",112.75,137.19999999999999,{"$f":"G868","v":137.19999999999999},98102203,"Madelies B.V."]
["52G09","Individuele behandeling specialistisch ","Ambulant","uur","Totaal binnen geldigheidsduur of tijdsonafhankelijk",null,137.19999999999999,137.19999999999999,"98102631","Zorg en Coaching Noord Nederland B.V."]
["52G09","Individuele behandeling specialistisch","Ambulant","uur","Totaal binnen geldigheidsduur of tijdsonafhankelijk",130.5,137.19999999999999,{"$f":"MROUND(F870*1.0513,0.05)","v":137.20000000000002},"98104298","Saul B.V."]
["52G09","Individuele behandeling specialistisch","Ambulant","uur","Totaal binnen geldigheidsduur of tijdsonafhankelijk",99.7,137.19999999999999,{"$f":"MROUND(F871*1.0513,0.05)","v":104.80000000000001},"98104456","PP UNIEK voor Kind, Jongere en Gezin"]
["52G09","Individuele behandeling specialistisch","Ambulant","uur","Totaal binnen geldigheidsduur of tijdsonafhankelijk",130.5,137.19999999999999,{"$f":"MROUND(F872*1.0513,0.05)","v":137.20000000000002},98105818,"KOEN B.V."]
["52G09","Individuele behandeling specialistisch","Ambulant","uur","Totaal binnen geldigheidsduur of tijdsonafhankelijk",130.5,137.19999999999999,{"$f":"MROUND(F873*1.0513,0.05)","v":137.20000000000002},"98105913","Zorgkracht 12, de Noordelijke Zorgcoöperatie U.A."]
["52G09","Individuele behandeling specialistisch","Ambulant","uur","Totaal binnen geldigheidsduur of tijdsonafhankelijk",130.15,137.19999999999999,{"$f":"F874","v":130.15},98105917,"X-Tense B.V."]
["52G09","Individuele behandeling specialistisch","Ambulant","uur","Totaal binnen geldigheidsduur of tijdsonafhankelijk",null,137.19999999999999,137.19999999999999,"98107597","De Ezelsbrug B.V."]
["52G12","Individuele behandeling specialistisch licht medicatiecontrole","Ambulant","uur","Totaal binnen geldigheidsduur of tijdsonafhankelijk",174.10000000000002,183.05,{"$f":"MROUND(F876*1.0513,0.05)","v":183.05},"06290104","Stichting Accare"]
["52G12","Individuele behandeling specialistisch licht medicatiecontrole","Ambulant","uur","Totaal binnen geldigheidsduur of tijdsonafhankelijk",174.10000000000002,183.05,{"$f":"F877","v":174.10000000000002},"06290204","Stichting GGZ Friesland"]
["52G12","Individuele behandeling specialistisch licht medicatiecontrole","Ambulant","uur","Totaal binnen geldigheidsduur of tijdsonafhankelijk",174.10000000000002,183.05,{"$f":"MROUND(F878*1.0513,0.05)","v":183.05},"06290308","Stichting Lentis Maatschappelijke Onderneming"]
["52G12","Individuele behandeling specialistisch licht medicatiecontrole","Ambulant","uur","Totaal binnen geldigheidsduur of tijdsonafhankelijk",174.10000000000002,183.05,{"$f":"MROUND(F879*1.0513,0.05)","v":183.05},"06290613","Stichting Eleos, christelijke ggz"]
["52G12","Individuele behandeling specialistisch licht medicatiecontrole","Ambulant","uur","Totaal binnen geldigheidsduur of tijdsonafhankelijk",153.75,183.05,{"$f":"MROUND(F880*1.0403,0.05)","v":159.95000000000002},"22220918","Kinder- en Jeugd GGZ Praktijk Noorderblinck"]
["52G12","Individuele behandeling specialistisch licht medicatiecontrole","Ambulant","uur","Totaal binnen geldigheidsduur of tijdsonafhankelijk",174.10000000000002,183.05,{"$f":"MROUND(F881*1.0513,0.05)","v":183.05},"22227218","OCRN B.V."]
["52G12","Individuele behandeling specialistisch licht medicatiecontrole","Ambulant","uur","Totaal binnen geldigheidsduur of tijdsonafhankelijk",174.10000000000002,183.05,183.05,22227338,"INTER-PSY B.V."]
["52G12","Individuele behandeling specialistisch licht medicatiecontrole","Ambulant","uur","Totaal binnen geldigheidsduur of tijdsonafhankelijk",170.60000000000002,183.05,179.35000000000002,"30300685","Stichting 's Heeren Loo Zorggroep"]
["52G12","Individuele behandeling specialistisch licht medicatiecontrole","Ambulant","uur","Totaal binnen geldigheidsduur of tijdsonafhankelijk",174.10000000000002,183.05,183.05,"53530112","Cedin B.V."]
["52G12","Individuele behandeling specialistisch licht medicatiecontrole","Ambulant","uur","Totaal binnen geldigheidsduur of tijdsonafhankelijk",157.30000000000001,183.05,165.35000000000002,"72727340","Pi-groep Zorg B.V."]
["52G12","Individuele behandeling specialistisch licht medicatiecontrole","Ambulant","uur","Totaal binnen geldigheidsduur of tijdsonafhankelijk",174.10000000000002,183.05,183.05,73730109,"Molendrift B.V."]
["52G12","Individuele behandeling specialistisch licht medicatiecontrole","Ambulant","uur","Totaal binnen geldigheidsduur of tijdsonafhankelijk",160.45000000000002,183.05,168.70000000000002,73737753,"Synaeda PMC B.V."]
["52G14","Specifieke doelgroepen 8 Ernstige Dyslexie (ED)","Specifieke doelgroepen","stuk (12)","Totaal binnen geldigheidsduur of tijdsonafhankelijk",9228.2000000000007,9701.6,{"$f":"MROUND(F888*1.0513/12,0.05)","v":808.45},"22227218","OCRN B.V."]
["52G14","Specifieke doelgroepen 8 Ernstige Dyslexie (ED)","Specifieke doelgroepen","stuk (12)","Totaal binnen geldigheidsduur of tijdsonafhankelijk",9228.2000000000007,9701.6,{"$f":"MROUND(F889*1.0513/12,0.05)","v":808.45},"53530112","Cedin B.V."]
["52G14","Specifieke doelgroepen 8 Ernstige Dyslexie (ED)","Specifieke doelgroepen","stuk (12)","Totaal binnen geldigheidsduur of tijdsonafhankelijk",9047.6,9701.6,{"$f":"MROUND(F890*1.0513/12,0.05)","v":792.65000000000009},53530275,"Timpaan Onderwijs B.V."]
["52G14","Specifieke doelgroepen 8 Ernstige Dyslexie (ED)","Specifieke doelgroepen","stuk (12)","Totaal binnen geldigheidsduur of tijdsonafhankelijk",8827.65,9701.6,{"$f":"MROUND(F891*1.0513/12,0.05)","v":773.40000000000009},53530281,"Regionaal Instituut voor Dyslexie B.V."]
["52G14","Specifieke doelgroepen 8 Ernstige Dyslexie (ED)","Specifieke doelgroepen","stuk (12)","Totaal binnen geldigheidsduur of tijdsonafhankelijk",8451.1,9701.6,{"$f":"MROUND(F892*1.0403/12,0.05)","v":732.65000000000009},"53530382","Stichting Pento"]
["52G14","Specifieke doelgroepen 8 Ernstige Dyslexie (ED)","Specifieke doelgroepen","stuk (12)","Totaal binnen geldigheidsduur of tijdsonafhankelijk",9228.2000000000007,9701.6,{"$f":"MROUND(F893*1.0513/12,0.05)","v":808.45},73730109,"Molendrift B.V."]
["52G14","Specifieke doelgroepen 8 Ernstige Dyslexie (ED)","Specifieke doelgroepen","stuk (12)","Totaal binnen geldigheidsduur of tijdsonafhankelijk",9228.2000000000007,9701.6,{"$f":"MROUND(F894*1.0513/12,0.05)","v":808.45},"94068859","Westerweelde Pedagogisch Centrum B.V."]
["52G14","Specifieke doelgroepen 8 Ernstige Dyslexie (ED)","Specifieke doelgroepen","stuk (12)","Totaal binnen geldigheidsduur of tijdsonafhankelijk",9228.2000000000007,9701.6,{"$f":"MROUND(F895*1.0513/12,0.05)","v":808.45},98102686,"Opdidakt B.V."]

{"sheet":"On hold","index":1,"n_rows":22,"n_cols":10,"rows_kept":22,"cut":false,"hidden":true,"merged":[]}
["40A04","Persoonlijke verzorging","Overig","uur","per week",71.25,74.900000000000006,74.900000000000006,73730133,"Stichting BEZINNZorg"]
["41A18","Dagbesteding","Dagbesteding / dagbehandeling","dagdeel","per week",76.5,80.400000000000006,80.400000000000006,73730133,"Stichting BEZINNZorg"]
["42A01","Vervoer regulier","Overig","stuk","Totaal binnen geldigheidsduur of tijdsonafhankelijk",11.9,12.5,12.5,73730133,"Stichting BEZINNZorg"]
["42A02","Vervoer rolstoel","Overig","stuk","Totaal binnen geldigheidsduur of tijdsonafhankelijk",25.1,26.4,26.400000000000002,73730133,"Stichting BEZINNZorg"]
["43A11","Logeren hoog intensief","Logeren / Respijtzorg","etmaal","Totaal binnen geldigheidsduur of tijdsonafhankelijk",375.8,395.1,395.1,73730133,"Stichting BEZINNZorg"]
["43A35","Verblijf licht","Verblijf/ opname","etmaal","Totaal binnen geldigheidsduur of tijdsonafhankelijk",162.15,170.45,170.45000000000002,73730133,"Stichting BEZINNZorg"]
["43A37","Verblijfstraject middelzwaar","Verblijf/ opname","etmaal","Totaal binnen geldigheidsduur of tijdsonafhankelijk",398.15000000000003,418.6,418.6,73730133,"Stichting BEZINNZorg"]
["43G08","Verblijf middel woonhoeve","Verblijf/ opname","etmaal","Totaal binnen geldigheidsduur of tijdsonafhankelijk",118.7,124.8,124.80000000000001,73730133,"Stichting BEZINNZorg"]
["43G09","Verblijf middel gezinshuis","Verblijf/ opname","etmaal","per week",131.9,138.65,138.65,73730133,"Stichting BEZINNZorg"]
["43G10","Verblijf middel gezinshuis-plus","Verblijf/ opname","etmaal","per week",184.60000000000002,194.05,194.05,73730133,"Stichting BEZINNZorg"]
["44A09","Logeren laag intensief","Logeren / Respijtzorg","etmaal","Totaal binnen geldigheidsduur of tijdsonafhankelijk",237.3,249.45,249.45000000000002,73730133,"Stichting BEZINNZorg"]
["44G02","Verblijf langdurig (beschermd) wonen","Verblijf/ opname","etmaal","per week",230.70000000000002,242.55,242.55,73730133,"Stichting BEZINNZorg"]
["45A04","Individuele begeleiding basis","Ambulant","uur","Totaal binnen geldigheidsduur of tijdsonafhankelijk",81.75,85.95,85.95,73730133,"Stichting BEZINNZorg"]
["45A49","Groepsbegeleiding basis","Ambulant","uur","Totaal binnen geldigheidsduur of tijdsonafhankelijk",21.05,22.15,22.150000000000002,73730133,"Stichting BEZINNZorg"]
["45A51","Gezinsbegeleiding basis","Ambulant","uur","Totaal binnen geldigheidsduur of tijdsonafhankelijk",81.75,85.95,85.95,73730133,"Stichting BEZINNZorg"]
["45A53","Individuele begeleiding specialistisch","Ambulant","uur","Totaal binnen geldigheidsduur of tijdsonafhankelijk",104.15,109.5,109.5,73730133,"Stichting BEZINNZorg"]
["45A56","Gezinsbegeleiding specialistisch","Ambulant","uur","Totaal binnen geldigheidsduur of tijdsonafhankelijk",104.15,109.5,109.5,73730133,"Stichting BEZINNZorg"]
["41G01","Gezinsdagbehandeling","Dagbesteding / dagbehandeling","uur","per week",null,152.5,150,73737045,"PsyValens B.V."]
["50G40","Advies en ondersteuning vanuit jeugdhulpaanbieders bij complexe problematiek","Advies","uur","Totaal binnen geldigheidsduur of tijdsonafhankelijk",null,130.30000000000001,127,73737045,"PsyValens B.V."]
["52G09","Individuele behandeling specialistisch","Ambulant","uur","Totaal binnen geldigheidsduur of tijdsonafhankelijk",null,137.19999999999999,135,73737045,"PsyValens B.V."]
["52G12","Individuele behandeling specialistisch licht medicatiecontrole","Ambulant","uur","Totaal binnen geldigheidsduur of tijdsonafhankelijk",null,183.05,180,73737045,"PsyValens B.V."]
["45G04","Systeemtherapie","Intensief ambulant","uur","Totaal binnen geldigheidsduur of tijdsonafhankelijk",null,148.25,148.25,94067719,"MeJa B.V."]